Organisation Name,Organisation Code,Effective Date,Directorate  Where Expenditure Incurred,Supplier Name,Payment Date,Transaction Number,Gross Amount,Purpose of Spend,Merchant Category,Card Transaction
WALSALL COUNCIL,HTTP://OPENDATACOMMUNITIES.ORG/ID/METROPOLITAN-DISTRICT-COUNCIL/WALSALL,30/06/2017,CHILDRENS SERVICES,TESCO STORE 3351,01/04/2017,H59620170404BBYKKXDNX-1,6.30,FOOD TECHNOLOGY-GENERAL MATERIALS,GROCERY STORES AND SUPERMARKETS,GPC
WALSALL COUNCIL,HTTP://OPENDATACOMMUNITIES.ORG/ID/METROPOLITAN-DISTRICT-COUNCIL/WALSALL,30/06/2017,CHILDRENS SERVICES,AMAZON UK RETAIL AMAZON.C,01/04/2017,H59620170404POCYXIZYQ-1,12.99,ELMWOOD SCHOOL-OTHER-OP MTCE,MISCELLANEOUS AND SPECIALTY RETAIL STORES,GPC
WALSALL COUNCIL,HTTP://OPENDATACOMMUNITIES.ORG/ID/METROPOLITAN-DISTRICT-COUNCIL/WALSALL,30/06/2017,CHILDRENS SERVICES,SAINSBURYS S/MKT,01/04/2017,H59620170404QFTSSBLPQ-1,18.50,REWARDS & PRIZES RD-GENERAL MATERIALS,GROCERY STORES AND SUPERMARKETS,GPC
WALSALL COUNCIL,HTTP://OPENDATACOMMUNITIES.ORG/ID/METROPOLITAN-DISTRICT-COUNCIL/WALSALL,30/06/2017,CHILDRENS SERVICES,WM MORRISONS,01/04/2017,H59620170404QWLPYBTLQ-1,21.57,57 LICHFIELD ROAD-FOOD AND BEVERAGES-PROVISIONS,GROCERY STORES AND SUPERMARKETS,GPC
WALSALL COUNCIL,HTTP://OPENDATACOMMUNITIES.ORG/ID/METROPOLITAN-DISTRICT-COUNCIL/WALSALL,30/06/2017,CHILDRENS SERVICES,123 REG R/T,01/04/2017,H59620170404UENPFMYJN-1,11.99,DT-GENERAL MATERIALS,DIRECT MARKETING CONTINUITY SUBSCRIPTION MERCHANTS,GPC
WALSALL COUNCIL,HTTP://OPENDATACOMMUNITIES.ORG/ID/METROPOLITAN-DISTRICT-COUNCIL/WALSALL,30/06/2017,ECONOMY & ENVIRONMENT,WILKO TAMWORTH RP,01/04/2017,H59620170404WJLCGKLHS-1,13.00,DARLASTON LEISURE CENTRE-GENERAL MATERIALS,HOUSEHOLD APPLIANCE STORES,GPC
WALSALL COUNCIL,HTTP://OPENDATACOMMUNITIES.ORG/ID/METROPOLITAN-DISTRICT-COUNCIL/WALSALL,30/06/2017,CHANGE & GOVERNANCE,AMZ*MULTIWARE,01/04/2017,H59620170404WTNFKBIVZ-1,-17.18,LAW LIBRARY-MISCELLANEOUS SUPPLIES,MISCELLANEOUS AND SPECIALTY RETAIL STORES,GPC
WALSALL COUNCIL,HTTP://OPENDATACOMMUNITIES.ORG/ID/METROPOLITAN-DISTRICT-COUNCIL/WALSALL,30/06/2017,CHILDRENS SERVICES,PARENTPAY E-COM R,01/04/2017,H59620170405DNSVFIWQP-1,15.00,57 LICHFIELD ROAD-FOOD AND BEVERAGES-PROVISIONS,"COLLEGES, UNIVERSITIES, PROFESSIONAL SCHOOLS",GPC
WALSALL COUNCIL,HTTP://OPENDATACOMMUNITIES.ORG/ID/METROPOLITAN-DISTRICT-COUNCIL/WALSALL,30/06/2017,CHILDRENS SERVICES,WIX.COM,01/04/2017,H59620170406XBYPIHFXF-1,3.00,EDUCATION BUSINESS PARTNERSHIP-SOFTWARE ACQ-COMPUTER,DIRECT MARKETING CONTINUITY SUBSCRIPTION MERCHANTS,GPC
WALSALL COUNCIL,HTTP://OPENDATACOMMUNITIES.ORG/ID/METROPOLITAN-DISTRICT-COUNCIL/WALSALL,30/06/2017,ECONOMY & ENVIRONMENT,ASDA SUPERSTORE,02/04/2017,H59620170404BMBKETIWS-1,3.00,BLOXWICH LEISURE CENTRE-FOOD AND BEVERAGES-PROVISIONS,GROCERY STORES AND SUPERMARKETS,GPC
WALSALL COUNCIL,HTTP://OPENDATACOMMUNITIES.ORG/ID/METROPOLITAN-DISTRICT-COUNCIL/WALSALL,30/06/2017,CHILDRENS SERVICES,GOOGLE *SVCSAPPS_ALUMW,02/04/2017,H59620170404EJCPDKPNR-1,6.00,DT-GENERAL MATERIALS,DIRECT MARKETING CONTINUITY SUBSCRIPTION MERCHANTS,GPC
WALSALL COUNCIL,HTTP://OPENDATACOMMUNITIES.ORG/ID/METROPOLITAN-DISTRICT-COUNCIL/WALSALL,30/06/2017,CHILDRENS SERVICES,ALDI,02/04/2017,H59620170404GCLODLJFJ-1,6.87,SPINDLETREE-EQUIP NEW-CLEANING,GROCERY STORES AND SUPERMARKETS,GPC
WALSALL COUNCIL,HTTP://OPENDATACOMMUNITIES.ORG/ID/METROPOLITAN-DISTRICT-COUNCIL/WALSALL,30/06/2017,CHILDRENS SERVICES,ALDI,02/04/2017,H59620170404YOEBXPTEB-1,60.87,SPINDLETREE-FOOD AND BEVERAGES-PROVISIONS,GROCERY STORES AND SUPERMARKETS,GPC
WALSALL COUNCIL,HTTP://OPENDATACOMMUNITIES.ORG/ID/METROPOLITAN-DISTRICT-COUNCIL/WALSALL,30/06/2017,CHILDRENS SERVICES,ALDI,02/04/2017,H59620170404YOEBXPTEB-2,10.81,SPINDLETREE-FOOD AND BEVERAGES-PROVISIONS,GROCERY STORES AND SUPERMARKETS,GPC
WALSALL COUNCIL,HTTP://OPENDATACOMMUNITIES.ORG/ID/METROPOLITAN-DISTRICT-COUNCIL/WALSALL,30/06/2017,ECONOMY & ENVIRONMENT,AMAZON UK RETAIL AMAZON.C,02/04/2017,H59620170405DYQWNUYGX-1,12.98,BLOXWICH LEISURE CENTRE-MISCELLANEOUS SUPPLIES,MISCELLANEOUS AND SPECIALTY RETAIL STORES,GPC
WALSALL COUNCIL,HTTP://OPENDATACOMMUNITIES.ORG/ID/METROPOLITAN-DISTRICT-COUNCIL/WALSALL,30/06/2017,CHILDRENS SERVICES,BOOTS 2115,03/04/2017,H59620170405BVSBSXYCK-1,3.92,LOCALITY FAMILY SUPPORT-WEST-MISCELLANEOUS SUPPLIES,"DRUG STORES, PHARMACIES",GPC
WALSALL COUNCIL,HTTP://OPENDATACOMMUNITIES.ORG/ID/METROPOLITAN-DISTRICT-COUNCIL/WALSALL,30/06/2017,CHANGE & GOVERNANCE,WELSH BROS FOODS LTD,03/04/2017,H59620170405CIHDKGBXH-1,108.58,CA ST MICHAELS C.E. PRIMARY SC-MEAT-PROVISIONS,FREEZER AND LOCKER MEAT PROVISIONERS,GPC
WALSALL COUNCIL,HTTP://OPENDATACOMMUNITIES.ORG/ID/METROPOLITAN-DISTRICT-COUNCIL/WALSALL,30/06/2017,CHILDRENS SERVICES,W M MORRISONS.COM,03/04/2017,H59620170405COLXPBWMC-1,27.90,BIRCHILLS CHILDCARE SERVICES-FOOD AND BEVERAGES-PROVISIONS,GROCERY STORES AND SUPERMARKETS,GPC
WALSALL COUNCIL,HTTP://OPENDATACOMMUNITIES.ORG/ID/METROPOLITAN-DISTRICT-COUNCIL/WALSALL,30/06/2017,CHILDRENS SERVICES,W M MORRISONS.COM,03/04/2017,H59620170405COLXPBWMC-2,103.17,BIRCHILLS CHILDCARE SERVICES-FOOD AND BEVERAGES-PROVISIONS,GROCERY STORES AND SUPERMARKETS,GPC
WALSALL COUNCIL,HTTP://OPENDATACOMMUNITIES.ORG/ID/METROPOLITAN-DISTRICT-COUNCIL/WALSALL,30/06/2017,ECONOMY & ENVIRONMENT,WM MORRISONS,03/04/2017,H59620170405EJUHZSLVR-1,5.31,WALSALL OUTDOOR ADVENTURE CENT-FOOD AND BEVERAGES-PROVISIONS,GROCERY STORES AND SUPERMARKETS,GPC
WALSALL COUNCIL,HTTP://OPENDATACOMMUNITIES.ORG/ID/METROPOLITAN-DISTRICT-COUNCIL/WALSALL,30/06/2017,ECONOMY & ENVIRONMENT,WM MORRISONS,03/04/2017,H59620170405EJUHZSLVR-2,14.23,WALSALL OUTDOOR ADVENTURE CENT-FOOD AND BEVERAGES-PROVISIONS,GROCERY STORES AND SUPERMARKETS,GPC
WALSALL COUNCIL,HTTP://OPENDATACOMMUNITIES.ORG/ID/METROPOLITAN-DISTRICT-COUNCIL/WALSALL,30/06/2017,CHANGE & GOVERNANCE,WELSH BROS FOODS LTD,03/04/2017,H59620170405EVSGEMGVG-1,93.12,CA COOPER JORDAN CE PRIMARY SC-MEAT-PROVISIONS,FREEZER AND LOCKER MEAT PROVISIONERS,GPC
WALSALL COUNCIL,HTTP://OPENDATACOMMUNITIES.ORG/ID/METROPOLITAN-DISTRICT-COUNCIL/WALSALL,30/06/2017,CHILDRENS SERVICES,THE WORKS,03/04/2017,H59620170405EXMWDUZIX-1,50.00,CURRICULUM RESOURCES-GENERAL MATERIALS,DISCOUNT STORES,GPC
WALSALL COUNCIL,HTTP://OPENDATACOMMUNITIES.ORG/ID/METROPOLITAN-DISTRICT-COUNCIL/WALSALL,30/06/2017,CHILDRENS SERVICES,THE WORKS,03/04/2017,H59620170405EXMWDUZIX-2,72.40,CURRICULUM RESOURCES-GENERAL MATERIALS,DISCOUNT STORES,GPC
WALSALL COUNCIL,HTTP://OPENDATACOMMUNITIES.ORG/ID/METROPOLITAN-DISTRICT-COUNCIL/WALSALL,30/06/2017,CHANGE & GOVERNANCE,WELSH BROS FOODS LTD,03/04/2017,H59620170405FQVJDKKOQ-1,31.90,CA CASTLEFORT JMI SCHOOL-MEAT-PROVISIONS,FREEZER AND LOCKER MEAT PROVISIONERS,GPC
WALSALL COUNCIL,HTTP://OPENDATACOMMUNITIES.ORG/ID/METROPOLITAN-DISTRICT-COUNCIL/WALSALL,30/06/2017,CHANGE & GOVERNANCE,ARTHUR BRETT CATER,03/04/2017,H59620170405FSBLCSMDD-1,20.19,CA ST BERNADETTES CATHOLIC PRI-FRUIT & VEGETABLES OTHER-PROVI,MISCELLANEOUS FOOD STORES & CONVENIENCE STORES,GPC
WALSALL COUNCIL,HTTP://OPENDATACOMMUNITIES.ORG/ID/METROPOLITAN-DISTRICT-COUNCIL/WALSALL,30/06/2017,CHILDRENS SERVICES,WEST MID TRAVEL,03/04/2017,H59620170405GNYFBLVOG-1,437.00,SAFEGUARDING & FAMILY SUPPORT-OFFICER/STAFF-PUBLIC TRANSPORT,BUS LINES,GPC
WALSALL COUNCIL,HTTP://OPENDATACOMMUNITIES.ORG/ID/METROPOLITAN-DISTRICT-COUNCIL/WALSALL,30/06/2017,CHILDRENS SERVICES,WEST MID TRAVEL,03/04/2017,H59620170405GNYFBLVOG-2,6.85,SAFEGUARDING & FAMILY SUPPORT-POSTAGES AND COURIER SERVICES,BUS LINES,GPC
WALSALL COUNCIL,HTTP://OPENDATACOMMUNITIES.ORG/ID/METROPOLITAN-DISTRICT-COUNCIL/WALSALL,30/06/2017,CHANGE & GOVERNANCE,WELSH BROS FOODS LTD,03/04/2017,H59620170405HIUQRHBMT-1,156.76,CA ELMORE GREEN PRIMARY SCHOOL-MEAT-PROVISIONS,FREEZER AND LOCKER MEAT PROVISIONERS,GPC
WALSALL COUNCIL,HTTP://OPENDATACOMMUNITIES.ORG/ID/METROPOLITAN-DISTRICT-COUNCIL/WALSALL,30/06/2017,CHILDRENS SERVICES,AQUAID FRANCHISING LTD,03/04/2017,H59620170405IEVPEEHWQ-1,820.80,PELSALL EDC-STAFF MINERAL WATER-EQUIPMENT,OTHER BUSINESS SERVICES,GPC
WALSALL COUNCIL,HTTP://OPENDATACOMMUNITIES.ORG/ID/METROPOLITAN-DISTRICT-COUNCIL/WALSALL,30/06/2017,CHANGE & GOVERNANCE,BULL DOG APPLIANCES LT,03/04/2017,H59620170405IXJIWHWVI-1,333.00,WALSALL CRISIS SUPPORT SCHEME-FURNITURE & EQUIPMENT,HOUSEHOLD APPLIANCE STORES,GPC
WALSALL COUNCIL,HTTP://OPENDATACOMMUNITIES.ORG/ID/METROPOLITAN-DISTRICT-COUNCIL/WALSALL,30/06/2017,CHILDRENS SERVICES,ASDA SUPERSTORE,03/04/2017,H59620170405JABKTQZTR-1,17.11,BLOXWICH CHILDCARE SERVICES-FOOD AND BEVERAGES-PROVISIONS,GROCERY STORES AND SUPERMARKETS,GPC
WALSALL COUNCIL,HTTP://OPENDATACOMMUNITIES.ORG/ID/METROPOLITAN-DISTRICT-COUNCIL/WALSALL,30/06/2017,CHANGE & GOVERNANCE,WELSH BROS FOODS LTD,03/04/2017,H59620170405JTJCXKEGE-1,50.21,CA WATLING STREET PRIMARY SCHO-MEAT-PROVISIONS,FREEZER AND LOCKER MEAT PROVISIONERS,GPC
WALSALL COUNCIL,HTTP://OPENDATACOMMUNITIES.ORG/ID/METROPOLITAN-DISTRICT-COUNCIL/WALSALL,30/06/2017,CHANGE & GOVERNANCE,WELSH BROS FOODS LTD,03/04/2017,H59620170405KGUBYUUYV-1,172.45,CA BEACON PRIMARY SCHOOL-MEAT-PROVISIONS,FREEZER AND LOCKER MEAT PROVISIONERS,GPC
WALSALL COUNCIL,HTTP://OPENDATACOMMUNITIES.ORG/ID/METROPOLITAN-DISTRICT-COUNCIL/WALSALL,30/06/2017,CHANGE & GOVERNANCE,ARTHUR BRETT CATER,03/04/2017,H59620170405LHLTGUUWQ-1,39.91,CA WALSALL WOOD PRIMARY SCHOOL-FRUIT & VEGETABLES OTHER-PROVI,MISCELLANEOUS FOOD STORES & CONVENIENCE STORES,GPC
WALSALL COUNCIL,HTTP://OPENDATACOMMUNITIES.ORG/ID/METROPOLITAN-DISTRICT-COUNCIL/WALSALL,30/06/2017,CHILDRENS SERVICES,VIRGIN MEDIA PYMTS,03/04/2017,H59620170405LKSHVORYA-1,33.69,57 LICHFIELD ROAD-PROFESSIONAL FEES AND SERVICES,TELECOMMUNICATION SERVICES,GPC
WALSALL COUNCIL,HTTP://OPENDATACOMMUNITIES.ORG/ID/METROPOLITAN-DISTRICT-COUNCIL/WALSALL,30/06/2017,CHANGE & GOVERNANCE,ARTHUR BRETT CATER,03/04/2017,H59620170405LMGSWJXJS-1,71.02,CA ST JOHNS C.E. PRIMARY SCHOO-FRUIT & VEGETABLES OTHER-PROVI,MISCELLANEOUS FOOD STORES & CONVENIENCE STORES,GPC
WALSALL COUNCIL,HTTP://OPENDATACOMMUNITIES.ORG/ID/METROPOLITAN-DISTRICT-COUNCIL/WALSALL,30/06/2017,ECONOMY & ENVIRONMENT,TOOLSTATION LTD,03/04/2017,H59620170405LRHNQNUYP-1,19.44,"ARBORETUM-REPAIRS,ALTERATIONS & MAINTENA",HARDWARE STORES,GPC
WALSALL COUNCIL,HTTP://OPENDATACOMMUNITIES.ORG/ID/METROPOLITAN-DISTRICT-COUNCIL/WALSALL,30/06/2017,CHILDRENS SERVICES,ASDA STORES,03/04/2017,H59620170405MDGWWTBDM-1,1.40,LOCALITY FAMILY SUPPORT-WEST-FOOD AND BEVERAGES-PROVISIONS,GROCERY STORES AND SUPERMARKETS,GPC
WALSALL COUNCIL,HTTP://OPENDATACOMMUNITIES.ORG/ID/METROPOLITAN-DISTRICT-COUNCIL/WALSALL,30/06/2017,CHILDRENS SERVICES,ASDA STORES,03/04/2017,H59620170405MDGWWTBDM-2,5.69,LOCALITY FAMILY SUPPORT-WEST-FOOD AND BEVERAGES-PROVISIONS,GROCERY STORES AND SUPERMARKETS,GPC
WALSALL COUNCIL,HTTP://OPENDATACOMMUNITIES.ORG/ID/METROPOLITAN-DISTRICT-COUNCIL/WALSALL,30/06/2017,CHANGE & GOVERNANCE,WELSH BROS FOODS LTD,03/04/2017,H59620170405MGSMISOBI-1,118.62,CA JANE LANE SPECIAL SCHOOL-MEAT-PROVISIONS,FREEZER AND LOCKER MEAT PROVISIONERS,GPC
WALSALL COUNCIL,HTTP://OPENDATACOMMUNITIES.ORG/ID/METROPOLITAN-DISTRICT-COUNCIL/WALSALL,30/06/2017,CHILDRENS SERVICES,ASDA STORES,03/04/2017,H59620170405MVGLBGTNR-1,5.00,LOCALITY FAMILY SUPPORT-WEST-GENERAL MATERIALS,GROCERY STORES AND SUPERMARKETS,GPC
WALSALL COUNCIL,HTTP://OPENDATACOMMUNITIES.ORG/ID/METROPOLITAN-DISTRICT-COUNCIL/WALSALL,30/06/2017,CHILDRENS SERVICES,ASDA STORES,03/04/2017,H59620170405MVGLBGTNR-2,19.82,LOCALITY FAMILY SUPPORT-WEST-FOOD AND BEVERAGES-PROVISIONS,GROCERY STORES AND SUPERMARKETS,GPC
WALSALL COUNCIL,HTTP://OPENDATACOMMUNITIES.ORG/ID/METROPOLITAN-DISTRICT-COUNCIL/WALSALL,30/06/2017,CHANGE & GOVERNANCE,WELSH BROS FOODS LTD,03/04/2017,H59620170405NCVCNTMRC-1,293.07,CA BUSILL JONES PRIMARY SCHOOL-MEAT-PROVISIONS,FREEZER AND LOCKER MEAT PROVISIONERS,GPC
WALSALL COUNCIL,HTTP://OPENDATACOMMUNITIES.ORG/ID/METROPOLITAN-DISTRICT-COUNCIL/WALSALL,30/06/2017,CHILDRENS SERVICES,WALSALL COUNCIL,03/04/2017,H59620170405NHMTUEYNX-1,59.00,ST FRANCIS OF ASSISI CATHOLIC -MISC FEES AND EXPENSES,GOVERNMENT SERVICES,GPC
WALSALL COUNCIL,HTTP://OPENDATACOMMUNITIES.ORG/ID/METROPOLITAN-DISTRICT-COUNCIL/WALSALL,30/06/2017,ECONOMY & ENVIRONMENT,TRAINLINE,03/04/2017,H59620170405NSDEMWJKH-1,45.34,INSPIRED GENERATIONS (CSAF)-OFFICER/STAFF-PUBLIC TRANSPORT,PASSENGER RAILWAYS,GPC
WALSALL COUNCIL,HTTP://OPENDATACOMMUNITIES.ORG/ID/METROPOLITAN-DISTRICT-COUNCIL/WALSALL,30/06/2017,CHANGE & GOVERNANCE,WELSH BROS FOODS LTD,03/04/2017,H59620170405NYDORXKFH-1,58.70,CA MEADOW VIEW JMI PRIMARY SCH-MEAT-PROVISIONS,FREEZER AND LOCKER MEAT PROVISIONERS,GPC
WALSALL COUNCIL,HTTP://OPENDATACOMMUNITIES.ORG/ID/METROPOLITAN-DISTRICT-COUNCIL/WALSALL,30/06/2017,CHANGE & GOVERNANCE,ARTHUR BRETT CATER,03/04/2017,H59620170405OGFHKKEWC-1,36.44,CA OAKWOOD SPECIAL SCHOOL-FRUIT & VEGETABLES OTHER-PROVI,MISCELLANEOUS FOOD STORES & CONVENIENCE STORES,GPC
WALSALL COUNCIL,HTTP://OPENDATACOMMUNITIES.ORG/ID/METROPOLITAN-DISTRICT-COUNCIL/WALSALL,30/06/2017,CHILDRENS SERVICES,DHILLON DAILY STORES 2,03/04/2017,H59620170405OPSXXRPKN-1,5.25,BLAKENALL CHILDCARE SERVICES-FOOD AND BEVERAGES-PROVISIONS,GROCERY STORES AND SUPERMARKETS,GPC
WALSALL COUNCIL,HTTP://OPENDATACOMMUNITIES.ORG/ID/METROPOLITAN-DISTRICT-COUNCIL/WALSALL,30/06/2017,CHANGE & GOVERNANCE,WELSH BROS FOODS LTD,03/04/2017,H59620170405OYCEYHOTJ-1,166.07,CA RADLEYS PRIMARY SCHOOL-MEAT-PROVISIONS,FREEZER AND LOCKER MEAT PROVISIONERS,GPC
WALSALL COUNCIL,HTTP://OPENDATACOMMUNITIES.ORG/ID/METROPOLITAN-DISTRICT-COUNCIL/WALSALL,30/06/2017,CHANGE & GOVERNANCE,WELSH BROS FOODS LTD,03/04/2017,H59620170405QESTNLVUU-1,64.99,CA RUSHALL JMI SCHOOL-MEAT-PROVISIONS,FREEZER AND LOCKER MEAT PROVISIONERS,GPC
WALSALL COUNCIL,HTTP://OPENDATACOMMUNITIES.ORG/ID/METROPOLITAN-DISTRICT-COUNCIL/WALSALL,30/06/2017,CHANGE & GOVERNANCE,ARTHUR BRETT CATER,03/04/2017,H59620170405QFEKXLTBE-1,9.82,CA MEADOW VIEW JMI PRIMARY SCH-FRUIT & VEGETABLES OTHER-PROVI,MISCELLANEOUS FOOD STORES & CONVENIENCE STORES,GPC
WALSALL COUNCIL,HTTP://OPENDATACOMMUNITIES.ORG/ID/METROPOLITAN-DISTRICT-COUNCIL/WALSALL,30/06/2017,CHANGE & GOVERNANCE,ARTHUR BRETT CATER,03/04/2017,H59620170405QHKRYWCRR-1,60.40,CA CASTLEFORT JMI SCHOOL-FRUIT & VEGETABLES OTHER-PROVI,MISCELLANEOUS FOOD STORES & CONVENIENCE STORES,GPC
WALSALL COUNCIL,HTTP://OPENDATACOMMUNITIES.ORG/ID/METROPOLITAN-DISTRICT-COUNCIL/WALSALL,30/06/2017,CHANGE & GOVERNANCE,WELSH BROS FOODS LTD,03/04/2017,H59620170405RESZFLDAD-1,116.26,CA LEIGHSWOOD PRIMARY SCHOOL-MEAT-PROVISIONS,FREEZER AND LOCKER MEAT PROVISIONERS,GPC
WALSALL COUNCIL,HTTP://OPENDATACOMMUNITIES.ORG/ID/METROPOLITAN-DISTRICT-COUNCIL/WALSALL,30/06/2017,CHANGE & GOVERNANCE,ARTHUR BRETT CATER,03/04/2017,H59620170405RKLDWQTSH-1,67.96,CA RUSHALL JMI SCHOOL-FRUIT & VEGETABLES OTHER-PROVI,MISCELLANEOUS FOOD STORES & CONVENIENCE STORES,GPC
WALSALL COUNCIL,HTTP://OPENDATACOMMUNITIES.ORG/ID/METROPOLITAN-DISTRICT-COUNCIL/WALSALL,30/06/2017,CHANGE & GOVERNANCE,WWW.ADMIRALSTORAGE.CO.,03/04/2017,H59620170405RWGUTLEXL-1,352.80,TENANCY SERVICE-RENTS-OTHER,"PUBLIC WAREHOUSING, FARM, & HOUSEHOLD GOODS",GPC
WALSALL COUNCIL,HTTP://OPENDATACOMMUNITIES.ORG/ID/METROPOLITAN-DISTRICT-COUNCIL/WALSALL,30/06/2017,CHANGE & GOVERNANCE,WELSH BROS FOODS LTD,03/04/2017,H59620170405SBGFPZLJV-1,43.10,CA FIBBERSLEY PARK PRIMARY SCH-MEAT-PROVISIONS,FREEZER AND LOCKER MEAT PROVISIONERS,GPC
WALSALL COUNCIL,HTTP://OPENDATACOMMUNITIES.ORG/ID/METROPOLITAN-DISTRICT-COUNCIL/WALSALL,30/06/2017,CHANGE & GOVERNANCE,ARTHUR BRETT CATER,03/04/2017,H59620170405SODDEMHNY-1,99.62,CA COOPER JORDAN CE PRIMARY SC-FRUIT & VEGETABLES OTHER-PROVI,MISCELLANEOUS FOOD STORES & CONVENIENCE STORES,GPC
WALSALL COUNCIL,HTTP://OPENDATACOMMUNITIES.ORG/ID/METROPOLITAN-DISTRICT-COUNCIL/WALSALL,30/06/2017,CHILDRENS SERVICES,ASDA SUPERSTORE,03/04/2017,H59620170405SQXBDCQXU-1,23.15,BLAKENALL CHILDCARE SERVICES-FOOD AND BEVERAGES-PROVISIONS,GROCERY STORES AND SUPERMARKETS,GPC
WALSALL COUNCIL,HTTP://OPENDATACOMMUNITIES.ORG/ID/METROPOLITAN-DISTRICT-COUNCIL/WALSALL,30/06/2017,CHILDRENS SERVICES,ASDA SUPERSTORE,03/04/2017,H59620170405SQXBDCQXU-2,2.00,BLAKENALL CHILDCARE SERVICES-FOOD AND BEVERAGES-PROVISIONS,GROCERY STORES AND SUPERMARKETS,GPC
WALSALL COUNCIL,HTTP://OPENDATACOMMUNITIES.ORG/ID/METROPOLITAN-DISTRICT-COUNCIL/WALSALL,30/06/2017,CHANGE & GOVERNANCE,ARTHUR BRETT CATER,03/04/2017,H59620170405TCZUUEQXM-1,45.43,CA LINDENS PRIMARY SCHOOL-FRUIT & VEGETABLES OTHER-PROVI,MISCELLANEOUS FOOD STORES & CONVENIENCE STORES,GPC
WALSALL COUNCIL,HTTP://OPENDATACOMMUNITIES.ORG/ID/METROPOLITAN-DISTRICT-COUNCIL/WALSALL,30/06/2017,CHANGE & GOVERNANCE,NOBISCO LTD,03/04/2017,H59620170405TMNLIHJCT-1,31.91,CA CASTLEFORT JMI SCHOOL-PAYMENT TO CONTRACTOR EXTERNAL,"CLEANING AND MAINTENANCE, JANITORIAL SERVICES",GPC
WALSALL COUNCIL,HTTP://OPENDATACOMMUNITIES.ORG/ID/METROPOLITAN-DISTRICT-COUNCIL/WALSALL,30/06/2017,CHANGE & GOVERNANCE,WELSH BROS FOODS LTD,03/04/2017,H59620170405TOKHCRQVK-1,166.77,CA MOORCROFT WOOD-MEAT-PROVISIONS,FREEZER AND LOCKER MEAT PROVISIONERS,GPC
WALSALL COUNCIL,HTTP://OPENDATACOMMUNITIES.ORG/ID/METROPOLITAN-DISTRICT-COUNCIL/WALSALL,30/06/2017,CHANGE & GOVERNANCE,WELSH BROS FOODS LTD,03/04/2017,H59620170405TQVLOIROY-1,33.77,CA OLD HALL SPECIAL SCHOOL-MEAT-PROVISIONS,FREEZER AND LOCKER MEAT PROVISIONERS,GPC
WALSALL COUNCIL,HTTP://OPENDATACOMMUNITIES.ORG/ID/METROPOLITAN-DISTRICT-COUNCIL/WALSALL,30/06/2017,CHILDRENS SERVICES,THE ALBION FOUNDATION,03/04/2017,H59620170405TTBTUCYGN-1,24.00,CENTRAL & EAST LOCALITY - SCHO-SWIMMING/GAMES-SERVICES,"ORGANIZATIONS, CHARITABLE AND SOCIAL SERVICE",GPC
WALSALL COUNCIL,HTTP://OPENDATACOMMUNITIES.ORG/ID/METROPOLITAN-DISTRICT-COUNCIL/WALSALL,30/06/2017,CHANGE & GOVERNANCE,HOME BARGAINS,03/04/2017,H59620170405UFMQHPIGP-1,7.84,"WALSALL CRISIS SUPPORT SCHEME-CROCKERY,HARDWARE & DISPOSABLE",HARDWARE STORES,GPC
WALSALL COUNCIL,HTTP://OPENDATACOMMUNITIES.ORG/ID/METROPOLITAN-DISTRICT-COUNCIL/WALSALL,30/06/2017,CHANGE & GOVERNANCE,ARTHUR BRETT CATER,03/04/2017,H59620170405UGDKNNMGB-1,24.27,CA WATLING STREET PRIMARY SCHO-FRUIT & VEGETABLES OTHER-PROVI,MISCELLANEOUS FOOD STORES & CONVENIENCE STORES,GPC
WALSALL COUNCIL,HTTP://OPENDATACOMMUNITIES.ORG/ID/METROPOLITAN-DISTRICT-COUNCIL/WALSALL,30/06/2017,CHANGE & GOVERNANCE,PARK INN BY RADISSON,03/04/2017,H59620170405VDKUQTRSL-1,396.00,ACCOMMODATION SERVICES MANAGEM-HOTEL ACCOMMODATION-EMPLOYEES,"HOTELS, MOTELS, RESORTS",GPC
WALSALL COUNCIL,HTTP://OPENDATACOMMUNITIES.ORG/ID/METROPOLITAN-DISTRICT-COUNCIL/WALSALL,30/06/2017,CHANGE & GOVERNANCE,ARTHUR BRETT CATER,03/04/2017,H59620170405VEQXNKQJS-1,46.91,CA BLUE COAT C OF E PERFORMING-FRUIT & VEGETABLES OTHER-PROVI,MISCELLANEOUS FOOD STORES & CONVENIENCE STORES,GPC
WALSALL COUNCIL,HTTP://OPENDATACOMMUNITIES.ORG/ID/METROPOLITAN-DISTRICT-COUNCIL/WALSALL,30/06/2017,ECONOMY & ENVIRONMENT,GENERAL BUILDING PLASTICS,03/04/2017,H59620170405VRBJPOVDO-1,19.73,"ARBORETUM HLF-REPAIRS,ALTERATIONS & MAINTENA",LUMBER & BUILDING MATERIALS STORES,GPC
WALSALL COUNCIL,HTTP://OPENDATACOMMUNITIES.ORG/ID/METROPOLITAN-DISTRICT-COUNCIL/WALSALL,30/06/2017,CHANGE & GOVERNANCE,WELSH BROS FOODS LTD,03/04/2017,H59620170405WHLEYPYEC-1,81.23,CA BARCROFT D/C-MEAT-PROVISIONS,FREEZER AND LOCKER MEAT PROVISIONERS,GPC
WALSALL COUNCIL,HTTP://OPENDATACOMMUNITIES.ORG/ID/METROPOLITAN-DISTRICT-COUNCIL/WALSALL,30/06/2017,CHANGE & GOVERNANCE,WELSH BROS FOODS LTD,03/04/2017,H59620170405XEEXAXRTQ-1,6.50,CA BEACON PRIMARY SCHOOL-MEAT-PROVISIONS,FREEZER AND LOCKER MEAT PROVISIONERS,GPC
WALSALL COUNCIL,HTTP://OPENDATACOMMUNITIES.ORG/ID/METROPOLITAN-DISTRICT-COUNCIL/WALSALL,30/06/2017,CHANGE & GOVERNANCE,ARTHUR BRETT CATER,03/04/2017,H59620170405XNVFOVNKS-1,27.85,CA ST ANNES CATHOLIC PRIMARY S-FRUIT & VEGETABLES OTHER-PROVI,MISCELLANEOUS FOOD STORES & CONVENIENCE STORES,GPC
WALSALL COUNCIL,HTTP://OPENDATACOMMUNITIES.ORG/ID/METROPOLITAN-DISTRICT-COUNCIL/WALSALL,30/06/2017,CHILDRENS SERVICES,PRICEWISE BARGAINS,03/04/2017,H59620170405XPVVCJHJD-1,21.54,LOCALITY FAMILY SUPPORT-WEST-MISCELLANEOUS SUPPLIES,GROCERY STORES AND SUPERMARKETS,GPC
WALSALL COUNCIL,HTTP://OPENDATACOMMUNITIES.ORG/ID/METROPOLITAN-DISTRICT-COUNCIL/WALSALL,30/06/2017,CHILDRENS SERVICES,POUNDSTRETCHER 385,03/04/2017,H59620170405XWIAPHLJY-1,31.00,CURRICULUM RESOURCES-GENERAL MATERIALS,"DRAPERY, UPHOLSTERY, AND WINDOW COVERINGS STORES",GPC
WALSALL COUNCIL,HTTP://OPENDATACOMMUNITIES.ORG/ID/METROPOLITAN-DISTRICT-COUNCIL/WALSALL,30/06/2017,CHILDRENS SERVICES,ASDA STORES,03/04/2017,H59620170405XZWBHCCOE-1,15.39,PARENTING TEAM-FOOD AND BEVERAGES-PROVISIONS,GROCERY STORES AND SUPERMARKETS,GPC
WALSALL COUNCIL,HTTP://OPENDATACOMMUNITIES.ORG/ID/METROPOLITAN-DISTRICT-COUNCIL/WALSALL,30/06/2017,CHILDRENS SERVICES,ASDA STORES,03/04/2017,H59620170405XZWBHCCOE-2,11.00,PARENTING TEAM-FOOD AND BEVERAGES-PROVISIONS,GROCERY STORES AND SUPERMARKETS,GPC
WALSALL COUNCIL,HTTP://OPENDATACOMMUNITIES.ORG/ID/METROPOLITAN-DISTRICT-COUNCIL/WALSALL,30/06/2017,CHANGE & GOVERNANCE,ARTHUR BRETT CATER,03/04/2017,H59620170405YKEFSPPOD-1,79.33,CA BROWNHILLS WEST PRIMARY SCH-FRUIT & VEGETABLES OTHER-PROVI,MISCELLANEOUS FOOD STORES & CONVENIENCE STORES,GPC
WALSALL COUNCIL,HTTP://OPENDATACOMMUNITIES.ORG/ID/METROPOLITAN-DISTRICT-COUNCIL/WALSALL,30/06/2017,SOCIAL CARE & INCLUSION,ASDA HOME SHOPPING,03/04/2017,H59620170405ZUJMXRLCI-1,12.50,FALLINGS HEATH-FOOD AND BEVERAGES-PROVISIONS,GROCERY STORES AND SUPERMARKETS,GPC
WALSALL COUNCIL,HTTP://OPENDATACOMMUNITIES.ORG/ID/METROPOLITAN-DISTRICT-COUNCIL/WALSALL,30/06/2017,SOCIAL CARE & INCLUSION,ASDA HOME SHOPPING,03/04/2017,H59620170405ZUJMXRLCI-2,25.38,FALLINGS HEATH-FOOD AND BEVERAGES-PROVISIONS,GROCERY STORES AND SUPERMARKETS,GPC
WALSALL COUNCIL,HTTP://OPENDATACOMMUNITIES.ORG/ID/METROPOLITAN-DISTRICT-COUNCIL/WALSALL,30/06/2017,CHILDRENS SERVICES,WM MORRISON FOOD.COM,03/04/2017,H59620170405ZUYWDSSGH-1,10.14,REDRUTH ROAD-FOOD AND BEVERAGES-PROVISIONS,GROCERY STORES AND SUPERMARKETS,GPC
WALSALL COUNCIL,HTTP://OPENDATACOMMUNITIES.ORG/ID/METROPOLITAN-DISTRICT-COUNCIL/WALSALL,30/06/2017,CHILDRENS SERVICES,WM MORRISON FOOD.COM,03/04/2017,H59620170405ZUYWDSSGH-2,93.64,REDRUTH ROAD-FOOD AND BEVERAGES-PROVISIONS,GROCERY STORES AND SUPERMARKETS,GPC
WALSALL COUNCIL,HTTP://OPENDATACOMMUNITIES.ORG/ID/METROPOLITAN-DISTRICT-COUNCIL/WALSALL,30/06/2017,CHANGE & GOVERNANCE,BRITANNIA,03/04/2017,H59620170406OLEVKWJBT-1,137.50,BED & BREAKFAST PAYMENTS-HOTEL ACCOMMODATION-EMPLOYEES,"HOTELS, MOTELS, RESORTS",GPC
WALSALL COUNCIL,HTTP://OPENDATACOMMUNITIES.ORG/ID/METROPOLITAN-DISTRICT-COUNCIL/WALSALL,30/06/2017,CHANGE & GOVERNANCE,WELSH BROS FOODS LTD,04/04/2017,H59620170405IGTWTQEPA-1,73.03,CA ELMWOOD SPECIAL SCHOOL-MEAT-PROVISIONS,FREEZER AND LOCKER MEAT PROVISIONERS,GPC
WALSALL COUNCIL,HTTP://OPENDATACOMMUNITIES.ORG/ID/METROPOLITAN-DISTRICT-COUNCIL/WALSALL,30/06/2017,CHANGE & GOVERNANCE,WELSH BROS FOODS LTD,04/04/2017,H59620170405MYPJBCUOR-1,44.97,CA TOWN HALL RESTAURANT - CATE-MEAT-PROVISIONS,FREEZER AND LOCKER MEAT PROVISIONERS,GPC
WALSALL COUNCIL,HTTP://OPENDATACOMMUNITIES.ORG/ID/METROPOLITAN-DISTRICT-COUNCIL/WALSALL,30/06/2017,CHANGE & GOVERNANCE,WELSH BROS FOODS LTD,04/04/2017,H59620170405ZXMIUKHGF-1,29.89,CA TOWN HALL RESTAURANT - CATE-MEAT-PROVISIONS,FREEZER AND LOCKER MEAT PROVISIONERS,GPC
WALSALL COUNCIL,HTTP://OPENDATACOMMUNITIES.ORG/ID/METROPOLITAN-DISTRICT-COUNCIL/WALSALL,30/06/2017,CHILDRENS SERVICES,SUPPLIES TEAM,04/04/2017,H59620170406AIRUCUNMM-1,98.45,PELSALL EDC-STATIONERY & GENERAL SUPPLIES-,"OFFICE, SCHOOL SUPPLY, AND STATIONERY STORES",GPC
WALSALL COUNCIL,HTTP://OPENDATACOMMUNITIES.ORG/ID/METROPOLITAN-DISTRICT-COUNCIL/WALSALL,30/06/2017,CHANGE & GOVERNANCE,COMFORT INN BIRMINGHAM,04/04/2017,H59620170406BAMFXSBLT-1,168.85,BED & BREAKFAST PAYMENTS-HOTEL ACCOMMODATION-EMPLOYEES,"HOTELS, MOTELS, RESORTS",GPC
WALSALL COUNCIL,HTTP://OPENDATACOMMUNITIES.ORG/ID/METROPOLITAN-DISTRICT-COUNCIL/WALSALL,30/06/2017,CHANGE & GOVERNANCE,ARTHUR BRETT CATER,04/04/2017,H59620170406BDTUOVBFE-1,36.74,CA ELMORE GREEN PRIMARY SCHOOL-FRUIT & VEGETABLES OTHER-PROVI,MISCELLANEOUS FOOD STORES & CONVENIENCE STORES,GPC
WALSALL COUNCIL,HTTP://OPENDATACOMMUNITIES.ORG/ID/METROPOLITAN-DISTRICT-COUNCIL/WALSALL,30/06/2017,CHANGE & GOVERNANCE,SUPPLIES TEAM,04/04/2017,H59620170406BHTBCVFTJ-1,377.28,PRINTING SERVICES-STATIONERY & GENERAL SUPPLIES-,"OFFICE, SCHOOL SUPPLY, AND STATIONERY STORES",GPC
WALSALL COUNCIL,HTTP://OPENDATACOMMUNITIES.ORG/ID/METROPOLITAN-DISTRICT-COUNCIL/WALSALL,30/06/2017,CHANGE & GOVERNANCE,BULL DOG APPLIANCES LT,04/04/2017,H59620170406BKNRTDVJC-1,90.00,WALSALL CRISIS SUPPORT SCHEME-FURNITURE & EQUIPMENT,HOUSEHOLD APPLIANCE STORES,GPC
WALSALL COUNCIL,HTTP://OPENDATACOMMUNITIES.ORG/ID/METROPOLITAN-DISTRICT-COUNCIL/WALSALL,30/06/2017,ECONOMY & ENVIRONMENT,ECCTIS LTD,04/04/2017,H59620170406BKWXFLUDC-1,30.45,YEI (IMPACT) PROGRAMME-MISCELLANEOUS SUPPLIES,PROFESSIONAL SERVICES,GPC
WALSALL COUNCIL,HTTP://OPENDATACOMMUNITIES.ORG/ID/METROPOLITAN-DISTRICT-COUNCIL/WALSALL,30/06/2017,ECONOMY & ENVIRONMENT,ECCTIS LTD,04/04/2017,H59620170406BKWXFLUDC-2,30.45,YEI ESF FUNDING-MISCELLANEOUS SUPPLIES,PROFESSIONAL SERVICES,GPC
WALSALL COUNCIL,HTTP://OPENDATACOMMUNITIES.ORG/ID/METROPOLITAN-DISTRICT-COUNCIL/WALSALL,30/06/2017,CHANGE & GOVERNANCE,BLAKEMORE FOODSERVICE,04/04/2017,H59620170406BNOITZDAJ-1,-52.80,CA LEIGHSWOOD PRIMARY SCHOOL-CATERING,CATERERS,GPC
WALSALL COUNCIL,HTTP://OPENDATACOMMUNITIES.ORG/ID/METROPOLITAN-DISTRICT-COUNCIL/WALSALL,30/06/2017,CHILDRENS SERVICES,AMAZON UK MARKETPLACE,04/04/2017,H59620170406BPGQDSXEP-1,6.95,PHASE 1 RESOURCES-GENERAL MATERIALS,MISCELLANEOUS AND SPECIALTY RETAIL STORES,GPC
WALSALL COUNCIL,HTTP://OPENDATACOMMUNITIES.ORG/ID/METROPOLITAN-DISTRICT-COUNCIL/WALSALL,30/06/2017,CHILDRENS SERVICES,AMAZON UK MARKETPLACE,04/04/2017,H59620170406BPGQDSXEP-2,9.98,PHASE 1 RESOURCES-GENERAL MATERIALS,MISCELLANEOUS AND SPECIALTY RETAIL STORES,GPC
WALSALL COUNCIL,HTTP://OPENDATACOMMUNITIES.ORG/ID/METROPOLITAN-DISTRICT-COUNCIL/WALSALL,30/06/2017,CHILDRENS SERVICES,AMAZON UK MARKETPLACE,04/04/2017,H59620170406BPGQDSXEP-3,9.30,PHASE 3 RESOURCES-GENERAL MATERIALS,MISCELLANEOUS AND SPECIALTY RETAIL STORES,GPC
WALSALL COUNCIL,HTTP://OPENDATACOMMUNITIES.ORG/ID/METROPOLITAN-DISTRICT-COUNCIL/WALSALL,30/06/2017,CHILDRENS SERVICES,AMAZON UK MARKETPLACE,04/04/2017,H59620170406BPGQDSXEP-4,19.52,PHASE 1 RESOURCES-GENERAL MATERIALS,MISCELLANEOUS AND SPECIALTY RETAIL STORES,GPC
WALSALL COUNCIL,HTTP://OPENDATACOMMUNITIES.ORG/ID/METROPOLITAN-DISTRICT-COUNCIL/WALSALL,30/06/2017,CHANGE & GOVERNANCE,ASDA STORES,04/04/2017,H59620170406CEGQFEFPX-1,0.16,YOUNG PERSONS HOMELESS SERVICE-GENERAL PROVISIONS-PROVISIONS,GROCERY STORES AND SUPERMARKETS,GPC
WALSALL COUNCIL,HTTP://OPENDATACOMMUNITIES.ORG/ID/METROPOLITAN-DISTRICT-COUNCIL/WALSALL,30/06/2017,CHANGE & GOVERNANCE,ASDA STORES,04/04/2017,H59620170406CEGQFEFPX-2,0.65,YOUNG PERSONS HOMELESS SERVICE-GENERAL PROVISIONS-PROVISIONS,GROCERY STORES AND SUPERMARKETS,GPC
WALSALL COUNCIL,HTTP://OPENDATACOMMUNITIES.ORG/ID/METROPOLITAN-DISTRICT-COUNCIL/WALSALL,30/06/2017,CHANGE & GOVERNANCE,ASDA STORES,04/04/2017,H59620170406CEGQFEFPX-3,19.05,YOUNG PERSONS HOMELESS SERVICE-GENERAL PROVISIONS-PROVISIONS,GROCERY STORES AND SUPERMARKETS,GPC
WALSALL COUNCIL,HTTP://OPENDATACOMMUNITIES.ORG/ID/METROPOLITAN-DISTRICT-COUNCIL/WALSALL,30/06/2017,ECONOMY & ENVIRONMENT,B&M RETAIL LTD,04/04/2017,H59620170406CIHCWHGUT-1,12.98,WALSALL OUTDOOR ADVENTURE CENT-CLEANING MATERIALS,DISCOUNT STORES,GPC
WALSALL COUNCIL,HTTP://OPENDATACOMMUNITIES.ORG/ID/METROPOLITAN-DISTRICT-COUNCIL/WALSALL,30/06/2017,ECONOMY & ENVIRONMENT,ECCTIS LTD,04/04/2017,H59620170406CPRNVNXWG-1,30.45,YEI (IMPACT) PROGRAMME-MISCELLANEOUS SUPPLIES,PROFESSIONAL SERVICES,GPC
WALSALL COUNCIL,HTTP://OPENDATACOMMUNITIES.ORG/ID/METROPOLITAN-DISTRICT-COUNCIL/WALSALL,30/06/2017,ECONOMY & ENVIRONMENT,ECCTIS LTD,04/04/2017,H59620170406CPRNVNXWG-2,30.45,YEI ESF FUNDING-MISCELLANEOUS SUPPLIES,PROFESSIONAL SERVICES,GPC
WALSALL COUNCIL,HTTP://OPENDATACOMMUNITIES.ORG/ID/METROPOLITAN-DISTRICT-COUNCIL/WALSALL,30/06/2017,CHANGE & GOVERNANCE,BULL DOG APPLIANCES LT,04/04/2017,H59620170406CTITSHOQS-1,474.00,WALSALL CRISIS SUPPORT SCHEME-FURNITURE & EQUIPMENT,HOUSEHOLD APPLIANCE STORES,GPC
WALSALL COUNCIL,HTTP://OPENDATACOMMUNITIES.ORG/ID/METROPOLITAN-DISTRICT-COUNCIL/WALSALL,30/06/2017,CHANGE & GOVERNANCE,ARTHUR BRETT CATER,04/04/2017,H59620170406DCOJUOEQM-1,75.01,CA MOORCROFT WOOD-FRUIT & VEGETABLES OTHER-PROVI,MISCELLANEOUS FOOD STORES & CONVENIENCE STORES,GPC
WALSALL COUNCIL,HTTP://OPENDATACOMMUNITIES.ORG/ID/METROPOLITAN-DISTRICT-COUNCIL/WALSALL,30/06/2017,CHANGE & GOVERNANCE,BLAKEMORE FOODSERVICE,04/04/2017,H59620170406DELLFKBVF-1,105.13,CA BEACON PRIMARY SCHOOL-FROZEN FOODS-PROVISIONS,CATERERS,GPC
WALSALL COUNCIL,HTTP://OPENDATACOMMUNITIES.ORG/ID/METROPOLITAN-DISTRICT-COUNCIL/WALSALL,30/06/2017,CHANGE & GOVERNANCE,BLAKEMORE FOODSERVICE,04/04/2017,H59620170406DMMQCSOLN-1,107.76,CA BARCROFT D/C-FROZEN FOODS-PROVISIONS,CATERERS,GPC
WALSALL COUNCIL,HTTP://OPENDATACOMMUNITIES.ORG/ID/METROPOLITAN-DISTRICT-COUNCIL/WALSALL,30/06/2017,CHANGE & GOVERNANCE,BULL DOG APPLIANCES LT,04/04/2017,H59620170406DSUTCLGTR-1,333.00,WALSALL CRISIS SUPPORT SCHEME-FURNITURE & EQUIPMENT,HOUSEHOLD APPLIANCE STORES,GPC
WALSALL COUNCIL,HTTP://OPENDATACOMMUNITIES.ORG/ID/METROPOLITAN-DISTRICT-COUNCIL/WALSALL,30/06/2017,CHILDRENS SERVICES,PAYPAL *AFP,04/04/2017,H59620170406EATCKAOBV-1,359.60,"CHUCKERY PRIMARY SCHOOL-REPAIRS,ALTERATIONS & MAINTENA",BOOK STORES,GPC
WALSALL COUNCIL,HTTP://OPENDATACOMMUNITIES.ORG/ID/METROPOLITAN-DISTRICT-COUNCIL/WALSALL,30/06/2017,CHANGE & GOVERNANCE,BLAKEMORE FOODSERVICE,04/04/2017,H59620170406EDGLSHUEU-1,177.22,CA CROFT COMMUNITY PRIMARY SCH-FROZEN FOODS-PROVISIONS,CATERERS,GPC
WALSALL COUNCIL,HTTP://OPENDATACOMMUNITIES.ORG/ID/METROPOLITAN-DISTRICT-COUNCIL/WALSALL,30/06/2017,CHANGE & GOVERNANCE,NOBISCO LTD,04/04/2017,H59620170406EIWZKSFDY-1,138.65,CA BEACON PRIMARY SCHOOL-PAYMENT TO CONTRACTOR EXTERNAL,"CLEANING AND MAINTENANCE, JANITORIAL SERVICES",GPC
WALSALL COUNCIL,HTTP://OPENDATACOMMUNITIES.ORG/ID/METROPOLITAN-DISTRICT-COUNCIL/WALSALL,30/06/2017,CHANGE & GOVERNANCE,BLAKEMORE FOODSERVICE,04/04/2017,H59620170406EKBDCLHSP-1,48.84,CA ST MICHAELS C.E. PRIMARY SC-DRY FOODS-PROVISIONS,CATERERS,GPC
WALSALL COUNCIL,HTTP://OPENDATACOMMUNITIES.ORG/ID/METROPOLITAN-DISTRICT-COUNCIL/WALSALL,30/06/2017,CHANGE & GOVERNANCE,BLAKEMORE FOODSERVICE,04/04/2017,H59620170406EKBDCLHSP-2,226.02,CA ST MICHAELS C.E. PRIMARY SC-DRY FOODS-PROVISIONS,CATERERS,GPC
WALSALL COUNCIL,HTTP://OPENDATACOMMUNITIES.ORG/ID/METROPOLITAN-DISTRICT-COUNCIL/WALSALL,30/06/2017,CHANGE & GOVERNANCE,BLAKEMORE FOODSERVICE,04/04/2017,H59620170406EKEBKYVHU-1,10.35,CA JANE LANE SPECIAL SCHOOL-FROZEN FOODS-PROVISIONS,CATERERS,GPC
WALSALL COUNCIL,HTTP://OPENDATACOMMUNITIES.ORG/ID/METROPOLITAN-DISTRICT-COUNCIL/WALSALL,30/06/2017,CHANGE & GOVERNANCE,NOBISCO LTD,04/04/2017,H59620170406ENJFKGMIN-1,74.10,CA ELMORE GREEN PRIMARY SCHOOL-DISPOSABLES-PROVISIONS,"CLEANING AND MAINTENANCE, JANITORIAL SERVICES",GPC
WALSALL COUNCIL,HTTP://OPENDATACOMMUNITIES.ORG/ID/METROPOLITAN-DISTRICT-COUNCIL/WALSALL,30/06/2017,ECONOMY & ENVIRONMENT,TRAVEL WEST MIDLAN,04/04/2017,H59620170406EOUVARIYL-1,31.25,YEI (IMPACT) PROGRAMME-MISCELLANEOUS SUPPLIES,BUS LINES,GPC
WALSALL COUNCIL,HTTP://OPENDATACOMMUNITIES.ORG/ID/METROPOLITAN-DISTRICT-COUNCIL/WALSALL,30/06/2017,ECONOMY & ENVIRONMENT,TRAVEL WEST MIDLAN,04/04/2017,H59620170406EOUVARIYL-2,31.25,YEI ESF FUNDING-MISCELLANEOUS SUPPLIES,BUS LINES,GPC
WALSALL COUNCIL,HTTP://OPENDATACOMMUNITIES.ORG/ID/METROPOLITAN-DISTRICT-COUNCIL/WALSALL,30/06/2017,CHILDRENS SERVICES,SUPPLIES TEAM,04/04/2017,H59620170406EPCRSFREZ-1,1.30,PARENTING TEAM-STATIONERY & GENERAL SUPPLIES-,"OFFICE, SCHOOL SUPPLY, AND STATIONERY STORES",GPC
WALSALL COUNCIL,HTTP://OPENDATACOMMUNITIES.ORG/ID/METROPOLITAN-DISTRICT-COUNCIL/WALSALL,30/06/2017,ECONOMY & ENVIRONMENT,GENERAL BUILDING PLASTICS,04/04/2017,H59620170406EQHPSHFBR-1,58.92,"ARBORETUM HLF-REPAIRS,ALTERATIONS & MAINTENA",LUMBER & BUILDING MATERIALS STORES,GPC
WALSALL COUNCIL,HTTP://OPENDATACOMMUNITIES.ORG/ID/METROPOLITAN-DISTRICT-COUNCIL/WALSALL,30/06/2017,CHILDRENS SERVICES,LONDON MIDLAND TIC,04/04/2017,H59620170406EWZUXQAWI-1,143.40,LOOKED AFTER CHILDRENS SOCIAL -SUPPORT UNDER SECTION 23 OF TH,PASSENGER RAILWAYS,GPC
WALSALL COUNCIL,HTTP://OPENDATACOMMUNITIES.ORG/ID/METROPOLITAN-DISTRICT-COUNCIL/WALSALL,30/06/2017,CHANGE & GOVERNANCE,BLAKEMORE FOODSERVICE,04/04/2017,H59620170406EXSGJMAKF-1,-12.26,CA WATLING STREET PRIMARY SCHO-DRY FOODS-PROVISIONS,CATERERS,GPC
WALSALL COUNCIL,HTTP://OPENDATACOMMUNITIES.ORG/ID/METROPOLITAN-DISTRICT-COUNCIL/WALSALL,30/06/2017,CHANGE & GOVERNANCE,BLAKEMORE FOODSERVICE,04/04/2017,H59620170406FFKEJBYIB-1,-10.90,CA TOWN HALL RESTAURANT - CATE-FROZEN FOODS-PROVISIONS,CATERERS,GPC
WALSALL COUNCIL,HTTP://OPENDATACOMMUNITIES.ORG/ID/METROPOLITAN-DISTRICT-COUNCIL/WALSALL,30/06/2017,CHANGE & GOVERNANCE,BLAKEMORE FOODSERVICE,04/04/2017,H59620170406FJVCBXUXL-1,-31.68,CA LEIGHSWOOD PRIMARY SCHOOL-DRY FOODS-PROVISIONS,CATERERS,GPC
WALSALL COUNCIL,HTTP://OPENDATACOMMUNITIES.ORG/ID/METROPOLITAN-DISTRICT-COUNCIL/WALSALL,30/06/2017,CHANGE & GOVERNANCE,BLAKEMORE FOODSERVICE,04/04/2017,H59620170406FNLCVPFRU-1,92.74,CA OLD HALL SPECIAL SCHOOL-FROZEN FOODS-PROVISIONS,CATERERS,GPC
WALSALL COUNCIL,HTTP://OPENDATACOMMUNITIES.ORG/ID/METROPOLITAN-DISTRICT-COUNCIL/WALSALL,30/06/2017,CHANGE & GOVERNANCE,CHICKEN JOES LTD,04/04/2017,H59620170406FOUADSSBL-1,199.97,CA ST JOHNS C.E. PRIMARY SCHOO-FROZEN FOODS-PROVISIONS,CATERERS,GPC
WALSALL COUNCIL,HTTP://OPENDATACOMMUNITIES.ORG/ID/METROPOLITAN-DISTRICT-COUNCIL/WALSALL,30/06/2017,ECONOMY & ENVIRONMENT,TESCO DIRECT,04/04/2017,H59620170406FPRJQXIUP-1,27.00,YEI (IMPACT) PROGRAMME-MISCELLANEOUS SUPPLIES,MISCELLANEOUS AND SPECIALTY RETAIL STORES,GPC
WALSALL COUNCIL,HTTP://OPENDATACOMMUNITIES.ORG/ID/METROPOLITAN-DISTRICT-COUNCIL/WALSALL,30/06/2017,ECONOMY & ENVIRONMENT,TESCO DIRECT,04/04/2017,H59620170406FPRJQXIUP-2,27.00,YEI ESF FUNDING-MISCELLANEOUS SUPPLIES,MISCELLANEOUS AND SPECIALTY RETAIL STORES,GPC
WALSALL COUNCIL,HTTP://OPENDATACOMMUNITIES.ORG/ID/METROPOLITAN-DISTRICT-COUNCIL/WALSALL,30/06/2017,CHANGE & GOVERNANCE,BLAKEMORE FOODSERVICE,04/04/2017,H59620170406FQSPOWMJX-1,7.99,CA ST MICHAELS C.E. PRIMARY SC-DRY FOODS-PROVISIONS,CATERERS,GPC
WALSALL COUNCIL,HTTP://OPENDATACOMMUNITIES.ORG/ID/METROPOLITAN-DISTRICT-COUNCIL/WALSALL,30/06/2017,CHANGE & GOVERNANCE,ARTHUR BRETT CATER,04/04/2017,H59620170406FQTGPQOMR-1,72.35,CA BEACON PRIMARY SCHOOL-FRUIT & VEGETABLES OTHER-PROVI,MISCELLANEOUS FOOD STORES & CONVENIENCE STORES,GPC
WALSALL COUNCIL,HTTP://OPENDATACOMMUNITIES.ORG/ID/METROPOLITAN-DISTRICT-COUNCIL/WALSALL,30/06/2017,SOCIAL CARE & INCLUSION,HMCOURTS-SERVICE.G,04/04/2017,H59620170406FUNMPKPYI-1,20.00,MENTAL HEALTH OUT-OF-HOURS SER-MISC FEES AND EXPENSES,FINES,GPC
WALSALL COUNCIL,HTTP://OPENDATACOMMUNITIES.ORG/ID/METROPOLITAN-DISTRICT-COUNCIL/WALSALL,30/06/2017,ECONOMY & ENVIRONMENT,SUPPLIES TEAM,04/04/2017,H59620170406FUNYWPRDG-1,86.40,CENTRALISED STATIONARY-STATIONERY & GENERAL SUPPLIES-,"OFFICE, SCHOOL SUPPLY, AND STATIONERY STORES",GPC
WALSALL COUNCIL,HTTP://OPENDATACOMMUNITIES.ORG/ID/METROPOLITAN-DISTRICT-COUNCIL/WALSALL,30/06/2017,CHANGE & GOVERNANCE,ARTHUR BRETT CATER,04/04/2017,H59620170406GBTFPMOTO-1,16.94,CA CROFT COMMUNITY PRIMARY SCH-FRUIT & VEGETABLES OTHER-PROVI,MISCELLANEOUS FOOD STORES & CONVENIENCE STORES,GPC
WALSALL COUNCIL,HTTP://OPENDATACOMMUNITIES.ORG/ID/METROPOLITAN-DISTRICT-COUNCIL/WALSALL,30/06/2017,CHANGE & GOVERNANCE,BLAKEMORE FOODSERVICE,04/04/2017,H59620170406GFDQDDVDX-1,9.50,CA ST MICHAELS C.E. PRIMARY SC-DRY FOODS-PROVISIONS,CATERERS,GPC
WALSALL COUNCIL,HTTP://OPENDATACOMMUNITIES.ORG/ID/METROPOLITAN-DISTRICT-COUNCIL/WALSALL,30/06/2017,CHANGE & GOVERNANCE,BULL DOG APPLIANCES LT,04/04/2017,H59620170406GIRWIZHUC-1,357.00,WALSALL CRISIS SUPPORT SCHEME-FURNITURE & EQUIPMENT,HOUSEHOLD APPLIANCE STORES,GPC
WALSALL COUNCIL,HTTP://OPENDATACOMMUNITIES.ORG/ID/METROPOLITAN-DISTRICT-COUNCIL/WALSALL,30/06/2017,CHANGE & GOVERNANCE,CHICKEN JOES LTD,04/04/2017,H59620170406GQJIHXWUB-1,32.27,CA LEIGHSWOOD PRIMARY SCHOOL-FROZEN FOODS-PROVISIONS,CATERERS,GPC
WALSALL COUNCIL,HTTP://OPENDATACOMMUNITIES.ORG/ID/METROPOLITAN-DISTRICT-COUNCIL/WALSALL,30/06/2017,CHANGE & GOVERNANCE,CHICKEN JOES LTD,04/04/2017,H59620170406GQVXQVUBD-1,43.96,CA ST MICHAELS C.E. PRIMARY SC-FROZEN FOODS-PROVISIONS,CATERERS,GPC
WALSALL COUNCIL,HTTP://OPENDATACOMMUNITIES.ORG/ID/METROPOLITAN-DISTRICT-COUNCIL/WALSALL,30/06/2017,CHILDRENS SERVICES,ALDI,04/04/2017,H59620170406GRSKSDYRP-1,3.58,PARENTING TEAM-FOOD AND BEVERAGES-PROVISIONS,GROCERY STORES AND SUPERMARKETS,GPC
WALSALL COUNCIL,HTTP://OPENDATACOMMUNITIES.ORG/ID/METROPOLITAN-DISTRICT-COUNCIL/WALSALL,30/06/2017,CHILDRENS SERVICES,ALDI,04/04/2017,H59620170406GRSKSDYRP-2,5.08,PARENTING TEAM-FOOD AND BEVERAGES-PROVISIONS,GROCERY STORES AND SUPERMARKETS,GPC
WALSALL COUNCIL,HTTP://OPENDATACOMMUNITIES.ORG/ID/METROPOLITAN-DISTRICT-COUNCIL/WALSALL,30/06/2017,CHILDRENS SERVICES,W M MORRISON PLC,04/04/2017,H59620170406GTNCGNSKQ-1,25.94,"43A HILTON ROAD, WILLENHALL-FOOD AND BEVERAGES-PROVISIONS",GROCERY STORES AND SUPERMARKETS,GPC
WALSALL COUNCIL,HTTP://OPENDATACOMMUNITIES.ORG/ID/METROPOLITAN-DISTRICT-COUNCIL/WALSALL,30/06/2017,CHILDRENS SERVICES,W M MORRISON PLC,04/04/2017,H59620170406GTNCGNSKQ-2,61.37,"43A HILTON ROAD, WILLENHALL-FOOD AND BEVERAGES-PROVISIONS",GROCERY STORES AND SUPERMARKETS,GPC
WALSALL COUNCIL,HTTP://OPENDATACOMMUNITIES.ORG/ID/METROPOLITAN-DISTRICT-COUNCIL/WALSALL,30/06/2017,CHANGE & GOVERNANCE,BLAKEMORE FOODSERVICE,04/04/2017,H59620170406GTZJBFKHY-1,320.92,CA RADLEYS PRIMARY SCHOOL-DRY FOODS-PROVISIONS,CATERERS,GPC
WALSALL COUNCIL,HTTP://OPENDATACOMMUNITIES.ORG/ID/METROPOLITAN-DISTRICT-COUNCIL/WALSALL,30/06/2017,CHANGE & GOVERNANCE,BLAKEMORE FOODSERVICE,04/04/2017,H59620170406GTZJBFKHY-2,101.64,CA RADLEYS PRIMARY SCHOOL-DRY FOODS-PROVISIONS,CATERERS,GPC
WALSALL COUNCIL,HTTP://OPENDATACOMMUNITIES.ORG/ID/METROPOLITAN-DISTRICT-COUNCIL/WALSALL,30/06/2017,CHANGE & GOVERNANCE,BLAKEMORE FOODSERVICE,04/04/2017,H59620170406GWZOOQCGI-1,182.00,TOWN HALL RESTAURANT BISTRO-DRY FOODS-PROVISIONS,CATERERS,GPC
WALSALL COUNCIL,HTTP://OPENDATACOMMUNITIES.ORG/ID/METROPOLITAN-DISTRICT-COUNCIL/WALSALL,30/06/2017,CHILDRENS SERVICES,ASDA STORES,04/04/2017,H59620170406HHUFFCHGF-1,2.87,LOCALITY FAMILY SUPPORT-WEST-FOOD AND BEVERAGES-PROVISIONS,GROCERY STORES AND SUPERMARKETS,GPC
WALSALL COUNCIL,HTTP://OPENDATACOMMUNITIES.ORG/ID/METROPOLITAN-DISTRICT-COUNCIL/WALSALL,30/06/2017,ECONOMY & ENVIRONMENT,SUPPLIES TEAM,04/04/2017,H59620170406HOHCLHFYH-1,151.80,YEI (IMPACT) PROGRAMME-STATIONERY & GENERAL SUPPLIES-,"OFFICE, SCHOOL SUPPLY, AND STATIONERY STORES",GPC
WALSALL COUNCIL,HTTP://OPENDATACOMMUNITIES.ORG/ID/METROPOLITAN-DISTRICT-COUNCIL/WALSALL,30/06/2017,CHANGE & GOVERNANCE,BLAKEMORE FOODSERVICE,04/04/2017,H59620170406HQSNGJWUE-1,10.90,CA TOWN HALL RESTAURANT - CATE-FROZEN FOODS-PROVISIONS,CATERERS,GPC
WALSALL COUNCIL,HTTP://OPENDATACOMMUNITIES.ORG/ID/METROPOLITAN-DISTRICT-COUNCIL/WALSALL,30/06/2017,CHANGE & GOVERNANCE,ASDA STORES,04/04/2017,H59620170406HVHGHFJCW-1,0.32,ACCOMMODATION SERVICES MANAGEM-FOOD AND BEVERAGES-PROVISIONS,GROCERY STORES AND SUPERMARKETS,GPC
WALSALL COUNCIL,HTTP://OPENDATACOMMUNITIES.ORG/ID/METROPOLITAN-DISTRICT-COUNCIL/WALSALL,30/06/2017,CHANGE & GOVERNANCE,ASDA STORES,04/04/2017,H59620170406HVHGHFJCW-2,20.83,ACCOMMODATION SERVICES MANAGEM-FOOD AND BEVERAGES-PROVISIONS,GROCERY STORES AND SUPERMARKETS,GPC
WALSALL COUNCIL,HTTP://OPENDATACOMMUNITIES.ORG/ID/METROPOLITAN-DISTRICT-COUNCIL/WALSALL,30/06/2017,CHANGE & GOVERNANCE,ASDA STORES,04/04/2017,H59620170406HVHGHFJCW-3,30.57,ACCOMMODATION SERVICES MANAGEM-FOOD AND BEVERAGES-PROVISIONS,GROCERY STORES AND SUPERMARKETS,GPC
WALSALL COUNCIL,HTTP://OPENDATACOMMUNITIES.ORG/ID/METROPOLITAN-DISTRICT-COUNCIL/WALSALL,30/06/2017,ECONOMY & ENVIRONMENT,NEW LOOK 1880,04/04/2017,H59620170406HVUIHISEE-1,15.00,YEI (IMPACT) PROGRAMME-MISCELLANEOUS SUPPLIES,WOMENS READY TO WEAR STORES,GPC
WALSALL COUNCIL,HTTP://OPENDATACOMMUNITIES.ORG/ID/METROPOLITAN-DISTRICT-COUNCIL/WALSALL,30/06/2017,ECONOMY & ENVIRONMENT,NEW LOOK 1880,04/04/2017,H59620170406HVUIHISEE-2,15.00,YEI ESF FUNDING-MISCELLANEOUS SUPPLIES,WOMENS READY TO WEAR STORES,GPC
WALSALL COUNCIL,HTTP://OPENDATACOMMUNITIES.ORG/ID/METROPOLITAN-DISTRICT-COUNCIL/WALSALL,30/06/2017,CHANGE & GOVERNANCE,CHICKEN JOES LTD,04/04/2017,H59620170406HZEJIWSHH-1,79.03,CA RADLEYS PRIMARY SCHOOL-FROZEN FOODS-PROVISIONS,CATERERS,GPC
WALSALL COUNCIL,HTTP://OPENDATACOMMUNITIES.ORG/ID/METROPOLITAN-DISTRICT-COUNCIL/WALSALL,30/06/2017,ECONOMY & ENVIRONMENT,MONKEYOFFICE.CO.UK,04/04/2017,H59620170406IEXCLEDFY-1,82.87,COMMUNITY LIASON-GENERAL MATERIALS,"OFFICE, SCHOOL SUPPLY, AND STATIONERY STORES",GPC
WALSALL COUNCIL,HTTP://OPENDATACOMMUNITIES.ORG/ID/METROPOLITAN-DISTRICT-COUNCIL/WALSALL,30/06/2017,CHANGE & GOVERNANCE,ARTHUR BRETT CATER,04/04/2017,H59620170406IHOTCEHJU-1,47.16,CA ST FRANCIS CATHOLIC PRIMARY-FRUIT & VEGETABLES OTHER-PROVI,MISCELLANEOUS FOOD STORES & CONVENIENCE STORES,GPC
WALSALL COUNCIL,HTTP://OPENDATACOMMUNITIES.ORG/ID/METROPOLITAN-DISTRICT-COUNCIL/WALSALL,30/06/2017,CHILDRENS SERVICES,AMAZON UK MARKETPLACE,04/04/2017,H59620170406IJJPYYMSP-1,6.12,ADMINISTRATIVE SUPPLIES-GENERAL MATERIALS,MISCELLANEOUS AND SPECIALTY RETAIL STORES,GPC
WALSALL COUNCIL,HTTP://OPENDATACOMMUNITIES.ORG/ID/METROPOLITAN-DISTRICT-COUNCIL/WALSALL,30/06/2017,CHILDRENS SERVICES,SUPPLIES TEAM,04/04/2017,H59620170406IKWHNVTNN-1,75.65,FAMILY PLACEMENTS-STATIONERY & GENERAL SUPPLIES-,"OFFICE, SCHOOL SUPPLY, AND STATIONERY STORES",GPC
WALSALL COUNCIL,HTTP://OPENDATACOMMUNITIES.ORG/ID/METROPOLITAN-DISTRICT-COUNCIL/WALSALL,30/06/2017,CHANGE & GOVERNANCE,BLAKEMORE FOODSERVICE,04/04/2017,H59620170406IPLTJYYUO-1,10.90,CA TOWN HALL RESTAURANT - CATE-FROZEN FOODS-PROVISIONS,CATERERS,GPC
WALSALL COUNCIL,HTTP://OPENDATACOMMUNITIES.ORG/ID/METROPOLITAN-DISTRICT-COUNCIL/WALSALL,30/06/2017,ECONOMY & ENVIRONMENT,W M MORRISONS,04/04/2017,H59620170406IZRWGFKPC-1,4.00,WALSALL OUTDOOR ADVENTURE CENT-FOOD AND BEVERAGES-PROVISIONS,GROCERY STORES AND SUPERMARKETS,GPC
WALSALL COUNCIL,HTTP://OPENDATACOMMUNITIES.ORG/ID/METROPOLITAN-DISTRICT-COUNCIL/WALSALL,30/06/2017,ECONOMY & ENVIRONMENT,W M MORRISONS,04/04/2017,H59620170406IZRWGFKPC-2,32.52,WALSALL OUTDOOR ADVENTURE CENT-FOOD AND BEVERAGES-PROVISIONS,GROCERY STORES AND SUPERMARKETS,GPC
WALSALL COUNCIL,HTTP://OPENDATACOMMUNITIES.ORG/ID/METROPOLITAN-DISTRICT-COUNCIL/WALSALL,30/06/2017,CHILDRENS SERVICES,AMAZON UK MARKETPLACE,04/04/2017,H59620170406JGIVSUUZG-1,22.21,PHASE 1 RESOURCES-GENERAL MATERIALS,MISCELLANEOUS AND SPECIALTY RETAIL STORES,GPC
WALSALL COUNCIL,HTTP://OPENDATACOMMUNITIES.ORG/ID/METROPOLITAN-DISTRICT-COUNCIL/WALSALL,30/06/2017,CHANGE & GOVERNANCE,ARTHUR BRETT CATER,04/04/2017,H59620170406JPPIZVBGX-1,26.98,CA ST MICHAELS C.E. PRIMARY SC-FRUIT & VEGETABLES OTHER-PROVI,MISCELLANEOUS FOOD STORES & CONVENIENCE STORES,GPC
WALSALL COUNCIL,HTTP://OPENDATACOMMUNITIES.ORG/ID/METROPOLITAN-DISTRICT-COUNCIL/WALSALL,30/06/2017,CHANGE & GOVERNANCE,CHICKEN JOES LTD,04/04/2017,H59620170406JUYCIWFEQ-1,45.14,CA RUSHALL JMI SCHOOL-FROZEN FOODS-PROVISIONS,CATERERS,GPC
WALSALL COUNCIL,HTTP://OPENDATACOMMUNITIES.ORG/ID/METROPOLITAN-DISTRICT-COUNCIL/WALSALL,30/06/2017,CHANGE & GOVERNANCE,CHICKEN JOES LTD,04/04/2017,H59620170406JZWVMKSBG-1,32.27,CA CASTLEFORT JMI SCHOOL-FROZEN FOODS-PROVISIONS,CATERERS,GPC
WALSALL COUNCIL,HTTP://OPENDATACOMMUNITIES.ORG/ID/METROPOLITAN-DISTRICT-COUNCIL/WALSALL,30/06/2017,CHANGE & GOVERNANCE,ARTHUR BRETT CATER,04/04/2017,H59620170406KCKBGILUJ-1,96.73,CA RADLEYS PRIMARY SCHOOL-FRUIT & VEGETABLES OTHER-PROVI,MISCELLANEOUS FOOD STORES & CONVENIENCE STORES,GPC
WALSALL COUNCIL,HTTP://OPENDATACOMMUNITIES.ORG/ID/METROPOLITAN-DISTRICT-COUNCIL/WALSALL,30/06/2017,CHANGE & GOVERNANCE,SS + JR JOHAL 31968,04/04/2017,H59620170406KHVLJVSGK-1,15.85,YOUNG PERSONS HOMELESS SERVICE-GENERAL PROVISIONS-PROVISIONS,GROCERY STORES AND SUPERMARKETS,GPC
WALSALL COUNCIL,HTTP://OPENDATACOMMUNITIES.ORG/ID/METROPOLITAN-DISTRICT-COUNCIL/WALSALL,30/06/2017,CHANGE & GOVERNANCE,BLAKEMORE FOODSERVICE,04/04/2017,H59620170406KQJABYLQE-1,120.43,CA FIBBERSLEY PARK PRIMARY SCH-FROZEN FOODS-PROVISIONS,CATERERS,GPC
WALSALL COUNCIL,HTTP://OPENDATACOMMUNITIES.ORG/ID/METROPOLITAN-DISTRICT-COUNCIL/WALSALL,30/06/2017,CHANGE & GOVERNANCE,TESCO STORES 6161,04/04/2017,H59620170406LARYDJOPC-1,20.00,YOUNG PERSONS HOMELESS SERVICE-FOOD AND BEVERAGES-PROVISIONS,GROCERY STORES AND SUPERMARKETS,GPC
WALSALL COUNCIL,HTTP://OPENDATACOMMUNITIES.ORG/ID/METROPOLITAN-DISTRICT-COUNCIL/WALSALL,30/06/2017,ECONOMY & ENVIRONMENT,LONDON MIDLAND TIC,04/04/2017,H59620170406LKXMRQOYQ-1,22.20,YEI (IMPACT) PROGRAMME-MISCELLANEOUS SUPPLIES,PASSENGER RAILWAYS,GPC
WALSALL COUNCIL,HTTP://OPENDATACOMMUNITIES.ORG/ID/METROPOLITAN-DISTRICT-COUNCIL/WALSALL,30/06/2017,ECONOMY & ENVIRONMENT,LONDON MIDLAND TIC,04/04/2017,H59620170406LKXMRQOYQ-2,22.20,YEI ESF FUNDING-MISCELLANEOUS SUPPLIES,PASSENGER RAILWAYS,GPC
WALSALL COUNCIL,HTTP://OPENDATACOMMUNITIES.ORG/ID/METROPOLITAN-DISTRICT-COUNCIL/WALSALL,30/06/2017,CHANGE & GOVERNANCE,ARTHUR BRETT CATER,04/04/2017,H59620170406LTFFLCUTL-1,54.68,CA FIBBERSLEY PARK PRIMARY SCH-FRUIT & VEGETABLES OTHER-PROVI,MISCELLANEOUS FOOD STORES & CONVENIENCE STORES,GPC
WALSALL COUNCIL,HTTP://OPENDATACOMMUNITIES.ORG/ID/METROPOLITAN-DISTRICT-COUNCIL/WALSALL,30/06/2017,CHANGE & GOVERNANCE,CHICKEN JOES LTD,04/04/2017,H59620170406LYGXCJFXY-1,65.34,CA FIBBERSLEY PARK PRIMARY SCH-FROZEN FOODS-PROVISIONS,CATERERS,GPC
WALSALL COUNCIL,HTTP://OPENDATACOMMUNITIES.ORG/ID/METROPOLITAN-DISTRICT-COUNCIL/WALSALL,30/06/2017,CHANGE & GOVERNANCE,BLAKEMORE FOODSERVICE,04/04/2017,H59620170406LYOOALOHT-1,105.45,CA CASTLEFORT JMI SCHOOL-DRY FOODS-PROVISIONS,CATERERS,GPC
WALSALL COUNCIL,HTTP://OPENDATACOMMUNITIES.ORG/ID/METROPOLITAN-DISTRICT-COUNCIL/WALSALL,30/06/2017,CHILDRENS SERVICES,HOME BARGAINS,04/04/2017,H59620170406MBKHCRHXH-1,3.78,"EDGAR STAMMERS CHILDCARE SERVI-CROCKERY,HARDWARE & DISPOSABLE",HARDWARE STORES,GPC
WALSALL COUNCIL,HTTP://OPENDATACOMMUNITIES.ORG/ID/METROPOLITAN-DISTRICT-COUNCIL/WALSALL,30/06/2017,CHILDRENS SERVICES,COMFORT BEDS AND F,04/04/2017,H59620170406MDEWRPDFY-1,255.00,SAFEGUARDING & FAMILY SUPPORT-FURNITURE & EQUIPMENT,"EQUIPMENT, FURNITURE, AND HOME FURNISHINGS STORES ",GPC
WALSALL COUNCIL,HTTP://OPENDATACOMMUNITIES.ORG/ID/METROPOLITAN-DISTRICT-COUNCIL/WALSALL,30/06/2017,CHANGE & GOVERNANCE,WELSH BROS FOODS LTD,04/04/2017,H59620170406MWRQINXZF-1,-7.29,CA TOWN HALL RESTAURANT - CATE-MEAT-PROVISIONS,FREEZER AND LOCKER MEAT PROVISIONERS,GPC
WALSALL COUNCIL,HTTP://OPENDATACOMMUNITIES.ORG/ID/METROPOLITAN-DISTRICT-COUNCIL/WALSALL,30/06/2017,CHANGE & GOVERNANCE,CHICKEN JOES LTD,04/04/2017,H59620170406MXAGNIFKY-1,50.22,CA BEACON PRIMARY SCHOOL-FROZEN FOODS-PROVISIONS,CATERERS,GPC
WALSALL COUNCIL,HTTP://OPENDATACOMMUNITIES.ORG/ID/METROPOLITAN-DISTRICT-COUNCIL/WALSALL,30/06/2017,CHANGE & GOVERNANCE,ARTHUR BRETT CATER,04/04/2017,H59620170406MXXHPBYDK-1,38.01,CA TOWN HALL RESTAURANT - CATE-FRUIT & VEGETABLES OTHER-PROVI,MISCELLANEOUS FOOD STORES & CONVENIENCE STORES,GPC
WALSALL COUNCIL,HTTP://OPENDATACOMMUNITIES.ORG/ID/METROPOLITAN-DISTRICT-COUNCIL/WALSALL,30/06/2017,CHILDRENS SERVICES,B&M RETAIL LTD,04/04/2017,H59620170406NFCWXODTB-1,20.99,"43A HILTON ROAD, WILLENHALL-REPAIRS,ALTERATIONS & MAINTENA",DISCOUNT STORES,GPC
WALSALL COUNCIL,HTTP://OPENDATACOMMUNITIES.ORG/ID/METROPOLITAN-DISTRICT-COUNCIL/WALSALL,30/06/2017,CHANGE & GOVERNANCE,WELSH BROS FOODS LTD,04/04/2017,H59620170406NFRRABEON-1,40.79,TOWN HALL RESTAURANT BISTRO-MEAT-PROVISIONS,FREEZER AND LOCKER MEAT PROVISIONERS,GPC
WALSALL COUNCIL,HTTP://OPENDATACOMMUNITIES.ORG/ID/METROPOLITAN-DISTRICT-COUNCIL/WALSALL,30/06/2017,ECONOMY & ENVIRONMENT,NHBS LTD,04/04/2017,H59620170406NKEIPDETI-1,94.67,COMMUNITY LIASON-GENERAL MATERIALS,BOOK STORES,GPC
WALSALL COUNCIL,HTTP://OPENDATACOMMUNITIES.ORG/ID/METROPOLITAN-DISTRICT-COUNCIL/WALSALL,30/06/2017,CHANGE & GOVERNANCE,BLAKEMORE FOODSERVICE,04/04/2017,H59620170406NLBQGPUUT-1,-10.90,CA TOWN HALL RESTAURANT - CATE-FROZEN FOODS-PROVISIONS,CATERERS,GPC
WALSALL COUNCIL,HTTP://OPENDATACOMMUNITIES.ORG/ID/METROPOLITAN-DISTRICT-COUNCIL/WALSALL,30/06/2017,CHANGE & GOVERNANCE,BLAKEMORE FOODSERVICE,04/04/2017,H59620170406OFGUDMJZG-1,52.80,CA LEIGHSWOOD PRIMARY SCHOOL-DRY FOODS-PROVISIONS,CATERERS,GPC
WALSALL COUNCIL,HTTP://OPENDATACOMMUNITIES.ORG/ID/METROPOLITAN-DISTRICT-COUNCIL/WALSALL,30/06/2017,CHANGE & GOVERNANCE,BLAKEMORE FOODSERVICE,04/04/2017,H59620170406OFGUDMJZG-2,127.42,CA LEIGHSWOOD PRIMARY SCHOOL-DRY FOODS-PROVISIONS,CATERERS,GPC
WALSALL COUNCIL,HTTP://OPENDATACOMMUNITIES.ORG/ID/METROPOLITAN-DISTRICT-COUNCIL/WALSALL,30/06/2017,ECONOMY & ENVIRONMENT,TRAINLINE,04/04/2017,H59620170406OKBRGUKCF-1,56.15,NEW ART GALLERY - ADMIN-OFFICER/STAFF-PUBLIC TRANSPORT,PASSENGER RAILWAYS,GPC
WALSALL COUNCIL,HTTP://OPENDATACOMMUNITIES.ORG/ID/METROPOLITAN-DISTRICT-COUNCIL/WALSALL,30/06/2017,ECONOMY & ENVIRONMENT,TRAVEL WEST MIDLAN,04/04/2017,H59620170406OLBLFMEEG-1,27.25,YEI (IMPACT) PROGRAMME-MISCELLANEOUS SUPPLIES,BUS LINES,GPC
WALSALL COUNCIL,HTTP://OPENDATACOMMUNITIES.ORG/ID/METROPOLITAN-DISTRICT-COUNCIL/WALSALL,30/06/2017,ECONOMY & ENVIRONMENT,TRAVEL WEST MIDLAN,04/04/2017,H59620170406OLBLFMEEG-2,27.25,YEI ESF FUNDING-MISCELLANEOUS SUPPLIES,BUS LINES,GPC
WALSALL COUNCIL,HTTP://OPENDATACOMMUNITIES.ORG/ID/METROPOLITAN-DISTRICT-COUNCIL/WALSALL,30/06/2017,CHANGE & GOVERNANCE,CHICKEN JOES LTD,04/04/2017,H59620170406OVWSVFMSB-1,43.96,CA MOORCROFT WOOD-FROZEN FOODS-PROVISIONS,CATERERS,GPC
WALSALL COUNCIL,HTTP://OPENDATACOMMUNITIES.ORG/ID/METROPOLITAN-DISTRICT-COUNCIL/WALSALL,30/06/2017,CHANGE & GOVERNANCE,ARTHUR BRETT CATER,04/04/2017,H59620170406PGFCGRUDH-1,87.38,CA BIRCHILLS CE PRIMARY COMMUN-FRUIT & VEGETABLES OTHER-PROVI,MISCELLANEOUS FOOD STORES & CONVENIENCE STORES,GPC
WALSALL COUNCIL,HTTP://OPENDATACOMMUNITIES.ORG/ID/METROPOLITAN-DISTRICT-COUNCIL/WALSALL,30/06/2017,CHANGE & GOVERNANCE,BLAKEMORE FOODSERVICE,04/04/2017,H59620170406PHUNGCSBQ-1,39.60,CA ST JOHNS C.E. PRIMARY SCHOO-DRY FOODS-PROVISIONS,CATERERS,GPC
WALSALL COUNCIL,HTTP://OPENDATACOMMUNITIES.ORG/ID/METROPOLITAN-DISTRICT-COUNCIL/WALSALL,30/06/2017,CHANGE & GOVERNANCE,BLAKEMORE FOODSERVICE,04/04/2017,H59620170406PHUNGCSBQ-2,459.14,CA ST JOHNS C.E. PRIMARY SCHOO-DRY FOODS-PROVISIONS,CATERERS,GPC
WALSALL COUNCIL,HTTP://OPENDATACOMMUNITIES.ORG/ID/METROPOLITAN-DISTRICT-COUNCIL/WALSALL,30/06/2017,CHILDRENS SERVICES,AMAZON UK RETAIL,04/04/2017,H59620170406PJFNSYKPC-1,23.40,ADMINISTRATIVE SUPPLIES-GENERAL MATERIALS,OTHER DIRECT MARKETING-OTHER DIRECT MARKETERS,GPC
WALSALL COUNCIL,HTTP://OPENDATACOMMUNITIES.ORG/ID/METROPOLITAN-DISTRICT-COUNCIL/WALSALL,30/06/2017,CHANGE & GOVERNANCE,BLAKEMORE FOODSERVICE,04/04/2017,H59620170406PKMUCRHTX-1,72.62,CA RADLEYS PRIMARY SCHOOL-FROZEN FOODS-PROVISIONS,CATERERS,GPC
WALSALL COUNCIL,HTTP://OPENDATACOMMUNITIES.ORG/ID/METROPOLITAN-DISTRICT-COUNCIL/WALSALL,30/06/2017,CHANGE & GOVERNANCE,ARTHUR BRETT CATER,04/04/2017,H59620170406POURSJMUB-1,18.19,CA BLOXWICH C.E. JMI PRIMARY S-FRUIT & VEGETABLES OTHER-PROVI,MISCELLANEOUS FOOD STORES & CONVENIENCE STORES,GPC
WALSALL COUNCIL,HTTP://OPENDATACOMMUNITIES.ORG/ID/METROPOLITAN-DISTRICT-COUNCIL/WALSALL,30/06/2017,CHANGE & GOVERNANCE,AMAZON UK MARKETPLACE,04/04/2017,H59620170406PPJZQYDQI-1,15.80,AREA 3 - NORTH WALSALL-TOYS & GAMES-MATERIALS,MISCELLANEOUS AND SPECIALTY RETAIL STORES,GPC
WALSALL COUNCIL,HTTP://OPENDATACOMMUNITIES.ORG/ID/METROPOLITAN-DISTRICT-COUNCIL/WALSALL,30/06/2017,0,BT REPAYMENT WORKS,04/04/2017,H59620170406PQLRTIAKB-1,778.77,CFR 1147 NETWORK RAIL SCHEME --COSTS (NOT INTERNAL RECHARGES),TELECOMMUNICATION SERVICES,GPC
WALSALL COUNCIL,HTTP://OPENDATACOMMUNITIES.ORG/ID/METROPOLITAN-DISTRICT-COUNCIL/WALSALL,30/06/2017,CHILDRENS SERVICES,AMAZON PRIME,04/04/2017,H59620170406PWZRUWMJO-1,79.00,GENERAL RESOURCES & MISC-FEES & LICENCES-SERVICES,DIRECT MARKETING CONTINUITY SUBSCRIPTION MERCHANTS,GPC
WALSALL COUNCIL,HTTP://OPENDATACOMMUNITIES.ORG/ID/METROPOLITAN-DISTRICT-COUNCIL/WALSALL,30/06/2017,CHANGE & GOVERNANCE,BLAKEMORE FOODSERVICE,04/04/2017,H59620170406PXJRKQIQM-1,121.99,CA TOWN HALL RESTAURANT - CATE-DRY FOODS-PROVISIONS,CATERERS,GPC
WALSALL COUNCIL,HTTP://OPENDATACOMMUNITIES.ORG/ID/METROPOLITAN-DISTRICT-COUNCIL/WALSALL,30/06/2017,CHILDRENS SERVICES,WM MORRISON FOOD.COM,04/04/2017,H59620170406QCISYXLGR-1,1.26,FOOD TECHNOLOGY-GENERAL MATERIALS,GROCERY STORES AND SUPERMARKETS,GPC
WALSALL COUNCIL,HTTP://OPENDATACOMMUNITIES.ORG/ID/METROPOLITAN-DISTRICT-COUNCIL/WALSALL,30/06/2017,CHILDRENS SERVICES,WM MORRISON FOOD.COM,04/04/2017,H59620170406QCISYXLGR-2,77.26,FOOD TECHNOLOGY-GENERAL MATERIALS,GROCERY STORES AND SUPERMARKETS,GPC
WALSALL COUNCIL,HTTP://OPENDATACOMMUNITIES.ORG/ID/METROPOLITAN-DISTRICT-COUNCIL/WALSALL,30/06/2017,CHANGE & GOVERNANCE,WELSH BROS FOODS LTD,04/04/2017,H59620170406QDDWXKMET-1,-44.97,CA TOWN HALL RESTAURANT - CATE-MEAT-PROVISIONS,FREEZER AND LOCKER MEAT PROVISIONERS,GPC
WALSALL COUNCIL,HTTP://OPENDATACOMMUNITIES.ORG/ID/METROPOLITAN-DISTRICT-COUNCIL/WALSALL,30/06/2017,CHILDRENS SERVICES,SUPPLIES TEAM,04/04/2017,H59620170406QFRMBWEOZ-1,37.82,LOCALITY FAMILY SUPPORT-CENTRA-STATIONERY & GENERAL SUPPLIES-,"OFFICE, SCHOOL SUPPLY, AND STATIONERY STORES",GPC
WALSALL COUNCIL,HTTP://OPENDATACOMMUNITIES.ORG/ID/METROPOLITAN-DISTRICT-COUNCIL/WALSALL,30/06/2017,CHANGE & GOVERNANCE,ARTHUR BRETT CATER,04/04/2017,H59620170406QIGUSYYQE-1,42.42,CA LITTLE BLOXWICH CE PRIMARY -FOOD AND BEVERAGES-PROVISIONS,MISCELLANEOUS FOOD STORES & CONVENIENCE STORES,GPC
WALSALL COUNCIL,HTTP://OPENDATACOMMUNITIES.ORG/ID/METROPOLITAN-DISTRICT-COUNCIL/WALSALL,30/06/2017,CHANGE & GOVERNANCE,CHICKEN JOES LTD,04/04/2017,H59620170406QISHPGGWX-1,76.23,CA MEADOW VIEW JMI PRIMARY SCH-FROZEN FOODS-PROVISIONS,CATERERS,GPC
WALSALL COUNCIL,HTTP://OPENDATACOMMUNITIES.ORG/ID/METROPOLITAN-DISTRICT-COUNCIL/WALSALL,30/06/2017,CHANGE & GOVERNANCE,EDGBASTON PALACE,04/04/2017,H59620170406QMDVOELEY-1,310.00,BED & BREAKFAST PAYMENTS-HOTEL ACCOMMODATION-EMPLOYEES,"HOTELS, MOTELS, RESORTS",GPC
WALSALL COUNCIL,HTTP://OPENDATACOMMUNITIES.ORG/ID/METROPOLITAN-DISTRICT-COUNCIL/WALSALL,30/06/2017,CHILDRENS SERVICES,SUPPLIES TEAM,04/04/2017,H59620170406QPJKJXKOB-1,70.68,SAFEGUARDING & FAMILY SUPPORT-STATIONERY & GENERAL SUPPLIES-,"OFFICE, SCHOOL SUPPLY, AND STATIONERY STORES",GPC
WALSALL COUNCIL,HTTP://OPENDATACOMMUNITIES.ORG/ID/METROPOLITAN-DISTRICT-COUNCIL/WALSALL,30/06/2017,ECONOMY & ENVIRONMENT,SUPPLIES TEAM,04/04/2017,H59620170406RHDQLKRVI-1,40.58,CENTRALISED STATIONARY-STATIONERY & GENERAL SUPPLIES-,"OFFICE, SCHOOL SUPPLY, AND STATIONERY STORES",GPC
WALSALL COUNCIL,HTTP://OPENDATACOMMUNITIES.ORG/ID/METROPOLITAN-DISTRICT-COUNCIL/WALSALL,30/06/2017,CHANGE & GOVERNANCE,BLAKEMORE FOODSERVICE,04/04/2017,H59620170406RMJZVNFWD-1,61.71,CA LEIGHSWOOD PRIMARY SCHOOL-DRY FOODS-PROVISIONS,CATERERS,GPC
WALSALL COUNCIL,HTTP://OPENDATACOMMUNITIES.ORG/ID/METROPOLITAN-DISTRICT-COUNCIL/WALSALL,30/06/2017,CHANGE & GOVERNANCE,ARTHUR BRETT CATER,04/04/2017,H59620170406RPEOCHYRA-1,29.28,CA BUSILL JONES PRIMARY SCHOOL-FOOD AND BEVERAGES-PROVISIONS,MISCELLANEOUS FOOD STORES & CONVENIENCE STORES,GPC
WALSALL COUNCIL,HTTP://OPENDATACOMMUNITIES.ORG/ID/METROPOLITAN-DISTRICT-COUNCIL/WALSALL,30/06/2017,CHANGE & GOVERNANCE,SUPPLIES TEAM,04/04/2017,H59620170406SEOEKUXCU-1,457.92,PRINTING SERVICES-STATIONERY & GENERAL SUPPLIES-,"OFFICE, SCHOOL SUPPLY, AND STATIONERY STORES",GPC
WALSALL COUNCIL,HTTP://OPENDATACOMMUNITIES.ORG/ID/METROPOLITAN-DISTRICT-COUNCIL/WALSALL,30/06/2017,ECONOMY & ENVIRONMENT,PAYPAL *TWRYDERLTD,04/04/2017,H59620170406SGTKIHQFN-1,17.98,YEI (IMPACT) PROGRAMME-MISCELLANEOUS SUPPLIES,VARIETY STORES,GPC
WALSALL COUNCIL,HTTP://OPENDATACOMMUNITIES.ORG/ID/METROPOLITAN-DISTRICT-COUNCIL/WALSALL,30/06/2017,ECONOMY & ENVIRONMENT,PAYPAL *TWRYDERLTD,04/04/2017,H59620170406SGTKIHQFN-2,17.99,YEI ESF FUNDING-MISCELLANEOUS SUPPLIES,VARIETY STORES,GPC
WALSALL COUNCIL,HTTP://OPENDATACOMMUNITIES.ORG/ID/METROPOLITAN-DISTRICT-COUNCIL/WALSALL,30/06/2017,CHANGE & GOVERNANCE,BLAKEMORE FOODSERVICE,04/04/2017,H59620170406SJKSKHHTJ-1,40.02,CA RADLEYS PRIMARY SCHOOL-FROZEN FOODS-PROVISIONS,CATERERS,GPC
WALSALL COUNCIL,HTTP://OPENDATACOMMUNITIES.ORG/ID/METROPOLITAN-DISTRICT-COUNCIL/WALSALL,30/06/2017,ECONOMY & ENVIRONMENT,FOOTASYLUM,04/04/2017,H59620170406SSUIQHGAT-1,22.49,YEI (IMPACT) PROGRAMME-MISCELLANEOUS SUPPLIES,SPORTING GOODS STORES,GPC
WALSALL COUNCIL,HTTP://OPENDATACOMMUNITIES.ORG/ID/METROPOLITAN-DISTRICT-COUNCIL/WALSALL,30/06/2017,ECONOMY & ENVIRONMENT,FOOTASYLUM,04/04/2017,H59620170406SSUIQHGAT-2,22.50,YEI ESF FUNDING-MISCELLANEOUS SUPPLIES,SPORTING GOODS STORES,GPC
WALSALL COUNCIL,HTTP://OPENDATACOMMUNITIES.ORG/ID/METROPOLITAN-DISTRICT-COUNCIL/WALSALL,30/06/2017,CHANGE & GOVERNANCE,BULL DOG APPLIANCES LT,04/04/2017,H59620170406SSWUFNPGJ-1,186.00,WALSALL CRISIS SUPPORT SCHEME-CRISIS SUPPORT PAYMENTS,HOUSEHOLD APPLIANCE STORES,GPC
WALSALL COUNCIL,HTTP://OPENDATACOMMUNITIES.ORG/ID/METROPOLITAN-DISTRICT-COUNCIL/WALSALL,30/06/2017,CHILDRENS SERVICES,W M MORRISONS.COM,04/04/2017,H59620170406SWLVVPFND-1,17.58,BLUEBELLS-FOOD AND BEVERAGES-PROVISIONS,GROCERY STORES AND SUPERMARKETS,GPC
WALSALL COUNCIL,HTTP://OPENDATACOMMUNITIES.ORG/ID/METROPOLITAN-DISTRICT-COUNCIL/WALSALL,30/06/2017,CHILDRENS SERVICES,W M MORRISONS.COM,04/04/2017,H59620170406SWLVVPFND-2,80.07,BLUEBELLS-FOOD AND BEVERAGES-PROVISIONS,GROCERY STORES AND SUPERMARKETS,GPC
WALSALL COUNCIL,HTTP://OPENDATACOMMUNITIES.ORG/ID/METROPOLITAN-DISTRICT-COUNCIL/WALSALL,30/06/2017,ECONOMY & ENVIRONMENT,ECCTIS LTD,04/04/2017,H59620170406SYUBVPBJS-1,30.45,YEI (IMPACT) PROGRAMME-MISCELLANEOUS SUPPLIES,PROFESSIONAL SERVICES,GPC
WALSALL COUNCIL,HTTP://OPENDATACOMMUNITIES.ORG/ID/METROPOLITAN-DISTRICT-COUNCIL/WALSALL,30/06/2017,ECONOMY & ENVIRONMENT,ECCTIS LTD,04/04/2017,H59620170406SYUBVPBJS-2,30.45,YEI ESF FUNDING-MISCELLANEOUS SUPPLIES,PROFESSIONAL SERVICES,GPC
WALSALL COUNCIL,HTTP://OPENDATACOMMUNITIES.ORG/ID/METROPOLITAN-DISTRICT-COUNCIL/WALSALL,30/06/2017,CHANGE & GOVERNANCE,CHICKEN JOES LTD,04/04/2017,H59620170406TELCOOOFM-1,191.88,CA BUSILL JONES PRIMARY SCHOOL-FROZEN FOODS-PROVISIONS,CATERERS,GPC
WALSALL COUNCIL,HTTP://OPENDATACOMMUNITIES.ORG/ID/METROPOLITAN-DISTRICT-COUNCIL/WALSALL,30/06/2017,CHILDRENS SERVICES,AMAZON UK MARKETPLACE,04/04/2017,H59620170406TEUCNKUBQ-1,47.94,PHASE 1 RESOURCES-GENERAL MATERIALS,MISCELLANEOUS AND SPECIALTY RETAIL STORES,GPC
WALSALL COUNCIL,HTTP://OPENDATACOMMUNITIES.ORG/ID/METROPOLITAN-DISTRICT-COUNCIL/WALSALL,30/06/2017,ECONOMY & ENVIRONMENT,TRAVEL WEST MIDLAN,04/04/2017,H59620170406TJVJPMYMV-1,54.50,YEI (IMPACT) PROGRAMME-MISCELLANEOUS SUPPLIES,BUS LINES,GPC
WALSALL COUNCIL,HTTP://OPENDATACOMMUNITIES.ORG/ID/METROPOLITAN-DISTRICT-COUNCIL/WALSALL,30/06/2017,ECONOMY & ENVIRONMENT,TRAVEL WEST MIDLAN,04/04/2017,H59620170406TJVJPMYMV-2,54.50,YEI ESF FUNDING-MISCELLANEOUS SUPPLIES,BUS LINES,GPC
WALSALL COUNCIL,HTTP://OPENDATACOMMUNITIES.ORG/ID/METROPOLITAN-DISTRICT-COUNCIL/WALSALL,30/06/2017,CHILDRENS SERVICES,AMAZON UK RETAIL AMAZON.C,04/04/2017,H59620170406TOXPUHFSG-1,15.99,PHASE 1 RESOURCES-GENERAL MATERIALS,MISCELLANEOUS AND SPECIALTY RETAIL STORES,GPC
WALSALL COUNCIL,HTTP://OPENDATACOMMUNITIES.ORG/ID/METROPOLITAN-DISTRICT-COUNCIL/WALSALL,30/06/2017,CHILDRENS SERVICES,AMAZON UK RETAIL AMAZON.C,04/04/2017,H59620170406TQCCPQQUK-1,3.99,PHASE 1 RESOURCES-GENERAL MATERIALS,MISCELLANEOUS AND SPECIALTY RETAIL STORES,GPC
WALSALL COUNCIL,HTTP://OPENDATACOMMUNITIES.ORG/ID/METROPOLITAN-DISTRICT-COUNCIL/WALSALL,30/06/2017,CHILDRENS SERVICES,AMAZON UK RETAIL AMAZON.C,04/04/2017,H59620170406TQCCPQQUK-2,9.99,PHASE 1 RESOURCES-GENERAL MATERIALS,MISCELLANEOUS AND SPECIALTY RETAIL STORES,GPC
WALSALL COUNCIL,HTTP://OPENDATACOMMUNITIES.ORG/ID/METROPOLITAN-DISTRICT-COUNCIL/WALSALL,30/06/2017,CHILDRENS SERVICES,AMAZON UK RETAIL AMAZON.C,04/04/2017,H59620170406TQCCPQQUK-3,4.99,LIBRARY-GENERAL MATERIALS,MISCELLANEOUS AND SPECIALTY RETAIL STORES,GPC
WALSALL COUNCIL,HTTP://OPENDATACOMMUNITIES.ORG/ID/METROPOLITAN-DISTRICT-COUNCIL/WALSALL,30/06/2017,CHANGE & GOVERNANCE,ARTHUR BRETT CATER,04/04/2017,H59620170406UGICXVUXO-1,146.98,CA BUSILL JONES PRIMARY SCHOOL-FRUIT & VEGETABLES OTHER-PROVI,MISCELLANEOUS FOOD STORES & CONVENIENCE STORES,GPC
WALSALL COUNCIL,HTTP://OPENDATACOMMUNITIES.ORG/ID/METROPOLITAN-DISTRICT-COUNCIL/WALSALL,30/06/2017,CHANGE & GOVERNANCE,BLAKEMORE FOODSERVICE,04/04/2017,H59620170406UMWTLMKTX-1,6.33,CA LEIGHSWOOD PRIMARY SCHOOL-DRY FOODS-PROVISIONS,CATERERS,GPC
WALSALL COUNCIL,HTTP://OPENDATACOMMUNITIES.ORG/ID/METROPOLITAN-DISTRICT-COUNCIL/WALSALL,30/06/2017,ECONOMY & ENVIRONMENT,A F BLAKEMORE CASH&CARRY,04/04/2017,H59620170406UPWSECNRA-1,43.94,WALSALL OUTDOOR ADVENTURE CENT-CLEANING MATERIALS,GROCERY STORES AND SUPERMARKETS,GPC
WALSALL COUNCIL,HTTP://OPENDATACOMMUNITIES.ORG/ID/METROPOLITAN-DISTRICT-COUNCIL/WALSALL,30/06/2017,CHANGE & GOVERNANCE,BLAKEMORE FOODSERVICE,04/04/2017,H59620170406URBCYEXGC-1,285.46,CA BUSILL JONES PRIMARY SCHOOL-FROZEN FOODS-PROVISIONS,CATERERS,GPC
WALSALL COUNCIL,HTTP://OPENDATACOMMUNITIES.ORG/ID/METROPOLITAN-DISTRICT-COUNCIL/WALSALL,30/06/2017,CHANGE & GOVERNANCE,SUPPLIES TEAM,04/04/2017,H59620170406VEIVJQDCC-1,10.06,PRINTING SERVICES-GENERAL MATERIALS,"OFFICE, SCHOOL SUPPLY, AND STATIONERY STORES",GPC
WALSALL COUNCIL,HTTP://OPENDATACOMMUNITIES.ORG/ID/METROPOLITAN-DISTRICT-COUNCIL/WALSALL,30/06/2017,CHILDRENS SERVICES,ICELAND,04/04/2017,H59620170406VJRQEQDEL-1,24.17,SPINDLETREE-FOOD AND BEVERAGES-PROVISIONS,GROCERY STORES AND SUPERMARKETS,GPC
WALSALL COUNCIL,HTTP://OPENDATACOMMUNITIES.ORG/ID/METROPOLITAN-DISTRICT-COUNCIL/WALSALL,30/06/2017,CHANGE & GOVERNANCE,NOBISCO LTD,04/04/2017,H59620170406VKLESRFEN-1,16.78,CA BIRCHILLS CE PRIMARY COMMUN-DISPOSABLES-PROVISIONS,"CLEANING AND MAINTENANCE, JANITORIAL SERVICES",GPC
WALSALL COUNCIL,HTTP://OPENDATACOMMUNITIES.ORG/ID/METROPOLITAN-DISTRICT-COUNCIL/WALSALL,30/06/2017,CHILDRENS SERVICES,PP*NORTHWALESA,04/04/2017,H59620170406VOKARLGTN-1,165.00,"43A HILTON ROAD, WILLENHALL-RESIDENTS PERSONAL EXPENSES-AL",SPORTING GOODS STORES,GPC
WALSALL COUNCIL,HTTP://OPENDATACOMMUNITIES.ORG/ID/METROPOLITAN-DISTRICT-COUNCIL/WALSALL,30/06/2017,CHANGE & GOVERNANCE,LONDON MIDLAND TIC,04/04/2017,H59620170406VPESAWJLF-1,13.60,WALSALL CRISIS SUPPORT SCHEME-OFFICER/STAFF-PUBLIC TRANSPORT,PASSENGER RAILWAYS,GPC
WALSALL COUNCIL,HTTP://OPENDATACOMMUNITIES.ORG/ID/METROPOLITAN-DISTRICT-COUNCIL/WALSALL,30/06/2017,CHANGE & GOVERNANCE,BLAKEMORE FOODSERVICE,04/04/2017,H59620170406WEVYPGQKG-1,264.19,CA BIRCHILLS CE PRIMARY COMMUN-FROZEN FOODS-PROVISIONS,CATERERS,GPC
WALSALL COUNCIL,HTTP://OPENDATACOMMUNITIES.ORG/ID/METROPOLITAN-DISTRICT-COUNCIL/WALSALL,30/06/2017,CHANGE & GOVERNANCE,BLAKEMORE FOODSERVICE,04/04/2017,H59620170406WHASVFFVX-1,48.02,CA ST JOHNS C.E. PRIMARY SCHOO-FROZEN FOODS-PROVISIONS,CATERERS,GPC
WALSALL COUNCIL,HTTP://OPENDATACOMMUNITIES.ORG/ID/METROPOLITAN-DISTRICT-COUNCIL/WALSALL,30/06/2017,CHANGE & GOVERNANCE,BLAKEMORE FOODSERVICE,04/04/2017,H59620170406WHASVFFVX-2,254.67,CA ST JOHNS C.E. PRIMARY SCHOO-FROZEN FOODS-PROVISIONS,CATERERS,GPC
WALSALL COUNCIL,HTTP://OPENDATACOMMUNITIES.ORG/ID/METROPOLITAN-DISTRICT-COUNCIL/WALSALL,30/06/2017,CHANGE & GOVERNANCE,ARTHUR BRETT CATER,04/04/2017,H59620170406WJHFTCKLA-1,27.18,CA ELMWOOD SPECIAL SCHOOL-FRUIT & VEGETABLES OTHER-PROVI,MISCELLANEOUS FOOD STORES & CONVENIENCE STORES,GPC
WALSALL COUNCIL,HTTP://OPENDATACOMMUNITIES.ORG/ID/METROPOLITAN-DISTRICT-COUNCIL/WALSALL,30/06/2017,CHANGE & GOVERNANCE,CHICKEN JOES LTD,04/04/2017,H59620170406WKRMOJGLS-1,87.92,CA ELMORE GREEN PRIMARY SCHOOL-FROZEN FOODS-PROVISIONS,CATERERS,GPC
WALSALL COUNCIL,HTTP://OPENDATACOMMUNITIES.ORG/ID/METROPOLITAN-DISTRICT-COUNCIL/WALSALL,30/06/2017,ECONOMY & ENVIRONMENT,SUPPLIES TEAM,04/04/2017,H59620170406WLEYNGQMH-1,15.50,CENTRALISED STATIONARY-STATIONERY & GENERAL SUPPLIES-,"OFFICE, SCHOOL SUPPLY, AND STATIONERY STORES",GPC
WALSALL COUNCIL,HTTP://OPENDATACOMMUNITIES.ORG/ID/METROPOLITAN-DISTRICT-COUNCIL/WALSALL,30/06/2017,CHANGE & GOVERNANCE,BLAKEMORE FOODSERVICE,04/04/2017,H59620170406WPCKNERDB-1,99.00,CA ST JOHNS C.E. PRIMARY SCHOO-DRY FOODS-PROVISIONS,CATERERS,GPC
WALSALL COUNCIL,HTTP://OPENDATACOMMUNITIES.ORG/ID/METROPOLITAN-DISTRICT-COUNCIL/WALSALL,30/06/2017,CHANGE & GOVERNANCE,BULL DOG APPLIANCES LT,04/04/2017,H59620170406WQZMJZFAO-1,276.00,WALSALL CRISIS SUPPORT SCHEME-FURNITURE & EQUIPMENT,HOUSEHOLD APPLIANCE STORES,GPC
WALSALL COUNCIL,HTTP://OPENDATACOMMUNITIES.ORG/ID/METROPOLITAN-DISTRICT-COUNCIL/WALSALL,30/06/2017,CHANGE & GOVERNANCE,BLAKEMORE FOODSERVICE,04/04/2017,H59620170406WRIFNQFEE-1,231.40,CA COOPER JORDAN CE PRIMARY SC-DRY FOODS-PROVISIONS,CATERERS,GPC
WALSALL COUNCIL,HTTP://OPENDATACOMMUNITIES.ORG/ID/METROPOLITAN-DISTRICT-COUNCIL/WALSALL,30/06/2017,CHANGE & GOVERNANCE,BLAKEMORE FOODSERVICE,04/04/2017,H59620170406WRIFNQFEE-2,97.68,CA COOPER JORDAN CE PRIMARY SC-DRY FOODS-PROVISIONS,CATERERS,GPC
WALSALL COUNCIL,HTTP://OPENDATACOMMUNITIES.ORG/ID/METROPOLITAN-DISTRICT-COUNCIL/WALSALL,30/06/2017,CHANGE & GOVERNANCE,ARTHUR BRETT CATER,04/04/2017,H59620170406WTRISVSNI-1,38.96,CA OLD HALL SPECIAL SCHOOL-FRUIT & VEGETABLES OTHER-PROVI,MISCELLANEOUS FOOD STORES & CONVENIENCE STORES,GPC
WALSALL COUNCIL,HTTP://OPENDATACOMMUNITIES.ORG/ID/METROPOLITAN-DISTRICT-COUNCIL/WALSALL,30/06/2017,CHANGE & GOVERNANCE,ARTHUR BRETT CATER,04/04/2017,H59620170406WVINEJTIP-1,32.08,CA ST GILES C.E. PRIMARY SCHOO-FOOD AND BEVERAGES-PROVISIONS,MISCELLANEOUS FOOD STORES & CONVENIENCE STORES,GPC
WALSALL COUNCIL,HTTP://OPENDATACOMMUNITIES.ORG/ID/METROPOLITAN-DISTRICT-COUNCIL/WALSALL,30/06/2017,CHANGE & GOVERNANCE,CHICKEN JOES LTD,04/04/2017,H59620170406WXQCQFKDS-1,91.64,CA BARCROFT D/C-FROZEN FOODS-PROVISIONS,CATERERS,GPC
WALSALL COUNCIL,HTTP://OPENDATACOMMUNITIES.ORG/ID/METROPOLITAN-DISTRICT-COUNCIL/WALSALL,30/06/2017,CHANGE & GOVERNANCE,BLAKEMORE FOODSERVICE,04/04/2017,H59620170406XIDWUSXWB-1,71.77,CA WATLING STREET PRIMARY SCHO-FROZEN FOODS-PROVISIONS,CATERERS,GPC
WALSALL COUNCIL,HTTP://OPENDATACOMMUNITIES.ORG/ID/METROPOLITAN-DISTRICT-COUNCIL/WALSALL,30/06/2017,CHANGE & GOVERNANCE,NOBISCO LTD,04/04/2017,H59620170406XLCYFSHXT-1,101.20,CA LEIGHSWOOD PRIMARY SCHOOL-DISPOSABLES-PROVISIONS,"CLEANING AND MAINTENANCE, JANITORIAL SERVICES",GPC
WALSALL COUNCIL,HTTP://OPENDATACOMMUNITIES.ORG/ID/METROPOLITAN-DISTRICT-COUNCIL/WALSALL,30/06/2017,CHANGE & GOVERNANCE,BLAKEMORE FOODSERVICE,04/04/2017,H59620170406XMIDYHORX-1,83.86,CA JANE LANE SPECIAL SCHOOL-FROZEN FOODS-PROVISIONS,CATERERS,GPC
WALSALL COUNCIL,HTTP://OPENDATACOMMUNITIES.ORG/ID/METROPOLITAN-DISTRICT-COUNCIL/WALSALL,30/06/2017,CHANGE & GOVERNANCE,BLAKEMORE FOODSERVICE,04/04/2017,H59620170406XTKQXZHPQ-1,101.64,CA RADLEYS PRIMARY SCHOOL-DRY FOODS-PROVISIONS,CATERERS,GPC
WALSALL COUNCIL,HTTP://OPENDATACOMMUNITIES.ORG/ID/METROPOLITAN-DISTRICT-COUNCIL/WALSALL,30/06/2017,CHANGE & GOVERNANCE,BLAKEMORE FOODSERVICE,04/04/2017,H59620170406YCLOQBSWH-1,124.66,CA MOORCROFT WOOD-FROZEN FOODS-PROVISIONS,CATERERS,GPC
WALSALL COUNCIL,HTTP://OPENDATACOMMUNITIES.ORG/ID/METROPOLITAN-DISTRICT-COUNCIL/WALSALL,30/06/2017,CHANGE & GOVERNANCE,BLAKEMORE FOODSERVICE,04/04/2017,H59620170406YCLOQBSWH-2,8.00,CA MOORCROFT WOOD-FROZEN FOODS-PROVISIONS,CATERERS,GPC
WALSALL COUNCIL,HTTP://OPENDATACOMMUNITIES.ORG/ID/METROPOLITAN-DISTRICT-COUNCIL/WALSALL,30/06/2017,CHANGE & GOVERNANCE,ARTHUR BRETT CATER,04/04/2017,H59620170406YDPFEJPBI-1,24.74,CA LEAMORE PRIMARY SCHOOL-FRUIT & VEGETABLES OTHER-PROVI,MISCELLANEOUS FOOD STORES & CONVENIENCE STORES,GPC
WALSALL COUNCIL,HTTP://OPENDATACOMMUNITIES.ORG/ID/METROPOLITAN-DISTRICT-COUNCIL/WALSALL,30/06/2017,CHILDRENS SERVICES,W M MORRISONS.COM,04/04/2017,H59620170406YIKSRKNTV-1,26.70,57 LICHFIELD ROAD-FOOD AND BEVERAGES-PROVISIONS,GROCERY STORES AND SUPERMARKETS,GPC
WALSALL COUNCIL,HTTP://OPENDATACOMMUNITIES.ORG/ID/METROPOLITAN-DISTRICT-COUNCIL/WALSALL,30/06/2017,CHILDRENS SERVICES,W M MORRISONS.COM,04/04/2017,H59620170406YIKSRKNTV-2,79.26,57 LICHFIELD ROAD-FOOD AND BEVERAGES-PROVISIONS,GROCERY STORES AND SUPERMARKETS,GPC
WALSALL COUNCIL,HTTP://OPENDATACOMMUNITIES.ORG/ID/METROPOLITAN-DISTRICT-COUNCIL/WALSALL,30/06/2017,CHANGE & GOVERNANCE,BLAKEMORE FOODSERVICE,04/04/2017,H59620170406YRJSWRQKC-1,31.68,CA ST MICHAELS C.E. PRIMARY SC-DRY FOODS-PROVISIONS,CATERERS,GPC
WALSALL COUNCIL,HTTP://OPENDATACOMMUNITIES.ORG/ID/METROPOLITAN-DISTRICT-COUNCIL/WALSALL,30/06/2017,CHANGE & GOVERNANCE,ARTHUR BRETT CATER,04/04/2017,H59620170406ZATXLCPAW-1,11.50,CA BARCROFT D/C-FRUIT & VEGETABLES OTHER-PROVI,MISCELLANEOUS FOOD STORES & CONVENIENCE STORES,GPC
WALSALL COUNCIL,HTTP://OPENDATACOMMUNITIES.ORG/ID/METROPOLITAN-DISTRICT-COUNCIL/WALSALL,30/06/2017,CHANGE & GOVERNANCE,ARTHUR BRETT CATER,04/04/2017,H59620170406ZHSYQRDEK-1,41.57,TOWN HALL RESTAURANT BISTRO-FRUIT & VEGETABLES OTHER-PROVI,MISCELLANEOUS FOOD STORES & CONVENIENCE STORES,GPC
WALSALL COUNCIL,HTTP://OPENDATACOMMUNITIES.ORG/ID/METROPOLITAN-DISTRICT-COUNCIL/WALSALL,30/06/2017,CHANGE & GOVERNANCE,ALLPAY LTD,04/04/2017,H59620170407CQXTVBEOA-1,431.00,ACCOMMODATION SERVICES MANAGEM-MISC FEES AND EXPENSES,"ORGANIZATIONS, CHARITABLE AND SOCIAL SERVICE",GPC
WALSALL COUNCIL,HTTP://OPENDATACOMMUNITIES.ORG/ID/METROPOLITAN-DISTRICT-COUNCIL/WALSALL,30/06/2017,ECONOMY & ENVIRONMENT,CIEH,04/04/2017,H59620170407ENDYVUROW-1,155.00,COMPLIANCE MANAGEMENT-EXTERNAL TRAINING,"ORGANIZATIONS, MEMBERSHIP",GPC
WALSALL COUNCIL,HTTP://OPENDATACOMMUNITIES.ORG/ID/METROPOLITAN-DISTRICT-COUNCIL/WALSALL,30/06/2017,CHILDRENS SERVICES,AMAZON UK RETAIL AMAZON.C,04/04/2017,H59620170407FIAAWEOHV-1,3.99,PHASE 1 RESOURCES-GENERAL MATERIALS,MISCELLANEOUS AND SPECIALTY RETAIL STORES,GPC
WALSALL COUNCIL,HTTP://OPENDATACOMMUNITIES.ORG/ID/METROPOLITAN-DISTRICT-COUNCIL/WALSALL,30/06/2017,CHILDRENS SERVICES,AMAZON UK RETAIL AMAZON.C,04/04/2017,H59620170407FIAAWEOHV-2,4.99,LIBRARY-GENERAL MATERIALS,MISCELLANEOUS AND SPECIALTY RETAIL STORES,GPC
WALSALL COUNCIL,HTTP://OPENDATACOMMUNITIES.ORG/ID/METROPOLITAN-DISTRICT-COUNCIL/WALSALL,30/06/2017,CHILDRENS SERVICES,FARMFOODS- ERDINGT,04/04/2017,H59620170407JFUYVVSFD-1,39.60,SPINDLETREE-FOOD AND BEVERAGES-PROVISIONS,GROCERY STORES AND SUPERMARKETS,GPC
WALSALL COUNCIL,HTTP://OPENDATACOMMUNITIES.ORG/ID/METROPOLITAN-DISTRICT-COUNCIL/WALSALL,30/06/2017,CHILDRENS SERVICES,AMAZON UK RETAIL AMAZON.C,04/04/2017,H59620170407RKHWUQEQB-1,13.98,PHASE 3 RESOURCES-GENERAL MATERIALS,MISCELLANEOUS AND SPECIALTY RETAIL STORES,GPC
WALSALL COUNCIL,HTTP://OPENDATACOMMUNITIES.ORG/ID/METROPOLITAN-DISTRICT-COUNCIL/WALSALL,30/06/2017,CHANGE & GOVERNANCE,ARTHUR BRETT CATER,04/04/2017,H59620170412JRRWHQNLV-1,-1.85,CA ST MICHAELS C.E. PRIMARY SC-FRUIT & VEGETABLES OTHER-PROVI,MISCELLANEOUS FOOD STORES & CONVENIENCE STORES,GPC
WALSALL COUNCIL,HTTP://OPENDATACOMMUNITIES.ORG/ID/METROPOLITAN-DISTRICT-COUNCIL/WALSALL,30/06/2017,CHANGE & GOVERNANCE,WELSH BROS FOODS LTD,05/04/2017,H59620170406DFBXBSLFF-1,340.19,CA ST JOHNS C.E. PRIMARY SCHOO-MEAT-PROVISIONS,FREEZER AND LOCKER MEAT PROVISIONERS,GPC
WALSALL COUNCIL,HTTP://OPENDATACOMMUNITIES.ORG/ID/METROPOLITAN-DISTRICT-COUNCIL/WALSALL,30/06/2017,CHILDRENS SERVICES,POUNDLAND LTD 1427,05/04/2017,H59620170407ABYLBQBLU-1,7.10,57 LICHFIELD ROAD-RESIDENTS PERSONAL EXPENSES-AL,DISCOUNT STORES,GPC
WALSALL COUNCIL,HTTP://OPENDATACOMMUNITIES.ORG/ID/METROPOLITAN-DISTRICT-COUNCIL/WALSALL,30/06/2017,CHILDRENS SERVICES,AMAZON UK RETAIL,05/04/2017,H59620170407ADEDDIFEQ-1,4.99,LIBRARY-GENERAL MATERIALS,OTHER DIRECT MARKETING-OTHER DIRECT MARKETERS,GPC
WALSALL COUNCIL,HTTP://OPENDATACOMMUNITIES.ORG/ID/METROPOLITAN-DISTRICT-COUNCIL/WALSALL,30/06/2017,CHANGE & GOVERNANCE,BLAKEMORE FOODSERVICE,05/04/2017,H59620170407AFXTNCNXF-1,361.37,CA ST JOHNS C.E. PRIMARY SCHOO-FROZEN FOODS-PROVISIONS,CATERERS,GPC
WALSALL COUNCIL,HTTP://OPENDATACOMMUNITIES.ORG/ID/METROPOLITAN-DISTRICT-COUNCIL/WALSALL,30/06/2017,CHANGE & GOVERNANCE,BLAKEMORE FOODSERVICE,05/04/2017,H59620170407AMEGFINOM-1,90.23,CA OAKWOOD SPECIAL SCHOOL-FROZEN FOODS-PROVISIONS,CATERERS,GPC
WALSALL COUNCIL,HTTP://OPENDATACOMMUNITIES.ORG/ID/METROPOLITAN-DISTRICT-COUNCIL/WALSALL,30/06/2017,CHANGE & GOVERNANCE,BLAKEMORE FOODSERVICE,05/04/2017,H59620170407AMEGFINOM-2,8.00,CA OAKWOOD SPECIAL SCHOOL-FROZEN FOODS-PROVISIONS,CATERERS,GPC
WALSALL COUNCIL,HTTP://OPENDATACOMMUNITIES.ORG/ID/METROPOLITAN-DISTRICT-COUNCIL/WALSALL,30/06/2017,CHILDRENS SERVICES,CARPETS DIRECT 2U,05/04/2017,H59620170407BCHMRJTLG-1,100.00,SAFEGUARDING & FAMILY SUPPORT-BEDDING & LINEN-MATERIALS,FLOOR COVERING STORES,GPC
WALSALL COUNCIL,HTTP://OPENDATACOMMUNITIES.ORG/ID/METROPOLITAN-DISTRICT-COUNCIL/WALSALL,30/06/2017,ECONOMY & ENVIRONMENT,THE BOOK PEOPLE,05/04/2017,H59620170407BMEJDBCQW-1,86.26,NVQ ASSESSOR-LIBRARY BOOKS,BOOK STORES,GPC
WALSALL COUNCIL,HTTP://OPENDATACOMMUNITIES.ORG/ID/METROPOLITAN-DISTRICT-COUNCIL/WALSALL,30/06/2017,ECONOMY & ENVIRONMENT,TESCO STORES 6161,05/04/2017,H59620170407BNQHKEMYQ-1,15.00,YEI (IMPACT) PROGRAMME-MISCELLANEOUS SUPPLIES,GROCERY STORES AND SUPERMARKETS,GPC
WALSALL COUNCIL,HTTP://OPENDATACOMMUNITIES.ORG/ID/METROPOLITAN-DISTRICT-COUNCIL/WALSALL,30/06/2017,ECONOMY & ENVIRONMENT,TESCO STORES 6161,05/04/2017,H59620170407BNQHKEMYQ-2,15.00,YEI ESF FUNDING-MISCELLANEOUS SUPPLIES,GROCERY STORES AND SUPERMARKETS,GPC
WALSALL COUNCIL,HTTP://OPENDATACOMMUNITIES.ORG/ID/METROPOLITAN-DISTRICT-COUNCIL/WALSALL,30/06/2017,ECONOMY & ENVIRONMENT,BM STEEL,05/04/2017,H59620170407BPIAXTFTB-1,210.60,FLEET-GENERAL MATERIALS,"ARCHITECTURAL, ENGINEERING, AND SURVEYING SERVICES",GPC
WALSALL COUNCIL,HTTP://OPENDATACOMMUNITIES.ORG/ID/METROPOLITAN-DISTRICT-COUNCIL/WALSALL,30/06/2017,ECONOMY & ENVIRONMENT,ALDI,05/04/2017,H59620170407BVRYCZZNJ-1,22.99,INFRASTRUCTURE MAINTENANCE-GENERAL MATERIALS,GROCERY STORES AND SUPERMARKETS,GPC
WALSALL COUNCIL,HTTP://OPENDATACOMMUNITIES.ORG/ID/METROPOLITAN-DISTRICT-COUNCIL/WALSALL,30/06/2017,CHILDRENS SERVICES,HOME BARGAINS,05/04/2017,H59620170407CGFBBEQTV-1,20.81,"BLAKENALL CHILDCARE SERVICES-CROCKERY,HARDWARE & DISPOSABLE",HARDWARE STORES,GPC
WALSALL COUNCIL,HTTP://OPENDATACOMMUNITIES.ORG/ID/METROPOLITAN-DISTRICT-COUNCIL/WALSALL,30/06/2017,CHILDRENS SERVICES,HOME BARGAINS,05/04/2017,H59620170407CGFBBEQTV-2,4.43,"BLAKENALL CHILDCARE SERVICES-CROCKERY,HARDWARE & DISPOSABLE",HARDWARE STORES,GPC
WALSALL COUNCIL,HTTP://OPENDATACOMMUNITIES.ORG/ID/METROPOLITAN-DISTRICT-COUNCIL/WALSALL,30/06/2017,CHILDRENS SERVICES,FLYBE D4DG02,05/04/2017,H59620170407DBMNINQDI-1,297.65,LOOKED AFTER CHILDRENS SOCIAL -SECTION 34 (CONTACT),AIRLINES AND AIR CARRIERS,GPC
WALSALL COUNCIL,HTTP://OPENDATACOMMUNITIES.ORG/ID/METROPOLITAN-DISTRICT-COUNCIL/WALSALL,30/06/2017,ECONOMY & ENVIRONMENT,STRIKE ELECTRICAL DIST,05/04/2017,H59620170407DDYGSNHBV-1,44.35,LEATHER MUSEUM-GENERAL MATERIALS,HOUSEHOLD APPLIANCE STORES,GPC
WALSALL COUNCIL,HTTP://OPENDATACOMMUNITIES.ORG/ID/METROPOLITAN-DISTRICT-COUNCIL/WALSALL,30/06/2017,ECONOMY & ENVIRONMENT,PLUMB CENTER JEB,05/04/2017,H59620170407DHTBBGRJY-1,63.00,ARBORETUM-GENERAL MATERIALS,"AIR CONDITIONING, HEATING, PLUMBING CONTRACTORS",GPC
WALSALL COUNCIL,HTTP://OPENDATACOMMUNITIES.ORG/ID/METROPOLITAN-DISTRICT-COUNCIL/WALSALL,30/06/2017,CHANGE & GOVERNANCE,BLAKEMORE FOODSERVICE,05/04/2017,H59620170407DLDCESXWJ-1,198.95,CA MEADOW VIEW JMI PRIMARY SCH-FROZEN FOODS-PROVISIONS,CATERERS,GPC
WALSALL COUNCIL,HTTP://OPENDATACOMMUNITIES.ORG/ID/METROPOLITAN-DISTRICT-COUNCIL/WALSALL,30/06/2017,CHANGE & GOVERNANCE,BLAKEMORE FOODSERVICE,05/04/2017,H59620170407DOLPIISYH-1,217.81,CA MOORCROFT WOOD-DRY FOODS-PROVISIONS,CATERERS,GPC
WALSALL COUNCIL,HTTP://OPENDATACOMMUNITIES.ORG/ID/METROPOLITAN-DISTRICT-COUNCIL/WALSALL,30/06/2017,CHANGE & GOVERNANCE,BLAKEMORE FOODSERVICE,05/04/2017,H59620170407DOLPIISYH-2,106.80,CA MOORCROFT WOOD-DRY FOODS-PROVISIONS,CATERERS,GPC
WALSALL COUNCIL,HTTP://OPENDATACOMMUNITIES.ORG/ID/METROPOLITAN-DISTRICT-COUNCIL/WALSALL,30/06/2017,CHANGE & GOVERNANCE,BLAKEMORE FOODSERVICE,05/04/2017,H59620170407DVEQGTWLO-1,24.01,CA BUSILL JONES PRIMARY SCHOOL-FROZEN FOODS-PROVISIONS,CATERERS,GPC
WALSALL COUNCIL,HTTP://OPENDATACOMMUNITIES.ORG/ID/METROPOLITAN-DISTRICT-COUNCIL/WALSALL,30/06/2017,CHANGE & GOVERNANCE,BLAKEMORE FOODSERVICE,05/04/2017,H59620170407DVEQGTWLO-2,307.80,CA BUSILL JONES PRIMARY SCHOOL-FROZEN FOODS-PROVISIONS,CATERERS,GPC
WALSALL COUNCIL,HTTP://OPENDATACOMMUNITIES.ORG/ID/METROPOLITAN-DISTRICT-COUNCIL/WALSALL,30/06/2017,CHILDRENS SERVICES,ASDA STORES,05/04/2017,H59620170407FJWLDXLII-1,11.45,LOCALITY FAMILY SUPPORT-WEST-EVENTS,GROCERY STORES AND SUPERMARKETS,GPC
WALSALL COUNCIL,HTTP://OPENDATACOMMUNITIES.ORG/ID/METROPOLITAN-DISTRICT-COUNCIL/WALSALL,30/06/2017,CHILDRENS SERVICES,ASDA STORES,05/04/2017,H59620170407FJWLDXLII-2,20.06,LOCALITY FAMILY SUPPORT-WEST-EVENTS,GROCERY STORES AND SUPERMARKETS,GPC
WALSALL COUNCIL,HTTP://OPENDATACOMMUNITIES.ORG/ID/METROPOLITAN-DISTRICT-COUNCIL/WALSALL,30/06/2017,CHANGE & GOVERNANCE,BLAKEMORE FOODSERVICE,05/04/2017,H59620170407FMVKNUKOK-1,229.71,CA ELMORE GREEN PRIMARY SCHOOL-FROZEN FOODS-PROVISIONS,CATERERS,GPC
WALSALL COUNCIL,HTTP://OPENDATACOMMUNITIES.ORG/ID/METROPOLITAN-DISTRICT-COUNCIL/WALSALL,30/06/2017,CHANGE & GOVERNANCE,AMAZON UK MARKETPLACE,05/04/2017,H59620170407FUUWQCJID-1,73.89,AREA 3 - NORTH WALSALL-TOYS & GAMES-MATERIALS,BOOK STORES,GPC
WALSALL COUNCIL,HTTP://OPENDATACOMMUNITIES.ORG/ID/METROPOLITAN-DISTRICT-COUNCIL/WALSALL,30/06/2017,CHILDRENS SERVICES,AMAZON UK MARKETPLACE,05/04/2017,H59620170407FWQDEXHSC-1,25.63,ADMINISTRATIVE SUPPLIES-GENERAL MATERIALS,BOOK STORES,GPC
WALSALL COUNCIL,HTTP://OPENDATACOMMUNITIES.ORG/ID/METROPOLITAN-DISTRICT-COUNCIL/WALSALL,30/06/2017,CHILDRENS SERVICES,WM MORRISON 024,05/04/2017,H59620170407HAZOUAVPL-1,12.00,PARENTING TEAM-FOOD AND BEVERAGES-PROVISIONS,GROCERY STORES AND SUPERMARKETS,GPC
WALSALL COUNCIL,HTTP://OPENDATACOMMUNITIES.ORG/ID/METROPOLITAN-DISTRICT-COUNCIL/WALSALL,30/06/2017,CHILDRENS SERVICES,WM MORRISON 024,05/04/2017,H59620170407HAZOUAVPL-2,0.05,PARENTING TEAM-FOOD AND BEVERAGES-PROVISIONS,GROCERY STORES AND SUPERMARKETS,GPC
WALSALL COUNCIL,HTTP://OPENDATACOMMUNITIES.ORG/ID/METROPOLITAN-DISTRICT-COUNCIL/WALSALL,30/06/2017,CHILDRENS SERVICES,TRAINLINE,05/04/2017,H59620170407HCGENDWFV-1,45.13,57 LICHFIELD ROAD-RESIDENTS PERSONAL EXPENSES-AL,PASSENGER RAILWAYS,GPC
WALSALL COUNCIL,HTTP://OPENDATACOMMUNITIES.ORG/ID/METROPOLITAN-DISTRICT-COUNCIL/WALSALL,30/06/2017,CHILDRENS SERVICES,TESCO STORES 6161,05/04/2017,H59620170407HLPFFCFTY-1,4.00,57 LICHFIELD ROAD-RESIDENTS PERSONAL EXPENSES-AL,GROCERY STORES AND SUPERMARKETS,GPC
WALSALL COUNCIL,HTTP://OPENDATACOMMUNITIES.ORG/ID/METROPOLITAN-DISTRICT-COUNCIL/WALSALL,30/06/2017,CHANGE & GOVERNANCE,BLAKEMORE FOODSERVICE,05/04/2017,H59620170407JEJKUPQEW-1,98.02,CA LEIGHSWOOD PRIMARY SCHOOL-FROZEN FOODS-PROVISIONS,CATERERS,GPC
WALSALL COUNCIL,HTTP://OPENDATACOMMUNITIES.ORG/ID/METROPOLITAN-DISTRICT-COUNCIL/WALSALL,30/06/2017,CHILDRENS SERVICES,AMAZON UK MARKETPLACE,05/04/2017,H59620170407JIAWNIMCM-1,9.92,PHASE 1 RESOURCES-GENERAL MATERIALS,MISCELLANEOUS AND SPECIALTY RETAIL STORES,GPC
WALSALL COUNCIL,HTTP://OPENDATACOMMUNITIES.ORG/ID/METROPOLITAN-DISTRICT-COUNCIL/WALSALL,30/06/2017,ECONOMY & ENVIRONMENT,WWW.BCLM.CO.UK,05/04/2017,H59620170407JKPCVTUDH-1,50.00,YEI (IMPACT) PROGRAMME-EXTERNAL TRAINING-OTHER,OTHER RECREATION SERVICES,GPC
WALSALL COUNCIL,HTTP://OPENDATACOMMUNITIES.ORG/ID/METROPOLITAN-DISTRICT-COUNCIL/WALSALL,30/06/2017,ECONOMY & ENVIRONMENT,WWW.BCLM.CO.UK,05/04/2017,H59620170407JKPCVTUDH-2,50.00,YEI ESF FUNDING-EXTERNAL TRAINING-OTHER,OTHER RECREATION SERVICES,GPC
WALSALL COUNCIL,HTTP://OPENDATACOMMUNITIES.ORG/ID/METROPOLITAN-DISTRICT-COUNCIL/WALSALL,30/06/2017,CHANGE & GOVERNANCE,BLAKEMORE FOODSERVICE,05/04/2017,H59620170407JLYJKNBQV-1,184.15,CA RUSHALL JMI SCHOOL-FROZEN FOODS-PROVISIONS,CATERERS,GPC
WALSALL COUNCIL,HTTP://OPENDATACOMMUNITIES.ORG/ID/METROPOLITAN-DISTRICT-COUNCIL/WALSALL,30/06/2017,CHILDRENS SERVICES,AMAZON UK MARKETPLACE,05/04/2017,H59620170407JTCWXFDXS-1,18.90,"WALSALL WOOD PRIMARY SCHOOL-REPAIRS,ALTERATIONS & MAINTENA",MISCELLANEOUS AND SPECIALTY RETAIL STORES,GPC
WALSALL COUNCIL,HTTP://OPENDATACOMMUNITIES.ORG/ID/METROPOLITAN-DISTRICT-COUNCIL/WALSALL,30/06/2017,CHILDRENS SERVICES,AMAZON UK MARKETPLACE,05/04/2017,H59620170407KDXWMWVJC-1,15.89,PHASE 1 RESOURCES-GENERAL MATERIALS,MISCELLANEOUS AND SPECIALTY RETAIL STORES,GPC
WALSALL COUNCIL,HTTP://OPENDATACOMMUNITIES.ORG/ID/METROPOLITAN-DISTRICT-COUNCIL/WALSALL,30/06/2017,ECONOMY & ENVIRONMENT,TESCO DIRECT,05/04/2017,H59620170407LCKXIXKSU-1,29.50,YEI (IMPACT) PROGRAMME-MISCELLANEOUS SUPPLIES,MISCELLANEOUS AND SPECIALTY RETAIL STORES,GPC
WALSALL COUNCIL,HTTP://OPENDATACOMMUNITIES.ORG/ID/METROPOLITAN-DISTRICT-COUNCIL/WALSALL,30/06/2017,ECONOMY & ENVIRONMENT,TESCO DIRECT,05/04/2017,H59620170407LCKXIXKSU-2,29.50,YEI ESF FUNDING-MISCELLANEOUS SUPPLIES,MISCELLANEOUS AND SPECIALTY RETAIL STORES,GPC
WALSALL COUNCIL,HTTP://OPENDATACOMMUNITIES.ORG/ID/METROPOLITAN-DISTRICT-COUNCIL/WALSALL,30/06/2017,CHANGE & GOVERNANCE,BLAKEMORE FOODSERVICE,05/04/2017,H59620170407LFUXFWRHI-1,54.17,CA ELMORE GREEN PRIMARY SCHOOL-DRY FOODS-PROVISIONS,CATERERS,GPC
WALSALL COUNCIL,HTTP://OPENDATACOMMUNITIES.ORG/ID/METROPOLITAN-DISTRICT-COUNCIL/WALSALL,30/06/2017,CHANGE & GOVERNANCE,BLAKEMORE FOODSERVICE,05/04/2017,H59620170407LFUXFWRHI-2,226.58,CA ELMORE GREEN PRIMARY SCHOOL-DRY FOODS-PROVISIONS,CATERERS,GPC
WALSALL COUNCIL,HTTP://OPENDATACOMMUNITIES.ORG/ID/METROPOLITAN-DISTRICT-COUNCIL/WALSALL,30/06/2017,CHILDRENS SERVICES,ASDA SUPERSTORE,05/04/2017,H59620170407LRIIUIXUF-1,4.00,BLOXWICH CHILDCARE SERVICES-FOOD AND BEVERAGES-PROVISIONS,GROCERY STORES AND SUPERMARKETS,GPC
WALSALL COUNCIL,HTTP://OPENDATACOMMUNITIES.ORG/ID/METROPOLITAN-DISTRICT-COUNCIL/WALSALL,30/06/2017,CHILDRENS SERVICES,ASDA SUPERSTORE,05/04/2017,H59620170407LRIIUIXUF-2,4.89,BLOXWICH CHILDCARE SERVICES-FOOD AND BEVERAGES-PROVISIONS,GROCERY STORES AND SUPERMARKETS,GPC
WALSALL COUNCIL,HTTP://OPENDATACOMMUNITIES.ORG/ID/METROPOLITAN-DISTRICT-COUNCIL/WALSALL,30/06/2017,CHANGE & GOVERNANCE,BLAKEMORE FOODSERVICE,05/04/2017,H59620170407LTRAUFXPU-1,108.86,CA COOPER JORDAN CE PRIMARY SC-FROZEN FOODS-PROVISIONS,CATERERS,GPC
WALSALL COUNCIL,HTTP://OPENDATACOMMUNITIES.ORG/ID/METROPOLITAN-DISTRICT-COUNCIL/WALSALL,30/06/2017,ECONOMY & ENVIRONMENT,W M MORRISONS,05/04/2017,H59620170407LYQXCQTHX-1,7.39,WALSALL OUTDOOR ADVENTURE CENT-FOOD AND BEVERAGES-PROVISIONS,GROCERY STORES AND SUPERMARKETS,GPC
WALSALL COUNCIL,HTTP://OPENDATACOMMUNITIES.ORG/ID/METROPOLITAN-DISTRICT-COUNCIL/WALSALL,30/06/2017,ECONOMY & ENVIRONMENT,W M MORRISONS,05/04/2017,H59620170407LYQXCQTHX-2,2.77,WALSALL OUTDOOR ADVENTURE CENT-FOOD AND BEVERAGES-PROVISIONS,GROCERY STORES AND SUPERMARKETS,GPC
WALSALL COUNCIL,HTTP://OPENDATACOMMUNITIES.ORG/ID/METROPOLITAN-DISTRICT-COUNCIL/WALSALL,30/06/2017,ECONOMY & ENVIRONMENT,TESCO DIRECT,05/04/2017,H59620170407MGCLXBAVJ-1,-12.00,YEI (IMPACT) PROGRAMME-MISCELLANEOUS SUPPLIES,MISCELLANEOUS AND SPECIALTY RETAIL STORES,GPC
WALSALL COUNCIL,HTTP://OPENDATACOMMUNITIES.ORG/ID/METROPOLITAN-DISTRICT-COUNCIL/WALSALL,30/06/2017,ECONOMY & ENVIRONMENT,TESCO DIRECT,05/04/2017,H59620170407MGCLXBAVJ-2,-12.00,YEI ESF FUNDING-MISCELLANEOUS SUPPLIES,MISCELLANEOUS AND SPECIALTY RETAIL STORES,GPC
WALSALL COUNCIL,HTTP://OPENDATACOMMUNITIES.ORG/ID/METROPOLITAN-DISTRICT-COUNCIL/WALSALL,30/06/2017,CHANGE & GOVERNANCE,BLAKEMORE FOODSERVICE,05/04/2017,H59620170407MLKWVEXOO-1,130.34,CA BIRCHILLS CE PRIMARY COMMUN-DRY FOODS-PROVISIONS,CATERERS,GPC
WALSALL COUNCIL,HTTP://OPENDATACOMMUNITIES.ORG/ID/METROPOLITAN-DISTRICT-COUNCIL/WALSALL,30/06/2017,CHANGE & GOVERNANCE,BLAKEMORE FOODSERVICE,05/04/2017,H59620170407MLKWVEXOO-2,204.36,CA BIRCHILLS CE PRIMARY COMMUN-DRY FOODS-PROVISIONS,CATERERS,GPC
WALSALL COUNCIL,HTTP://OPENDATACOMMUNITIES.ORG/ID/METROPOLITAN-DISTRICT-COUNCIL/WALSALL,30/06/2017,CHANGE & GOVERNANCE,TESCO STORES 6161,05/04/2017,H59620170407MLQHZMEUJ-1,132.50,WALSALL CRISIS SUPPORT SCHEME-FOOD AND BEVERAGES-PROVISIONS,GROCERY STORES AND SUPERMARKETS,GPC
WALSALL COUNCIL,HTTP://OPENDATACOMMUNITIES.ORG/ID/METROPOLITAN-DISTRICT-COUNCIL/WALSALL,30/06/2017,CHILDRENS SERVICES,AMAZON UK MARKETPLACE,05/04/2017,H59620170407NJFEGCZRX-1,5.04,CHUCKERY PRIMARY SCHOOL-CATERING,MISCELLANEOUS AND SPECIALTY RETAIL STORES,GPC
WALSALL COUNCIL,HTTP://OPENDATACOMMUNITIES.ORG/ID/METROPOLITAN-DISTRICT-COUNCIL/WALSALL,30/06/2017,CHANGE & GOVERNANCE,BLAKEMORE FOODSERVICE,05/04/2017,H59620170407NJJFQNUJC-1,182.03,CA RADLEYS PRIMARY SCHOOL-FROZEN FOODS-PROVISIONS,CATERERS,GPC
WALSALL COUNCIL,HTTP://OPENDATACOMMUNITIES.ORG/ID/METROPOLITAN-DISTRICT-COUNCIL/WALSALL,30/06/2017,CHANGE & GOVERNANCE,BLAKEMORE FOODSERVICE,05/04/2017,H59620170407OEMPZVIUD-1,55.82,CA ELMWOOD SPECIAL SCHOOL-FROZEN FOODS-PROVISIONS,CATERERS,GPC
WALSALL COUNCIL,HTTP://OPENDATACOMMUNITIES.ORG/ID/METROPOLITAN-DISTRICT-COUNCIL/WALSALL,30/06/2017,ECONOMY & ENVIRONMENT,CPS - WALSALL,05/04/2017,H59620170407OLSNLNDEB-1,8.24,ARBORETUM-GENERAL MATERIALS,LUMBER & BUILDING MATERIALS STORES,GPC
WALSALL COUNCIL,HTTP://OPENDATACOMMUNITIES.ORG/ID/METROPOLITAN-DISTRICT-COUNCIL/WALSALL,30/06/2017,CHANGE & GOVERNANCE,BLAKEMORE FOODSERVICE,05/04/2017,H59620170407ORQIJXOIB-1,55.64,TOWN HALL RESTAURANT BISTRO-FROZEN FOODS-PROVISIONS,CATERERS,GPC
WALSALL COUNCIL,HTTP://OPENDATACOMMUNITIES.ORG/ID/METROPOLITAN-DISTRICT-COUNCIL/WALSALL,30/06/2017,CHILDRENS SERVICES,COMFORT BEDS AND F,05/04/2017,H59620170407OVPFUDWXF-1,99.00,SAFEGUARDING & FAMILY SUPPORT-FURNITURE & EQUIPMENT,"EQUIPMENT, FURNITURE, AND HOME FURNISHINGS STORES ",GPC
WALSALL COUNCIL,HTTP://OPENDATACOMMUNITIES.ORG/ID/METROPOLITAN-DISTRICT-COUNCIL/WALSALL,30/06/2017,CHANGE & GOVERNANCE,BLAKEMORE FOODSERVICE,05/04/2017,H59620170407OVQXCYYMY-1,24.74,CA BUSILL JONES PRIMARY SCHOOL-DRY FOODS-PROVISIONS,CATERERS,GPC
WALSALL COUNCIL,HTTP://OPENDATACOMMUNITIES.ORG/ID/METROPOLITAN-DISTRICT-COUNCIL/WALSALL,30/06/2017,CHANGE & GOVERNANCE,BLAKEMORE FOODSERVICE,05/04/2017,H59620170407OVQXCYYMY-2,510.32,CA BUSILL JONES PRIMARY SCHOOL-DRY FOODS-PROVISIONS,CATERERS,GPC
WALSALL COUNCIL,HTTP://OPENDATACOMMUNITIES.ORG/ID/METROPOLITAN-DISTRICT-COUNCIL/WALSALL,30/06/2017,CHANGE & GOVERNANCE,BLAKEMORE FOODSERVICE,05/04/2017,H59620170407OXXWTGDUE-1,267.56,CA BLUE COAT C OF E PERFORMING-FROZEN FOODS-PROVISIONS,CATERERS,GPC
WALSALL COUNCIL,HTTP://OPENDATACOMMUNITIES.ORG/ID/METROPOLITAN-DISTRICT-COUNCIL/WALSALL,30/06/2017,CHANGE & GOVERNANCE,BLAKEMORE FOODSERVICE,05/04/2017,H59620170407PQMSHKPVG-1,177.00,CA FIBBERSLEY PARK PRIMARY SCH-DRY FOODS-PROVISIONS,CATERERS,GPC
WALSALL COUNCIL,HTTP://OPENDATACOMMUNITIES.ORG/ID/METROPOLITAN-DISTRICT-COUNCIL/WALSALL,30/06/2017,CHANGE & GOVERNANCE,BLAKEMORE FOODSERVICE,05/04/2017,H59620170407PQMSHKPVG-2,14.70,CA FIBBERSLEY PARK PRIMARY SCH-DRY FOODS-PROVISIONS,CATERERS,GPC
WALSALL COUNCIL,HTTP://OPENDATACOMMUNITIES.ORG/ID/METROPOLITAN-DISTRICT-COUNCIL/WALSALL,30/06/2017,CHANGE & GOVERNANCE,BLAKEMORE FOODSERVICE,05/04/2017,H59620170407QHEMMMNYI-1,112.68,CA BEACON PRIMARY SCHOOL-FROZEN FOODS-PROVISIONS,CATERERS,GPC
WALSALL COUNCIL,HTTP://OPENDATACOMMUNITIES.ORG/ID/METROPOLITAN-DISTRICT-COUNCIL/WALSALL,30/06/2017,SOCIAL CARE & INCLUSION,TOOLSTATION LTD,05/04/2017,H59620170407RCXYASBRJ-1,68.00,TELE-HEALTHCARE-HEALTH & SAFETY-MATERIALS,HARDWARE STORES,GPC
WALSALL COUNCIL,HTTP://OPENDATACOMMUNITIES.ORG/ID/METROPOLITAN-DISTRICT-COUNCIL/WALSALL,30/06/2017,ECONOMY & ENVIRONMENT,W M MORRISONS,05/04/2017,H59620170407RKEHWHPMO-1,31.90,WALSALL OUTDOOR ADVENTURE CENT-FOOD AND BEVERAGES-PROVISIONS,GROCERY STORES AND SUPERMARKETS,GPC
WALSALL COUNCIL,HTTP://OPENDATACOMMUNITIES.ORG/ID/METROPOLITAN-DISTRICT-COUNCIL/WALSALL,30/06/2017,CHANGE & GOVERNANCE,TESCO STORES 6161,05/04/2017,H59620170407RRDYYZBPH-1,3.00,YOUNG PERSONS HOMELESS SERVICE-GENERAL PROVISIONS-PROVISIONS,GROCERY STORES AND SUPERMARKETS,GPC
WALSALL COUNCIL,HTTP://OPENDATACOMMUNITIES.ORG/ID/METROPOLITAN-DISTRICT-COUNCIL/WALSALL,30/06/2017,CHANGE & GOVERNANCE,ARTHUR BRETT CATER,05/04/2017,H59620170407SKUHWXODA-1,28.02,CA BARCROFT D/C-FRUIT & VEGETABLES OTHER-PROVI,MISCELLANEOUS FOOD STORES & CONVENIENCE STORES,GPC
WALSALL COUNCIL,HTTP://OPENDATACOMMUNITIES.ORG/ID/METROPOLITAN-DISTRICT-COUNCIL/WALSALL,30/06/2017,CHANGE & GOVERNANCE,BLAKEMORE FOODSERVICE,05/04/2017,H59620170407SXIGINDHQ-1,96.81,CA WATLING STREET PRIMARY SCHO-FROZEN FOODS-PROVISIONS,CATERERS,GPC
WALSALL COUNCIL,HTTP://OPENDATACOMMUNITIES.ORG/ID/METROPOLITAN-DISTRICT-COUNCIL/WALSALL,30/06/2017,CHILDRENS SERVICES,AMAZON UK MARKETPLACE,05/04/2017,H59620170407TFUGITYRH-1,8.40,PHASE 1 RESOURCES-GENERAL MATERIALS,BOOK STORES,GPC
WALSALL COUNCIL,HTTP://OPENDATACOMMUNITIES.ORG/ID/METROPOLITAN-DISTRICT-COUNCIL/WALSALL,30/06/2017,CHANGE & GOVERNANCE,BLAKEMORE FOODSERVICE,05/04/2017,H59620170407TVICSOWXL-1,146.22,CA BARCROFT D/C-FROZEN FOODS-PROVISIONS,CATERERS,GPC
WALSALL COUNCIL,HTTP://OPENDATACOMMUNITIES.ORG/ID/METROPOLITAN-DISTRICT-COUNCIL/WALSALL,30/06/2017,ECONOMY & ENVIRONMENT,B & Q 1276,05/04/2017,H59620170407TYNNEFTYA-1,50.63,BLOXWICH LEISURE CENTRE-MAINTENANCE-FURNITURE & EQUIPM,LUMBER & BUILDING MATERIALS STORES,GPC
WALSALL COUNCIL,HTTP://OPENDATACOMMUNITIES.ORG/ID/METROPOLITAN-DISTRICT-COUNCIL/WALSALL,30/06/2017,CHANGE & GOVERNANCE,BLAKEMORE FOODSERVICE,05/04/2017,H59620170407UJPVEBWSA-1,52.96,CA TOWN HALL RESTAURANT - CATE-FROZEN FOODS-PROVISIONS,CATERERS,GPC
WALSALL COUNCIL,HTTP://OPENDATACOMMUNITIES.ORG/ID/METROPOLITAN-DISTRICT-COUNCIL/WALSALL,30/06/2017,CHANGE & GOVERNANCE,BLAKEMORE FOODSERVICE,05/04/2017,H59620170407ULJELEVGC-1,126.08,CA OLD HALL SPECIAL SCHOOL-DRY FOODS-PROVISIONS,CATERERS,GPC
WALSALL COUNCIL,HTTP://OPENDATACOMMUNITIES.ORG/ID/METROPOLITAN-DISTRICT-COUNCIL/WALSALL,30/06/2017,CHILDRENS SERVICES,WWW.CONNEVANS.COM,05/04/2017,H59620170407VQRFPJDRY-1,-318.00,SEN ASSESSMENT-MISCELLANEOUS SUPPLIES,MISCELLANEOUS AND SPECIALTY RETAIL STORES,GPC
WALSALL COUNCIL,HTTP://OPENDATACOMMUNITIES.ORG/ID/METROPOLITAN-DISTRICT-COUNCIL/WALSALL,30/06/2017,CHANGE & GOVERNANCE,REGISTRATION SERVICES,05/04/2017,H59620170407WBMOQFLTD-1,17.00,YOUNG PERSONS HOMELESS SERVICE-MISCELLANEOUS SUPPLIES,OTHER RECREATION SERVICES,GPC
WALSALL COUNCIL,HTTP://OPENDATACOMMUNITIES.ORG/ID/METROPOLITAN-DISTRICT-COUNCIL/WALSALL,30/06/2017,CHANGE & GOVERNANCE,BLAKEMORE FOODSERVICE,05/04/2017,H59620170407WKKGITVAH-1,163.71,CA ST MICHAELS C.E. PRIMARY SC-FROZEN FOODS-PROVISIONS,CATERERS,GPC
WALSALL COUNCIL,HTTP://OPENDATACOMMUNITIES.ORG/ID/METROPOLITAN-DISTRICT-COUNCIL/WALSALL,30/06/2017,CHILDRENS SERVICES,TRAINLINE,05/04/2017,H59620170407WLNGLTODG-1,21.88,SAFEGUARDING & FAMILY SUPPORT-OFFICER/STAFF-PUBLIC TRANSPORT,PASSENGER RAILWAYS,GPC
WALSALL COUNCIL,HTTP://OPENDATACOMMUNITIES.ORG/ID/METROPOLITAN-DISTRICT-COUNCIL/WALSALL,30/06/2017,CHANGE & GOVERNANCE,BLAKEMORE FOODSERVICE,05/04/2017,H59620170407WMFIWYDXY-1,223.85,CA BLUE COAT C OF E PERFORMING-DRY FOODS-PROVISIONS,CATERERS,GPC
WALSALL COUNCIL,HTTP://OPENDATACOMMUNITIES.ORG/ID/METROPOLITAN-DISTRICT-COUNCIL/WALSALL,30/06/2017,CHANGE & GOVERNANCE,BLAKEMORE FOODSERVICE,05/04/2017,H59620170407WMFIWYDXY-2,48.08,CA BLUE COAT C OF E PERFORMING-DRY FOODS-PROVISIONS,CATERERS,GPC
WALSALL COUNCIL,HTTP://OPENDATACOMMUNITIES.ORG/ID/METROPOLITAN-DISTRICT-COUNCIL/WALSALL,30/06/2017,CHANGE & GOVERNANCE,TRAVEL WEST MIDLAN,05/04/2017,H59620170407WUEVTNXGN-1,54.50,YOUNG PERSONS HOMELESS SERVICE-TRAVEL ALLOWANCE-ALLOWANCES TO,BUS LINES,GPC
WALSALL COUNCIL,HTTP://OPENDATACOMMUNITIES.ORG/ID/METROPOLITAN-DISTRICT-COUNCIL/WALSALL,30/06/2017,CHANGE & GOVERNANCE,BLAKEMORE FOODSERVICE,05/04/2017,H59620170407WUNXIRHYN-1,45.87,CA BROWNHILLS WEST PRIMARY SCH-FROZEN FOODS-PROVISIONS,CATERERS,GPC
WALSALL COUNCIL,HTTP://OPENDATACOMMUNITIES.ORG/ID/METROPOLITAN-DISTRICT-COUNCIL/WALSALL,30/06/2017,CHANGE & GOVERNANCE,BLAKEMORE FOODSERVICE,05/04/2017,H59620170407WUNXIRHYN-2,16.00,CA BROWNHILLS WEST PRIMARY SCH-FROZEN FOODS-PROVISIONS,CATERERS,GPC
WALSALL COUNCIL,HTTP://OPENDATACOMMUNITIES.ORG/ID/METROPOLITAN-DISTRICT-COUNCIL/WALSALL,30/06/2017,ECONOMY & ENVIRONMENT,WM MORRISONS,05/04/2017,H59620170407XCKUCYIIM-1,2.00,WALSALL OUTDOOR ADVENTURE CENT-FOOD AND BEVERAGES-PROVISIONS,GROCERY STORES AND SUPERMARKETS,GPC
WALSALL COUNCIL,HTTP://OPENDATACOMMUNITIES.ORG/ID/METROPOLITAN-DISTRICT-COUNCIL/WALSALL,30/06/2017,ECONOMY & ENVIRONMENT,WM MORRISONS,05/04/2017,H59620170407XCKUCYIIM-2,2.00,WALSALL OUTDOOR ADVENTURE CENT-FOOD AND BEVERAGES-PROVISIONS,GROCERY STORES AND SUPERMARKETS,GPC
WALSALL COUNCIL,HTTP://OPENDATACOMMUNITIES.ORG/ID/METROPOLITAN-DISTRICT-COUNCIL/WALSALL,30/06/2017,CHANGE & GOVERNANCE,BLAKEMORE FOODSERVICE,05/04/2017,H59620170407XDQIBFKPG-1,32.02,CA LINDENS PRIMARY SCHOOL-FROZEN FOODS-PROVISIONS,CATERERS,GPC
WALSALL COUNCIL,HTTP://OPENDATACOMMUNITIES.ORG/ID/METROPOLITAN-DISTRICT-COUNCIL/WALSALL,30/06/2017,CHANGE & GOVERNANCE,BLAKEMORE FOODSERVICE,05/04/2017,H59620170407XDQIBFKPG-2,327.85,CA LINDENS PRIMARY SCHOOL-FROZEN FOODS-PROVISIONS,CATERERS,GPC
WALSALL COUNCIL,HTTP://OPENDATACOMMUNITIES.ORG/ID/METROPOLITAN-DISTRICT-COUNCIL/WALSALL,30/06/2017,ECONOMY & ENVIRONMENT,CREATION CLIMBING,05/04/2017,H59620170407XMGYKCQSC-1,41.25,WALSALL OUTDOOR ADVENTURE CENT-PROFESSIONAL FEES AND SERVICES,OTHER RECREATION SERVICES,GPC
WALSALL COUNCIL,HTTP://OPENDATACOMMUNITIES.ORG/ID/METROPOLITAN-DISTRICT-COUNCIL/WALSALL,30/06/2017,CHANGE & GOVERNANCE,BLAKEMORE FOODSERVICE,05/04/2017,H59620170407XTXXGUSDM-1,4.61,CA RUSHALL JMI SCHOOL-DRY FOODS-PROVISIONS,CATERERS,GPC
WALSALL COUNCIL,HTTP://OPENDATACOMMUNITIES.ORG/ID/METROPOLITAN-DISTRICT-COUNCIL/WALSALL,30/06/2017,CHANGE & GOVERNANCE,BLAKEMORE FOODSERVICE,05/04/2017,H59620170407XVPBAEYUI-1,9.59,CA ST ANNES CATHOLIC PRIMARY S-MISC DAIRY PRODUCTS-PROVISIONS,CATERERS,GPC
WALSALL COUNCIL,HTTP://OPENDATACOMMUNITIES.ORG/ID/METROPOLITAN-DISTRICT-COUNCIL/WALSALL,30/06/2017,CHANGE & GOVERNANCE,NEW LOOK 1880,05/04/2017,H59620170407YBSCCIKYM-1,88.00,YOUNG PERSONS HOMELESS SERVICE-GENERAL PROVISIONS-PROVISIONS,WOMENS READY TO WEAR STORES,GPC
WALSALL COUNCIL,HTTP://OPENDATACOMMUNITIES.ORG/ID/METROPOLITAN-DISTRICT-COUNCIL/WALSALL,30/06/2017,CHANGE & GOVERNANCE,BLAKEMORE FOODSERVICE,05/04/2017,H59620170407YGQQIDJVF-1,12.37,CA BEACON PRIMARY SCHOOL-DRY FOODS-PROVISIONS,CATERERS,GPC
WALSALL COUNCIL,HTTP://OPENDATACOMMUNITIES.ORG/ID/METROPOLITAN-DISTRICT-COUNCIL/WALSALL,30/06/2017,CHANGE & GOVERNANCE,BLAKEMORE FOODSERVICE,05/04/2017,H59620170407YGQQIDJVF-2,155.32,CA BEACON PRIMARY SCHOOL-DRY FOODS-PROVISIONS,CATERERS,GPC
WALSALL COUNCIL,HTTP://OPENDATACOMMUNITIES.ORG/ID/METROPOLITAN-DISTRICT-COUNCIL/WALSALL,30/06/2017,SOCIAL CARE & INCLUSION,ASDA HOME SHOPPING,05/04/2017,H59620170407YGSCMMHIJ-1,18.72,FALLINGS HEATH-FOOD AND BEVERAGES-PROVISIONS,GROCERY STORES AND SUPERMARKETS,GPC
WALSALL COUNCIL,HTTP://OPENDATACOMMUNITIES.ORG/ID/METROPOLITAN-DISTRICT-COUNCIL/WALSALL,30/06/2017,SOCIAL CARE & INCLUSION,ASDA HOME SHOPPING,05/04/2017,H59620170407YGSCMMHIJ-2,129.25,FALLINGS HEATH-FOOD AND BEVERAGES-PROVISIONS,GROCERY STORES AND SUPERMARKETS,GPC
WALSALL COUNCIL,HTTP://OPENDATACOMMUNITIES.ORG/ID/METROPOLITAN-DISTRICT-COUNCIL/WALSALL,30/06/2017,CHANGE & GOVERNANCE,BLAKEMORE FOODSERVICE,05/04/2017,H59620170407YJJWDFUBZ-1,113.46,CA CASTLEFORT JMI SCHOOL-FROZEN FOODS-PROVISIONS,CATERERS,GPC
WALSALL COUNCIL,HTTP://OPENDATACOMMUNITIES.ORG/ID/METROPOLITAN-DISTRICT-COUNCIL/WALSALL,30/06/2017,CHILDRENS SERVICES,AMAZON UK MARKETPLACE,05/04/2017,H59620170407YYQMMFAOO-1,53.15,ICT-GENERAL MATERIALS,MISCELLANEOUS AND SPECIALTY RETAIL STORES,GPC
WALSALL COUNCIL,HTTP://OPENDATACOMMUNITIES.ORG/ID/METROPOLITAN-DISTRICT-COUNCIL/WALSALL,30/06/2017,CHILDRENS SERVICES,AMAZON UK RETAIL,05/04/2017,H59620170407ZYPCPEHUO-1,61.95,PHASE 1 RESOURCES-GENERAL MATERIALS,OTHER DIRECT MARKETING-OTHER DIRECT MARKETERS,GPC
WALSALL COUNCIL,HTTP://OPENDATACOMMUNITIES.ORG/ID/METROPOLITAN-DISTRICT-COUNCIL/WALSALL,30/06/2017,SOCIAL CARE & INCLUSION,TVLICENSING.CO.UK,05/04/2017,H59620170408FTPWEEKCG-1,147.00,TELE-HEALTHCARE-MISC FEES AND EXPENSES,"CONSULTING, MANAGEMENT, AND PR SERVICES",GPC
WALSALL COUNCIL,HTTP://OPENDATACOMMUNITIES.ORG/ID/METROPOLITAN-DISTRICT-COUNCIL/WALSALL,30/06/2017,CHANGE & GOVERNANCE,WWW.SCC.COM,05/04/2017,H59620170408HCWNUWQGJ-1,119.45,RECHARGEABLE EQUIPMENT-COMPUTER EQUIPMENT AND SUPPLIE,"COMPUTERS, COMPUTER PERIPHERAL EQUIPMENT, SOFTWARE",GPC
WALSALL COUNCIL,HTTP://OPENDATACOMMUNITIES.ORG/ID/METROPOLITAN-DISTRICT-COUNCIL/WALSALL,30/06/2017,CHANGE & GOVERNANCE,BRITANNIA,05/04/2017,H59620170408HXWBSOOMH-1,123.50,BED & BREAKFAST PAYMENTS-HOTEL ACCOMMODATION-EMPLOYEES,"HOTELS, MOTELS, RESORTS",GPC
WALSALL COUNCIL,HTTP://OPENDATACOMMUNITIES.ORG/ID/METROPOLITAN-DISTRICT-COUNCIL/WALSALL,30/06/2017,ECONOMY & ENVIRONMENT,JEWSON,05/04/2017,H59620170408QYYFBEJTP-1,18.00,INFRASTRUCTURE MAINTENANCE-GENERAL MATERIALS,LUMBER & BUILDING MATERIALS STORES,GPC
WALSALL COUNCIL,HTTP://OPENDATACOMMUNITIES.ORG/ID/METROPOLITAN-DISTRICT-COUNCIL/WALSALL,30/06/2017,CHILDRENS SERVICES,AMAZON UK RETAIL AMAZON.C,05/04/2017,H59620170408RLHIRHBFD-1,62.51,PHASE 1 RESOURCES-GENERAL MATERIALS,MISCELLANEOUS AND SPECIALTY RETAIL STORES,GPC
WALSALL COUNCIL,HTTP://OPENDATACOMMUNITIES.ORG/ID/METROPOLITAN-DISTRICT-COUNCIL/WALSALL,30/06/2017,ECONOMY & ENVIRONMENT,WWW.CENTRETANK.COM,05/04/2017,H59620170408VMXKUHCNG-1,55.29,FLEET-GENERAL MATERIALS,OTHER INDUSTRIAL SUPPLIES,GPC
WALSALL COUNCIL,HTTP://OPENDATACOMMUNITIES.ORG/ID/METROPOLITAN-DISTRICT-COUNCIL/WALSALL,30/06/2017,CHANGE & GOVERNANCE,PREMIER INN44533745,05/04/2017,H59620170408XYRMMQMCW-1,322.00,BED & BREAKFAST PAYMENTS-HOTEL ACCOMMODATION-EMPLOYEES,PREMIER INN,GPC
WALSALL COUNCIL,HTTP://OPENDATACOMMUNITIES.ORG/ID/METROPOLITAN-DISTRICT-COUNCIL/WALSALL,30/06/2017,CHILDRENS SERVICES,AMAZON UK MARKETPLACE,06/04/2017,H59620170408ADKFUKRCJ-1,69.95,PHASE 1 RESOURCES-GENERAL MATERIALS,BOOK STORES,GPC
WALSALL COUNCIL,HTTP://OPENDATACOMMUNITIES.ORG/ID/METROPOLITAN-DISTRICT-COUNCIL/WALSALL,30/06/2017,CHANGE & GOVERNANCE,WILKO.COM,06/04/2017,H59620170408AGVWIGHJK-1,253.05,ACCOMMODATION SERVICES MANAGEM-FURNITURE & EQUIPMENT,HOUSEHOLD APPLIANCE STORES,GPC
WALSALL COUNCIL,HTTP://OPENDATACOMMUNITIES.ORG/ID/METROPOLITAN-DISTRICT-COUNCIL/WALSALL,30/06/2017,CHANGE & GOVERNANCE,PARK INN BY RADISSON,06/04/2017,H59620170408AQBEUEIGP-1,97.00,BED & BREAKFAST PAYMENTS-BED & BREAKFAST PAYMENTS,"HOTELS, MOTELS, RESORTS",GPC
WALSALL COUNCIL,HTTP://OPENDATACOMMUNITIES.ORG/ID/METROPOLITAN-DISTRICT-COUNCIL/WALSALL,30/06/2017,CHANGE & GOVERNANCE,JOHAL DAIRIES LTD,06/04/2017,H59620170408AVTDSHSRW-1,7.40,CA LITTLE BLOXWICH CE PRIMARY -MISC DAIRY PRODUCTS-PROVISIONS,OTHER NONDURABLE GOODS,GPC
WALSALL COUNCIL,HTTP://OPENDATACOMMUNITIES.ORG/ID/METROPOLITAN-DISTRICT-COUNCIL/WALSALL,30/06/2017,ECONOMY & ENVIRONMENT,TOOLSTATION LTD,06/04/2017,H59620170408BDPCOMIXW-1,10.72,INFRASTRUCTURE MAINTENANCE-GENERAL MATERIALS,HARDWARE STORES,GPC
WALSALL COUNCIL,HTTP://OPENDATACOMMUNITIES.ORG/ID/METROPOLITAN-DISTRICT-COUNCIL/WALSALL,30/06/2017,SOCIAL CARE & INCLUSION,JOHAL DAIRIES LTD,06/04/2017,H59620170408BKCYBPHED-1,25.03,FALLINGS HEATH-FOOD AND BEVERAGES-PROVISIONS,OTHER NONDURABLE GOODS,GPC
WALSALL COUNCIL,HTTP://OPENDATACOMMUNITIES.ORG/ID/METROPOLITAN-DISTRICT-COUNCIL/WALSALL,30/06/2017,ECONOMY & ENVIRONMENT,WALSALL WOOD,06/04/2017,H59620170408BLIKWWGRE-1,25.98,INFRASTRUCTURE MAINTENANCE-GENERAL MATERIALS,LUMBER & BUILDING MATERIALS STORES,GPC
WALSALL COUNCIL,HTTP://OPENDATACOMMUNITIES.ORG/ID/METROPOLITAN-DISTRICT-COUNCIL/WALSALL,30/06/2017,ECONOMY & ENVIRONMENT,SUPPLIES TEAM,06/04/2017,H59620170408BMJCNTMFS-1,15.13,CENTRALISED STATIONARY-STATIONERY & GENERAL SUPPLIES-,"OFFICE, SCHOOL SUPPLY, AND STATIONERY STORES",GPC
WALSALL COUNCIL,HTTP://OPENDATACOMMUNITIES.ORG/ID/METROPOLITAN-DISTRICT-COUNCIL/WALSALL,30/06/2017,CHILDRENS SERVICES,AMAZON UK MARKETPLACE,06/04/2017,H59620170408BMWTKYMLZ-1,4.25,PHASE 1 RESOURCES-GENERAL MATERIALS,BOOK STORES,GPC
WALSALL COUNCIL,HTTP://OPENDATACOMMUNITIES.ORG/ID/METROPOLITAN-DISTRICT-COUNCIL/WALSALL,30/06/2017,SOCIAL CARE & INCLUSION,JOHAL DAIRIES LTD,06/04/2017,H59620170408BSVZXLDYJ-1,88.69,REABLEMENT TEAM - HOLLY BANK-DAIRY PRODUCTS-PROVISIONS,OTHER NONDURABLE GOODS,GPC
WALSALL COUNCIL,HTTP://OPENDATACOMMUNITIES.ORG/ID/METROPOLITAN-DISTRICT-COUNCIL/WALSALL,30/06/2017,CHANGE & GOVERNANCE,JOHAL DAIRIES LTD,06/04/2017,H59620170408BWHKMIFOD-1,8.53,CA BIRCHILLS CE PRIMARY COMMUN-MISC DAIRY PRODUCTS-PROVISIONS,OTHER NONDURABLE GOODS,GPC
WALSALL COUNCIL,HTTP://OPENDATACOMMUNITIES.ORG/ID/METROPOLITAN-DISTRICT-COUNCIL/WALSALL,30/06/2017,CHANGE & GOVERNANCE,JOHAL DAIRIES LTD,06/04/2017,H59620170408BWHKMIFOD-2,109.46,CA BIRCHILLS CE PRIMARY COMMUN-MISC DAIRY PRODUCTS-PROVISIONS,OTHER NONDURABLE GOODS,GPC
WALSALL COUNCIL,HTTP://OPENDATACOMMUNITIES.ORG/ID/METROPOLITAN-DISTRICT-COUNCIL/WALSALL,30/06/2017,CHANGE & GOVERNANCE,SUBWAY,06/04/2017,H59620170408BYPFTCGRA-1,6.95,YOUNG PERSONS HOMELESS SERVICE-SUBSISTENCE OFFICERS-EXPENSES,"EATING PLACES, RESTAURANTS",GPC
WALSALL COUNCIL,HTTP://OPENDATACOMMUNITIES.ORG/ID/METROPOLITAN-DISTRICT-COUNCIL/WALSALL,30/06/2017,CHANGE & GOVERNANCE,JOHAL DAIRIES LTD,06/04/2017,H59620170408CBEONPRPR-1,30.40,CA MOORCROFT WOOD-MISC DAIRY PRODUCTS-PROVISIONS,OTHER NONDURABLE GOODS,GPC
WALSALL COUNCIL,HTTP://OPENDATACOMMUNITIES.ORG/ID/METROPOLITAN-DISTRICT-COUNCIL/WALSALL,30/06/2017,CHANGE & GOVERNANCE,JOHAL DAIRIES LTD,06/04/2017,H59620170408CHQVGQMIC-1,21.47,CA RUSHALL JMI SCHOOL-MISC DAIRY PRODUCTS-PROVISIONS,OTHER NONDURABLE GOODS,GPC
WALSALL COUNCIL,HTTP://OPENDATACOMMUNITIES.ORG/ID/METROPOLITAN-DISTRICT-COUNCIL/WALSALL,30/06/2017,CHILDRENS SERVICES,AMAZON UK MARKETPLACE,06/04/2017,H59620170408CLSAQUNKL-1,9.88,PHASE 1 RESOURCES-GENERAL MATERIALS,BOOK STORES,GPC
WALSALL COUNCIL,HTTP://OPENDATACOMMUNITIES.ORG/ID/METROPOLITAN-DISTRICT-COUNCIL/WALSALL,30/06/2017,CHANGE & GOVERNANCE,JOHAL DAIRIES LTD,06/04/2017,H59620170408CWGKXEDLI-1,2.22,CA WALSALL WOOD PRIMARY SCHOOL-MISC DAIRY PRODUCTS-PROVISIONS,OTHER NONDURABLE GOODS,GPC
WALSALL COUNCIL,HTTP://OPENDATACOMMUNITIES.ORG/ID/METROPOLITAN-DISTRICT-COUNCIL/WALSALL,30/06/2017,ECONOMY & ENVIRONMENT,TOOLSTATION LTD,06/04/2017,H59620170408DCGBQJKWE-1,26.11,ARBORETUM-GENERAL MATERIALS,HARDWARE STORES,GPC
WALSALL COUNCIL,HTTP://OPENDATACOMMUNITIES.ORG/ID/METROPOLITAN-DISTRICT-COUNCIL/WALSALL,30/06/2017,CHANGE & GOVERNANCE,JOHAL DAIRIES LTD,06/04/2017,H59620170408DFAGDDLDM-1,2.37,CA CROFT COMMUNITY PRIMARY SCH-MISC DAIRY PRODUCTS-PROVISIONS,OTHER NONDURABLE GOODS,GPC
WALSALL COUNCIL,HTTP://OPENDATACOMMUNITIES.ORG/ID/METROPOLITAN-DISTRICT-COUNCIL/WALSALL,30/06/2017,CHANGE & GOVERNANCE,B & Q 1276,06/04/2017,H59620170408DIQUIBEKP-1,103.71,CL ADMIN-CLEANING MATERIALS,LUMBER & BUILDING MATERIALS STORES,GPC
WALSALL COUNCIL,HTTP://OPENDATACOMMUNITIES.ORG/ID/METROPOLITAN-DISTRICT-COUNCIL/WALSALL,30/06/2017,CHILDRENS SERVICES,CURRYS,06/04/2017,H59620170408DMFCJEHFR-1,"4,485.32",KING CHARLES PRIMARY SCHOOL-FURNITURE & EQUIPMENT,ELECTRONIC SALES,GPC
WALSALL COUNCIL,HTTP://OPENDATACOMMUNITIES.ORG/ID/METROPOLITAN-DISTRICT-COUNCIL/WALSALL,30/06/2017,ECONOMY & ENVIRONMENT,W M MORRISONS,06/04/2017,H59620170408DWFZHWDXU-1,3.77,WALSALL OUTDOOR ADVENTURE CENT-FOOD AND BEVERAGES-PROVISIONS,GROCERY STORES AND SUPERMARKETS,GPC
WALSALL COUNCIL,HTTP://OPENDATACOMMUNITIES.ORG/ID/METROPOLITAN-DISTRICT-COUNCIL/WALSALL,30/06/2017,ECONOMY & ENVIRONMENT,W M MORRISONS,06/04/2017,H59620170408DWFZHWDXU-2,14.94,WALSALL OUTDOOR ADVENTURE CENT-FOOD AND BEVERAGES-PROVISIONS,GROCERY STORES AND SUPERMARKETS,GPC
WALSALL COUNCIL,HTTP://OPENDATACOMMUNITIES.ORG/ID/METROPOLITAN-DISTRICT-COUNCIL/WALSALL,30/06/2017,CHANGE & GOVERNANCE,JOHAL DAIRIES LTD,06/04/2017,H59620170408ENGGBJHDA-1,13.44,CA BUSILL JONES PRIMARY SCHOOL-MISC DAIRY PRODUCTS-PROVISIONS,OTHER NONDURABLE GOODS,GPC
WALSALL COUNCIL,HTTP://OPENDATACOMMUNITIES.ORG/ID/METROPOLITAN-DISTRICT-COUNCIL/WALSALL,30/06/2017,CHANGE & GOVERNANCE,JOHAL DAIRIES LTD,06/04/2017,H59620170408ENRDDMSCN-1,10.75,CA JANE LANE SPECIAL SCHOOL-MISC DAIRY PRODUCTS-PROVISIONS,OTHER NONDURABLE GOODS,GPC
WALSALL COUNCIL,HTTP://OPENDATACOMMUNITIES.ORG/ID/METROPOLITAN-DISTRICT-COUNCIL/WALSALL,30/06/2017,CHANGE & GOVERNANCE,BORSHCH LIMITED,06/04/2017,H59620170408ESGILGWPW-1,200.00,WALSALL CRISIS SUPPORT SCHEME-FURNITURE & EQUIPMENT,ELECTRONIC SALES,GPC
WALSALL COUNCIL,HTTP://OPENDATACOMMUNITIES.ORG/ID/METROPOLITAN-DISTRICT-COUNCIL/WALSALL,30/06/2017,CHILDRENS SERVICES,SUPPLIES TEAM,06/04/2017,H59620170408FFJGKBSJM-1,80.60,"43A HILTON ROAD, WILLENHALL-STATIONERY & GENERAL SUPPLIES-","OFFICE, SCHOOL SUPPLY, AND STATIONERY STORES",GPC
WALSALL COUNCIL,HTTP://OPENDATACOMMUNITIES.ORG/ID/METROPOLITAN-DISTRICT-COUNCIL/WALSALL,30/06/2017,CHILDRENS SERVICES,JOHAL DAIRIES LTD,06/04/2017,H59620170408FKWCOQMCU-1,6.32,57 LICHFIELD ROAD-FOOD AND BEVERAGES-PROVISIONS,OTHER NONDURABLE GOODS,GPC
WALSALL COUNCIL,HTTP://OPENDATACOMMUNITIES.ORG/ID/METROPOLITAN-DISTRICT-COUNCIL/WALSALL,30/06/2017,CHANGE & GOVERNANCE,JOHAL DAIRIES LTD,06/04/2017,H59620170408FRHVPQMTS-1,29.60,CA COOPER JORDAN CE PRIMARY SC-MISC DAIRY PRODUCTS-PROVISIONS,OTHER NONDURABLE GOODS,GPC
WALSALL COUNCIL,HTTP://OPENDATACOMMUNITIES.ORG/ID/METROPOLITAN-DISTRICT-COUNCIL/WALSALL,30/06/2017,CHANGE & GOVERNANCE,JOHAL DAIRIES LTD,06/04/2017,H59620170408FTXFMMCTC-1,7.90,CA BEACON PRIMARY SCHOOL-MISC DAIRY PRODUCTS-PROVISIONS,OTHER NONDURABLE GOODS,GPC
WALSALL COUNCIL,HTTP://OPENDATACOMMUNITIES.ORG/ID/METROPOLITAN-DISTRICT-COUNCIL/WALSALL,30/06/2017,CHILDRENS SERVICES,SAINSBURYS S/MKTS,06/04/2017,H59620170408GCGEYYKIW-1,4.00,57 LICHFIELD ROAD-FOOD AND BEVERAGES-PROVISIONS,GROCERY STORES AND SUPERMARKETS,GPC
WALSALL COUNCIL,HTTP://OPENDATACOMMUNITIES.ORG/ID/METROPOLITAN-DISTRICT-COUNCIL/WALSALL,30/06/2017,CHANGE & GOVERNANCE,JOHAL DAIRIES LTD,06/04/2017,H59620170408GNVIDOGMD-1,9.67,CA ST ANNES CATHOLIC PRIMARY S-MISC DAIRY PRODUCTS-PROVISIONS,OTHER NONDURABLE GOODS,GPC
WALSALL COUNCIL,HTTP://OPENDATACOMMUNITIES.ORG/ID/METROPOLITAN-DISTRICT-COUNCIL/WALSALL,30/06/2017,CHANGE & GOVERNANCE,BORSHCH LIMITED,06/04/2017,H59620170408GPKAPMOLM-1,465.00,WALSALL CRISIS SUPPORT SCHEME-FURNITURE & EQUIPMENT,ELECTRONIC SALES,GPC
WALSALL COUNCIL,HTTP://OPENDATACOMMUNITIES.ORG/ID/METROPOLITAN-DISTRICT-COUNCIL/WALSALL,30/06/2017,CHILDRENS SERVICES,ASDA SUPERSTORE,06/04/2017,H59620170408HHRLTNGXE-1,19.34,REDRUTH ROAD-FOOD AND BEVERAGES-PROVISIONS,GROCERY STORES AND SUPERMARKETS,GPC
WALSALL COUNCIL,HTTP://OPENDATACOMMUNITIES.ORG/ID/METROPOLITAN-DISTRICT-COUNCIL/WALSALL,30/06/2017,CHILDRENS SERVICES,ASDA SUPERSTORE,06/04/2017,H59620170408HHRLTNGXE-2,38.64,REDRUTH ROAD-FOOD AND BEVERAGES-PROVISIONS,GROCERY STORES AND SUPERMARKETS,GPC
WALSALL COUNCIL,HTTP://OPENDATACOMMUNITIES.ORG/ID/METROPOLITAN-DISTRICT-COUNCIL/WALSALL,30/06/2017,CHILDRENS SERVICES,JOHAL DAIRIES LTD,06/04/2017,H59620170408IBNYCPWBK-1,4.74,STROUD FAMILY CENTRE-MISC DAIRY PRODUCTS-PROVISIONS,OTHER NONDURABLE GOODS,GPC
WALSALL COUNCIL,HTTP://OPENDATACOMMUNITIES.ORG/ID/METROPOLITAN-DISTRICT-COUNCIL/WALSALL,30/06/2017,ECONOMY & ENVIRONMENT,SUPPLIES TEAM,06/04/2017,H59620170408IPYWUBBBJ-1,9.12,JOINT COMMITTEE & PROGRAMME MA-GENERAL EXPENSES-OFFICE EXP,"OFFICE, SCHOOL SUPPLY, AND STATIONERY STORES",GPC
WALSALL COUNCIL,HTTP://OPENDATACOMMUNITIES.ORG/ID/METROPOLITAN-DISTRICT-COUNCIL/WALSALL,30/06/2017,CHILDRENS SERVICES,NOCHEX.*SENSORY EDUCAT,06/04/2017,H59620170408IXLEYTHHA-1,33.90,PARENTING TEAM-TOYS & GAMES-MATERIALS,"GAME, TOY, AND HOBBY SHOPS",GPC
WALSALL COUNCIL,HTTP://OPENDATACOMMUNITIES.ORG/ID/METROPOLITAN-DISTRICT-COUNCIL/WALSALL,30/06/2017,CHILDRENS SERVICES,SUPPLIES TEAM,06/04/2017,H59620170408JBHPDVHTN-1,37.82,LOCALITY FAMILY SUPPORT-NORTH-STATIONERY & GENERAL SUPPLIES-,"OFFICE, SCHOOL SUPPLY, AND STATIONERY STORES",GPC
WALSALL COUNCIL,HTTP://OPENDATACOMMUNITIES.ORG/ID/METROPOLITAN-DISTRICT-COUNCIL/WALSALL,30/06/2017,CHILDRENS SERVICES,WALSALL COUNCIL,06/04/2017,H59620170408JBPXOASUB-1,185.36,ST FRANCIS OF ASSISI CATHOLIC -MISC FEES AND EXPENSES,GOVERNMENT SERVICES,GPC
WALSALL COUNCIL,HTTP://OPENDATACOMMUNITIES.ORG/ID/METROPOLITAN-DISTRICT-COUNCIL/WALSALL,30/06/2017,CHILDRENS SERVICES,J D SPORTS 177,06/04/2017,H59620170408JDSCBHYDK-1,100.05,SPINDLETREE-RESIDENTS PERSONAL EXPENSES-AL,SPORTING GOODS STORES,GPC
WALSALL COUNCIL,HTTP://OPENDATACOMMUNITIES.ORG/ID/METROPOLITAN-DISTRICT-COUNCIL/WALSALL,30/06/2017,CHILDRENS SERVICES,THE LONDON EYE,06/04/2017,H59620170408JFTVSIPYN-1,26.00,57 LICHFIELD ROAD-RESIDENTS PERSONAL EXPENSES-AL,TOURIST ATTRACTIONS AND EXHIBITS,GPC
WALSALL COUNCIL,HTTP://OPENDATACOMMUNITIES.ORG/ID/METROPOLITAN-DISTRICT-COUNCIL/WALSALL,30/06/2017,CHANGE & GOVERNANCE,CROSS COUNTRY TRAINS,06/04/2017,H59620170408JRYAPNZZR-1,115.00,YOUNG PERSONS HOMELESS SERVICE-TRAVEL ALLOWANCE-ALLOWANCES TO,PASSENGER RAILWAYS,GPC
WALSALL COUNCIL,HTTP://OPENDATACOMMUNITIES.ORG/ID/METROPOLITAN-DISTRICT-COUNCIL/WALSALL,30/06/2017,CHANGE & GOVERNANCE,PARK PLACE SHOE REPAIRS,06/04/2017,H59620170408KJXFRSHES-1,14.00,WALSALL CRISIS SUPPORT SCHEME-CLOTHING & LAUNDRY,"HAT CLEANING SHOPS, SHOE REPAIR SHOPS, SHOE SHINE ",GPC
WALSALL COUNCIL,HTTP://OPENDATACOMMUNITIES.ORG/ID/METROPOLITAN-DISTRICT-COUNCIL/WALSALL,30/06/2017,CHANGE & GOVERNANCE,JOHAL DAIRIES LTD,06/04/2017,H59620170408KTLWTUURJ-1,26.84,CA LEIGHSWOOD PRIMARY SCHOOL-MISC DAIRY PRODUCTS-PROVISIONS,OTHER NONDURABLE GOODS,GPC
WALSALL COUNCIL,HTTP://OPENDATACOMMUNITIES.ORG/ID/METROPOLITAN-DISTRICT-COUNCIL/WALSALL,30/06/2017,CHANGE & GOVERNANCE,JOHAL DAIRIES LTD,06/04/2017,H59620170408KZSITLHDD-1,28.40,CA CASTLEFORT JMI SCHOOL-MISC DAIRY PRODUCTS-PROVISIONS,OTHER NONDURABLE GOODS,GPC
WALSALL COUNCIL,HTTP://OPENDATACOMMUNITIES.ORG/ID/METROPOLITAN-DISTRICT-COUNCIL/WALSALL,30/06/2017,CHANGE & GOVERNANCE,JOHAL DAIRIES LTD,06/04/2017,H59620170408LBNSVHLHO-1,4.44,CA ELMWOOD SPECIAL SCHOOL-MISC DAIRY PRODUCTS-PROVISIONS,OTHER NONDURABLE GOODS,GPC
WALSALL COUNCIL,HTTP://OPENDATACOMMUNITIES.ORG/ID/METROPOLITAN-DISTRICT-COUNCIL/WALSALL,30/06/2017,CHANGE & GOVERNANCE,JOHAL DAIRIES LTD,06/04/2017,H59620170408LEAPKGFLJ-1,22.34,CA ST BERNADETTES CATHOLIC PRI-MISC DAIRY PRODUCTS-PROVISIONS,OTHER NONDURABLE GOODS,GPC
WALSALL COUNCIL,HTTP://OPENDATACOMMUNITIES.ORG/ID/METROPOLITAN-DISTRICT-COUNCIL/WALSALL,30/06/2017,CHANGE & GOVERNANCE,JOHAL DAIRIES LTD,06/04/2017,H59620170408LISWOVQYN-1,21.88,CA FIBBERSLEY PARK PRIMARY SCH-MISC DAIRY PRODUCTS-PROVISIONS,OTHER NONDURABLE GOODS,GPC
WALSALL COUNCIL,HTTP://OPENDATACOMMUNITIES.ORG/ID/METROPOLITAN-DISTRICT-COUNCIL/WALSALL,30/06/2017,SOCIAL CARE & INCLUSION,SUPPLIES TEAM,06/04/2017,H59620170408LJZYSMUXL-1,132.96,INITIAL REFERRAL TEAM-STATIONERY & GENERAL SUPPLIES-,"OFFICE, SCHOOL SUPPLY, AND STATIONERY STORES",GPC
WALSALL COUNCIL,HTTP://OPENDATACOMMUNITIES.ORG/ID/METROPOLITAN-DISTRICT-COUNCIL/WALSALL,30/06/2017,CHANGE & GOVERNANCE,JOHAL DAIRIES LTD,06/04/2017,H59620170408LUGUCSBPQ-1,12.58,CA ST JOHNS C.E. PRIMARY SCHOO-MISC DAIRY PRODUCTS-PROVISIONS,OTHER NONDURABLE GOODS,GPC
WALSALL COUNCIL,HTTP://OPENDATACOMMUNITIES.ORG/ID/METROPOLITAN-DISTRICT-COUNCIL/WALSALL,30/06/2017,CHILDRENS SERVICES,AMAZON UK MARKETPLACE,06/04/2017,H59620170408MCUDMXHTX-1,9.52,PHASE 1 RESOURCES-GENERAL MATERIALS,MISCELLANEOUS AND SPECIALTY RETAIL STORES,GPC
WALSALL COUNCIL,HTTP://OPENDATACOMMUNITIES.ORG/ID/METROPOLITAN-DISTRICT-COUNCIL/WALSALL,30/06/2017,CHANGE & GOVERNANCE,BRITANNIA WOLVERHA,06/04/2017,H59620170408MDKYSZFFR-1,18.00,BED & BREAKFAST PAYMENTS-HOTEL ACCOMMODATION-EMPLOYEES,"HOTELS, MOTELS, RESORTS",GPC
WALSALL COUNCIL,HTTP://OPENDATACOMMUNITIES.ORG/ID/METROPOLITAN-DISTRICT-COUNCIL/WALSALL,30/06/2017,CHANGE & GOVERNANCE,JOHAL DAIRIES LTD,06/04/2017,H59620170408MHZOVORAC-1,7.40,CA ST FRANCIS CATHOLIC PRIMARY-MISC DAIRY PRODUCTS-PROVISIONS,OTHER NONDURABLE GOODS,GPC
WALSALL COUNCIL,HTTP://OPENDATACOMMUNITIES.ORG/ID/METROPOLITAN-DISTRICT-COUNCIL/WALSALL,30/06/2017,CHANGE & GOVERNANCE,JOHAL DAIRIES LTD,06/04/2017,H59620170408MVKWSTBMN-1,33.54,CA ABBEY PRIMARY SCHOOL-MISC DAIRY PRODUCTS-PROVISIONS,OTHER NONDURABLE GOODS,GPC
WALSALL COUNCIL,HTTP://OPENDATACOMMUNITIES.ORG/ID/METROPOLITAN-DISTRICT-COUNCIL/WALSALL,30/06/2017,CHILDRENS SERVICES,AMAZON UK MARKETPLACE,06/04/2017,H59620170408NBQIGZLEY-1,14.95,PHASE 1 RESOURCES-GENERAL MATERIALS,MISCELLANEOUS AND SPECIALTY RETAIL STORES,GPC
WALSALL COUNCIL,HTTP://OPENDATACOMMUNITIES.ORG/ID/METROPOLITAN-DISTRICT-COUNCIL/WALSALL,30/06/2017,CHILDRENS SERVICES,SUPPLIES TEAM,06/04/2017,H59620170408NDRJMQTGB-1,131.26,CHILD PROTECTION & REVIEW SERV-STATIONERY & GENERAL SUPPLIES-,"OFFICE, SCHOOL SUPPLY, AND STATIONERY STORES",GPC
WALSALL COUNCIL,HTTP://OPENDATACOMMUNITIES.ORG/ID/METROPOLITAN-DISTRICT-COUNCIL/WALSALL,30/06/2017,CHANGE & GOVERNANCE,JOHAL DAIRIES LTD,06/04/2017,H59620170408NJKYWZHIV-1,4.88,CA OLD HALL SPECIAL SCHOOL-MISC DAIRY PRODUCTS-PROVISIONS,OTHER NONDURABLE GOODS,GPC
WALSALL COUNCIL,HTTP://OPENDATACOMMUNITIES.ORG/ID/METROPOLITAN-DISTRICT-COUNCIL/WALSALL,30/06/2017,CHANGE & GOVERNANCE,JOHAL DAIRIES LTD,06/04/2017,H59620170408NTMQSRESI-1,52.15,CA BARCROFT D/C-MISC DAIRY PRODUCTS-PROVISIONS,OTHER NONDURABLE GOODS,GPC
WALSALL COUNCIL,HTTP://OPENDATACOMMUNITIES.ORG/ID/METROPOLITAN-DISTRICT-COUNCIL/WALSALL,30/06/2017,CHANGE & GOVERNANCE,JOHAL DAIRIES LTD,06/04/2017,H59620170408NXICBDJKF-1,74.00,CA RADLEYS PRIMARY SCHOOL-MISC DAIRY PRODUCTS-PROVISIONS,OTHER NONDURABLE GOODS,GPC
WALSALL COUNCIL,HTTP://OPENDATACOMMUNITIES.ORG/ID/METROPOLITAN-DISTRICT-COUNCIL/WALSALL,30/06/2017,CHILDRENS SERVICES,DUNGEON,06/04/2017,H59620170408OFWKHHOPW-1,30.00,57 LICHFIELD ROAD-RESIDENTS PERSONAL EXPENSES-AL,TOURIST ATTRACTIONS AND EXHIBITS,GPC
WALSALL COUNCIL,HTTP://OPENDATACOMMUNITIES.ORG/ID/METROPOLITAN-DISTRICT-COUNCIL/WALSALL,30/06/2017,CHILDRENS SERVICES,ARVCO MIDLANDS LTD,06/04/2017,H59620170408ORBHRNIDF-1,96.00,SAFEGUARDING & FAMILY SUPPORT-PAYMENT TO CONTRACTOR,SPECIAL TRADE CONTRACTORS,GPC
WALSALL COUNCIL,HTTP://OPENDATACOMMUNITIES.ORG/ID/METROPOLITAN-DISTRICT-COUNCIL/WALSALL,30/06/2017,ECONOMY & ENVIRONMENT,SUPPLIES TEAM,06/04/2017,H59620170408PDCENHFPB-1,108.55,RESOURCE MANAGEMENT-GENERAL EXPENSES-OFFICE EXP,"OFFICE, SCHOOL SUPPLY, AND STATIONERY STORES",GPC
WALSALL COUNCIL,HTTP://OPENDATACOMMUNITIES.ORG/ID/METROPOLITAN-DISTRICT-COUNCIL/WALSALL,30/06/2017,CHILDRENS SERVICES,WM MORRISON 063,06/04/2017,H59620170408PQPYFLSCE-1,25.49,PALFREY JUNIOR SCHOOL-FREE STAFF MEALS-EMPLOYEES,GROCERY STORES AND SUPERMARKETS,GPC
WALSALL COUNCIL,HTTP://OPENDATACOMMUNITIES.ORG/ID/METROPOLITAN-DISTRICT-COUNCIL/WALSALL,30/06/2017,CHILDRENS SERVICES,NOCHEX.*SENSORY EDUCAT,06/04/2017,H59620170408PTWXVWHZU-1,62.89,PARENTING TEAM-TOYS & GAMES-MATERIALS,"GAME, TOY, AND HOBBY SHOPS",GPC
WALSALL COUNCIL,HTTP://OPENDATACOMMUNITIES.ORG/ID/METROPOLITAN-DISTRICT-COUNCIL/WALSALL,30/06/2017,CHANGE & GOVERNANCE,JOHAL DAIRIES LTD,06/04/2017,H59620170408QBVQRFCNL-1,13.40,CA TOWN HALL RESTAURANT - CATE-MISC DAIRY PRODUCTS-PROVISIONS,OTHER NONDURABLE GOODS,GPC
WALSALL COUNCIL,HTTP://OPENDATACOMMUNITIES.ORG/ID/METROPOLITAN-DISTRICT-COUNCIL/WALSALL,30/06/2017,CHANGE & GOVERNANCE,MAILBOX CAR PARK LIMITED,06/04/2017,H59620170408QCGRLHUXH-1,7.50,REVENUES-OTHER-TRAVEL ALLOWANCES,AUTOMOBILE PARKING LOTS AND GARAGES,GPC
WALSALL COUNCIL,HTTP://OPENDATACOMMUNITIES.ORG/ID/METROPOLITAN-DISTRICT-COUNCIL/WALSALL,30/06/2017,CHANGE & GOVERNANCE,ARTHUR BRETT CATER,06/04/2017,H59620170408QEDKMSUHF-1,10.00,CA JANE LANE SPECIAL SCHOOL-FRUIT & VEGETABLES OTHER-PROVI,MISCELLANEOUS FOOD STORES & CONVENIENCE STORES,GPC
WALSALL COUNCIL,HTTP://OPENDATACOMMUNITIES.ORG/ID/METROPOLITAN-DISTRICT-COUNCIL/WALSALL,30/06/2017,CHANGE & GOVERNANCE,WILKO RETAIL LIMIT,06/04/2017,H59620170408QQCOVOUNH-1,73.85,WALSALL CRISIS SUPPORT SCHEME-CRISIS SUPPORT PAYMENTS,HOUSEHOLD APPLIANCE STORES,GPC
WALSALL COUNCIL,HTTP://OPENDATACOMMUNITIES.ORG/ID/METROPOLITAN-DISTRICT-COUNCIL/WALSALL,30/06/2017,CHILDRENS SERVICES,DUNELM (SOFT FURNISHIN,06/04/2017,H59620170408QRRASCWDD-1,93.44,"43A HILTON ROAD, WILLENHALL-RESIDENTS PERSONAL EXPENSES-AL","DRAPERY, UPHOLSTERY, AND WINDOW COVERINGS STORES",GPC
WALSALL COUNCIL,HTTP://OPENDATACOMMUNITIES.ORG/ID/METROPOLITAN-DISTRICT-COUNCIL/WALSALL,30/06/2017,CHANGE & GOVERNANCE,JOHAL DAIRIES LTD,06/04/2017,H59620170408QSEDUCWOV-1,43.86,CA ST MICHAELS C.E. PRIMARY SC-MISC DAIRY PRODUCTS-PROVISIONS,OTHER NONDURABLE GOODS,GPC
WALSALL COUNCIL,HTTP://OPENDATACOMMUNITIES.ORG/ID/METROPOLITAN-DISTRICT-COUNCIL/WALSALL,30/06/2017,CHILDRENS SERVICES,LIDL UK,06/04/2017,H59620170408QVUZHCPRK-1,27.19,SPINDLETREE-FOOD AND BEVERAGES-PROVISIONS,GROCERY STORES AND SUPERMARKETS,GPC
WALSALL COUNCIL,HTTP://OPENDATACOMMUNITIES.ORG/ID/METROPOLITAN-DISTRICT-COUNCIL/WALSALL,30/06/2017,CHILDRENS SERVICES,LIDL UK,06/04/2017,H59620170408QVUZHCPRK-2,8.84,SPINDLETREE-FOOD AND BEVERAGES-PROVISIONS,GROCERY STORES AND SUPERMARKETS,GPC
WALSALL COUNCIL,HTTP://OPENDATACOMMUNITIES.ORG/ID/METROPOLITAN-DISTRICT-COUNCIL/WALSALL,30/06/2017,CHANGE & GOVERNANCE,JOHAL DAIRIES LTD,06/04/2017,H59620170408RMIZIGGFF-1,30.00,CA BROWNHILLS WEST PRIMARY SCH-MISC DAIRY PRODUCTS-PROVISIONS,OTHER NONDURABLE GOODS,GPC
WALSALL COUNCIL,HTTP://OPENDATACOMMUNITIES.ORG/ID/METROPOLITAN-DISTRICT-COUNCIL/WALSALL,30/06/2017,CHANGE & GOVERNANCE,BORSHCH LIMITED,06/04/2017,H59620170408ROTESSWDW-1,190.00,WALSALL CRISIS SUPPORT SCHEME-FURNITURE & EQUIPMENT,ELECTRONIC SALES,GPC
WALSALL COUNCIL,HTTP://OPENDATACOMMUNITIES.ORG/ID/METROPOLITAN-DISTRICT-COUNCIL/WALSALL,30/06/2017,CHANGE & GOVERNANCE,JOHAL DAIRIES LTD,06/04/2017,H59620170408SOWPUEXXA-1,2.27,CA LEAMORE PRIMARY SCHOOL-MISC DAIRY PRODUCTS-PROVISIONS,OTHER NONDURABLE GOODS,GPC
WALSALL COUNCIL,HTTP://OPENDATACOMMUNITIES.ORG/ID/METROPOLITAN-DISTRICT-COUNCIL/WALSALL,30/06/2017,CHANGE & GOVERNANCE,JOHAL DAIRIES LTD,06/04/2017,H59620170408THQGTGIDB-1,19.05,CA BLUE COAT C OF E PERFORMING-MISC DAIRY PRODUCTS-PROVISIONS,OTHER NONDURABLE GOODS,GPC
WALSALL COUNCIL,HTTP://OPENDATACOMMUNITIES.ORG/ID/METROPOLITAN-DISTRICT-COUNCIL/WALSALL,30/06/2017,ECONOMY & ENVIRONMENT,WALSALL WOOD,06/04/2017,H59620170408TININJRWH-1,3.29,WALSALL GALA CENTRE-GENERAL MATERIALS,LUMBER & BUILDING MATERIALS STORES,GPC
WALSALL COUNCIL,HTTP://OPENDATACOMMUNITIES.ORG/ID/METROPOLITAN-DISTRICT-COUNCIL/WALSALL,30/06/2017,CHANGE & GOVERNANCE,TIMPSON LTD,06/04/2017,H59620170408TKJJYTYYY-1,-12.00,ACCOMMODATION SERVICES MANAGEM-CLOTHING & LAUNDRY,"HAT CLEANING SHOPS, SHOE REPAIR SHOPS, SHOE SHINE ",GPC
WALSALL COUNCIL,HTTP://OPENDATACOMMUNITIES.ORG/ID/METROPOLITAN-DISTRICT-COUNCIL/WALSALL,30/06/2017,CHANGE & GOVERNANCE,WWW.STAFFORDSHIRECHAMBER,06/04/2017,H59620170408TKRKJDMDZ-1,114.00,LEARNING & MANAGEMENT DEVELOPM-TRAVEL ALLOWANCE-ALLOWANCES TO,"ORGANIZATIONS, MEMBERSHIP",GPC
WALSALL COUNCIL,HTTP://OPENDATACOMMUNITIES.ORG/ID/METROPOLITAN-DISTRICT-COUNCIL/WALSALL,30/06/2017,CHANGE & GOVERNANCE,JOHAL DAIRIES LTD,06/04/2017,H59620170408TMDFKLVZZ-1,27.02,CA LINDENS PRIMARY SCHOOL-MISC DAIRY PRODUCTS-PROVISIONS,OTHER NONDURABLE GOODS,GPC
WALSALL COUNCIL,HTTP://OPENDATACOMMUNITIES.ORG/ID/METROPOLITAN-DISTRICT-COUNCIL/WALSALL,30/06/2017,CHILDRENS SERVICES,AMAZON UK MARKETPLACE,06/04/2017,H59620170408TULCFSAJX-1,9.42,PHASE 1 RESOURCES-GENERAL MATERIALS,BOOK STORES,GPC
WALSALL COUNCIL,HTTP://OPENDATACOMMUNITIES.ORG/ID/METROPOLITAN-DISTRICT-COUNCIL/WALSALL,30/06/2017,CHANGE & GOVERNANCE,JOHAL DAIRIES LTD,06/04/2017,H59620170408UELYAKOHD-1,6.56,CA POOL HAYES PRIMARY SCHOOL-MISC DAIRY PRODUCTS-PROVISIONS,OTHER NONDURABLE GOODS,GPC
WALSALL COUNCIL,HTTP://OPENDATACOMMUNITIES.ORG/ID/METROPOLITAN-DISTRICT-COUNCIL/WALSALL,30/06/2017,ECONOMY & ENVIRONMENT,SUPPLIES TEAM,06/04/2017,H59620170408UQHYTQVKA-1,0.86,CENTRALISED STATIONARY-STATIONERY & GENERAL SUPPLIES-,"OFFICE, SCHOOL SUPPLY, AND STATIONERY STORES",GPC
WALSALL COUNCIL,HTTP://OPENDATACOMMUNITIES.ORG/ID/METROPOLITAN-DISTRICT-COUNCIL/WALSALL,30/06/2017,CHILDRENS SERVICES,AMAZON UK MARKETPLACE,06/04/2017,H59620170408UVEXVUWVV-1,33.87,PHASE 1 RESOURCES-GENERAL MATERIALS,MISCELLANEOUS AND SPECIALTY RETAIL STORES,GPC
WALSALL COUNCIL,HTTP://OPENDATACOMMUNITIES.ORG/ID/METROPOLITAN-DISTRICT-COUNCIL/WALSALL,30/06/2017,CHANGE & GOVERNANCE,TIMPSON LTD,06/04/2017,H59620170408VDEPOTXBN-1,12.00,ACCOMMODATION SERVICES MANAGEM-CLOTHING & LAUNDRY,"HAT CLEANING SHOPS, SHOE REPAIR SHOPS, SHOE SHINE ",GPC
WALSALL COUNCIL,HTTP://OPENDATACOMMUNITIES.ORG/ID/METROPOLITAN-DISTRICT-COUNCIL/WALSALL,30/06/2017,CHILDRENS SERVICES,AMAZON UK MARKETPLACE,06/04/2017,H59620170408VTNTFFVRB-1,4.76,PHASE 1 RESOURCES-GENERAL MATERIALS,MISCELLANEOUS AND SPECIALTY RETAIL STORES,GPC
WALSALL COUNCIL,HTTP://OPENDATACOMMUNITIES.ORG/ID/METROPOLITAN-DISTRICT-COUNCIL/WALSALL,30/06/2017,CHANGE & GOVERNANCE,JOHAL DAIRIES LTD,06/04/2017,H59620170408WGTQGVRKI-1,50.59,TOWN HALL RESTAURANT BISTRO-MISC DAIRY PRODUCTS-PROVISIONS,OTHER NONDURABLE GOODS,GPC
WALSALL COUNCIL,HTTP://OPENDATACOMMUNITIES.ORG/ID/METROPOLITAN-DISTRICT-COUNCIL/WALSALL,30/06/2017,CHILDRENS SERVICES,AMAZON UK MARKETPLACE,06/04/2017,H59620170408WVHXMVBKQ-1,6.65,PHASE 1 RESOURCES-GENERAL MATERIALS,MISCELLANEOUS AND SPECIALTY RETAIL STORES,GPC
WALSALL COUNCIL,HTTP://OPENDATACOMMUNITIES.ORG/ID/METROPOLITAN-DISTRICT-COUNCIL/WALSALL,30/06/2017,CHANGE & GOVERNANCE,JOHAL DAIRIES LTD,06/04/2017,H59620170408WYRHKRGWY-1,6.31,CA MEADOW VIEW JMI PRIMARY SCH-MISC DAIRY PRODUCTS-PROVISIONS,OTHER NONDURABLE GOODS,GPC
WALSALL COUNCIL,HTTP://OPENDATACOMMUNITIES.ORG/ID/METROPOLITAN-DISTRICT-COUNCIL/WALSALL,30/06/2017,CHILDRENS SERVICES,IKEA LIMITED,06/04/2017,H59620170408XCQVMEGBT-1,45.09,SPINDLETREE-RESIDENTS PERSONAL EXPENSES-AL,"EQUIPMENT, FURNITURE, AND HOME FURNISHINGS STORES ",GPC
WALSALL COUNCIL,HTTP://OPENDATACOMMUNITIES.ORG/ID/METROPOLITAN-DISTRICT-COUNCIL/WALSALL,30/06/2017,CHANGE & GOVERNANCE,TESCO STORES 6161,06/04/2017,H59620170408XGMVGXIYV-1,40.00,WALSALL CRISIS SUPPORT SCHEME-CRISIS SUPPORT PAYMENTS,GROCERY STORES AND SUPERMARKETS,GPC
WALSALL COUNCIL,HTTP://OPENDATACOMMUNITIES.ORG/ID/METROPOLITAN-DISTRICT-COUNCIL/WALSALL,30/06/2017,CHANGE & GOVERNANCE,JOHAL DAIRIES LTD,06/04/2017,H59620170408XLQBBSVQI-1,14.80,CA WATLING STREET PRIMARY SCHO-MISC DAIRY PRODUCTS-PROVISIONS,OTHER NONDURABLE GOODS,GPC
WALSALL COUNCIL,HTTP://OPENDATACOMMUNITIES.ORG/ID/METROPOLITAN-DISTRICT-COUNCIL/WALSALL,30/06/2017,ECONOMY & ENVIRONMENT,DVSA MOT COMP 2,06/04/2017,H59620170408XODIGJMCS-1,820.00,FLEET-VEHICLE TESTING STATION-MATERI,GOVERNMENT SERVICES,GPC
WALSALL COUNCIL,HTTP://OPENDATACOMMUNITIES.ORG/ID/METROPOLITAN-DISTRICT-COUNCIL/WALSALL,30/06/2017,CHANGE & GOVERNANCE,JOHAL DAIRIES LTD,06/04/2017,H59620170408XVMMWVRSD-1,44.88,CA ST GILES C.E. PRIMARY SCHOO-MISC DAIRY PRODUCTS-PROVISIONS,OTHER NONDURABLE GOODS,GPC
WALSALL COUNCIL,HTTP://OPENDATACOMMUNITIES.ORG/ID/METROPOLITAN-DISTRICT-COUNCIL/WALSALL,30/06/2017,CHILDRENS SERVICES,AMAZON UK MARKETPLACE,06/04/2017,H59620170408YKOSWWVLM-1,20.85,PHASE 1 RESOURCES-GENERAL MATERIALS,MISCELLANEOUS AND SPECIALTY RETAIL STORES,GPC
WALSALL COUNCIL,HTTP://OPENDATACOMMUNITIES.ORG/ID/METROPOLITAN-DISTRICT-COUNCIL/WALSALL,30/06/2017,ECONOMY & ENVIRONMENT,SCREWFIX DIRECT,06/04/2017,H59620170408YTXGQJNEF-1,109.88,OAK PARK-NEW-FURNITURE & EQUIPMENT,LUMBER & BUILDING MATERIALS STORES,GPC
WALSALL COUNCIL,HTTP://OPENDATACOMMUNITIES.ORG/ID/METROPOLITAN-DISTRICT-COUNCIL/WALSALL,30/06/2017,CHANGE & GOVERNANCE,TIMPSON LTD,06/04/2017,H59620170408ZHADTVQOT-1,9.00,ACCOMMODATION SERVICES MANAGEM-CLOTHING & LAUNDRY,"HAT CLEANING SHOPS, SHOE REPAIR SHOPS, SHOE SHINE ",GPC
WALSALL COUNCIL,HTTP://OPENDATACOMMUNITIES.ORG/ID/METROPOLITAN-DISTRICT-COUNCIL/WALSALL,30/06/2017,CHANGE & GOVERNANCE,JOHAL DAIRIES LTD,06/04/2017,H59620170408ZQRWODDZO-1,23.88,CA ELMORE GREEN PRIMARY SCHOOL-MISC DAIRY PRODUCTS-PROVISIONS,OTHER NONDURABLE GOODS,GPC
WALSALL COUNCIL,HTTP://OPENDATACOMMUNITIES.ORG/ID/METROPOLITAN-DISTRICT-COUNCIL/WALSALL,30/06/2017,CHILDRENS SERVICES,SUPPLIES TEAM,06/04/2017,H59620170408ZXELOEJWR-1,7.46,SEN ASSESSMENT-STATIONERY & GENERAL SUPPLIES-,"OFFICE, SCHOOL SUPPLY, AND STATIONERY STORES",GPC
WALSALL COUNCIL,HTTP://OPENDATACOMMUNITIES.ORG/ID/METROPOLITAN-DISTRICT-COUNCIL/WALSALL,30/06/2017,CHILDRENS SERVICES,AMAZON UK RETAIL AMAZON.C,06/04/2017,H59620170411EMIPBBDHR-1,17.97,PHASE 1 RESOURCES-GENERAL MATERIALS,MISCELLANEOUS AND SPECIALTY RETAIL STORES,GPC
WALSALL COUNCIL,HTTP://OPENDATACOMMUNITIES.ORG/ID/METROPOLITAN-DISTRICT-COUNCIL/WALSALL,30/06/2017,CHILDRENS SERVICES,PRIMARK 690,06/04/2017,H59620170411TNMNLPPSO-1,50.00,GENERAL MANAGEMENT SUPPORT (IN-CLOTHING & LAUNDRY,CLOTHING STORES,GPC
WALSALL COUNCIL,HTTP://OPENDATACOMMUNITIES.ORG/ID/METROPOLITAN-DISTRICT-COUNCIL/WALSALL,30/06/2017,CHILDRENS SERVICES,PRIMARK 690,06/04/2017,H59620170411XBIQLXBOZ-1,16.00,SPINDLETREE-RESIDENTS PERSONAL EXPENSES-AL,CLOTHING STORES,GPC
WALSALL COUNCIL,HTTP://OPENDATACOMMUNITIES.ORG/ID/METROPOLITAN-DISTRICT-COUNCIL/WALSALL,30/06/2017,CHANGE & GOVERNANCE,COBDEN HOTEL LIMITED,06/04/2017,H59620170411XPQOLPTGL-1,112.95,BED & BREAKFAST PAYMENTS-HOTEL ACCOMMODATION-EMPLOYEES,"HOTELS, MOTELS, RESORTS",GPC
WALSALL COUNCIL,HTTP://OPENDATACOMMUNITIES.ORG/ID/METROPOLITAN-DISTRICT-COUNCIL/WALSALL,30/06/2017,CHANGE & GOVERNANCE,BULL DOG APPLIANCES LT,07/04/2017,H59620170411BKIPUFYLK-1,474.00,WALSALL CRISIS SUPPORT SCHEME-CRISIS SUPPORT PAYMENTS,HOUSEHOLD APPLIANCE STORES,GPC
WALSALL COUNCIL,HTTP://OPENDATACOMMUNITIES.ORG/ID/METROPOLITAN-DISTRICT-COUNCIL/WALSALL,30/06/2017,ECONOMY & ENVIRONMENT,TOOLSTATION LTD,07/04/2017,H59620170411BKKKMIVYQ-1,22.90,DEPOT-GENERAL MATERIALS,HARDWARE STORES,GPC
WALSALL COUNCIL,HTTP://OPENDATACOMMUNITIES.ORG/ID/METROPOLITAN-DISTRICT-COUNCIL/WALSALL,30/06/2017,CHANGE & GOVERNANCE,BRITANNIA,07/04/2017,H59620170411BUEXUBVML-1,153.00,BED & BREAKFAST PAYMENTS-HOTEL ACCOMMODATION-EMPLOYEES,"HOTELS, MOTELS, RESORTS",GPC
WALSALL COUNCIL,HTTP://OPENDATACOMMUNITIES.ORG/ID/METROPOLITAN-DISTRICT-COUNCIL/WALSALL,30/06/2017,CHANGE & GOVERNANCE,BULL DOG APPLIANCES LT,07/04/2017,H59620170411CBMSSYTMF-1,50.00,WALSALL CRISIS SUPPORT SCHEME-CRISIS SUPPORT PAYMENTS,HOUSEHOLD APPLIANCE STORES,GPC
WALSALL COUNCIL,HTTP://OPENDATACOMMUNITIES.ORG/ID/METROPOLITAN-DISTRICT-COUNCIL/WALSALL,30/06/2017,CHANGE & GOVERNANCE,ASDA SUPERSTORE,07/04/2017,H59620170411COPBYXETO-1,13.47,YOUNG PERSONS HOMELESS SERVICE-GENERAL PROVISIONS-PROVISIONS,GROCERY STORES AND SUPERMARKETS,GPC
WALSALL COUNCIL,HTTP://OPENDATACOMMUNITIES.ORG/ID/METROPOLITAN-DISTRICT-COUNCIL/WALSALL,30/06/2017,CHANGE & GOVERNANCE,ASDA SUPERSTORE,07/04/2017,H59620170411COPBYXETO-2,0.16,YOUNG PERSONS HOMELESS SERVICE-GENERAL PROVISIONS-PROVISIONS,GROCERY STORES AND SUPERMARKETS,GPC
WALSALL COUNCIL,HTTP://OPENDATACOMMUNITIES.ORG/ID/METROPOLITAN-DISTRICT-COUNCIL/WALSALL,30/06/2017,CHANGE & GOVERNANCE,ASDA SUPERSTORE,07/04/2017,H59620170411COPBYXETO-3,17.65,YOUNG PERSONS HOMELESS SERVICE-GENERAL PROVISIONS-PROVISIONS,GROCERY STORES AND SUPERMARKETS,GPC
WALSALL COUNCIL,HTTP://OPENDATACOMMUNITIES.ORG/ID/METROPOLITAN-DISTRICT-COUNCIL/WALSALL,30/06/2017,CHANGE & GOVERNANCE,J9 ACCOMODATION,07/04/2017,H59620170411CSWEUMMCK-1,90.00,ADVICE & GUIDANCE SERVICE-RENTS,REAL ESTATE MANAGERS - RENTALS,GPC
WALSALL COUNCIL,HTTP://OPENDATACOMMUNITIES.ORG/ID/METROPOLITAN-DISTRICT-COUNCIL/WALSALL,30/06/2017,CHANGE & GOVERNANCE,NOBISCO LTD,07/04/2017,H59620170411CVWIPMRBJ-1,85.32,CA ST JOHNS C.E. PRIMARY SCHOO-DISPOSABLES-PROVISIONS,"CLEANING AND MAINTENANCE, JANITORIAL SERVICES",GPC
WALSALL COUNCIL,HTTP://OPENDATACOMMUNITIES.ORG/ID/METROPOLITAN-DISTRICT-COUNCIL/WALSALL,30/06/2017,ECONOMY & ENVIRONMENT,PAYPAL *URBANHAXCIC,07/04/2017,H59620170411EDTDMMYYK-1,22.50,YEI (IMPACT) PROGRAMME-MISCELLANEOUS SUPPLIES,"AUTOMOTIVE PARTS, ACCESSORIES STORES",GPC
WALSALL COUNCIL,HTTP://OPENDATACOMMUNITIES.ORG/ID/METROPOLITAN-DISTRICT-COUNCIL/WALSALL,30/06/2017,ECONOMY & ENVIRONMENT,PAYPAL *URBANHAXCIC,07/04/2017,H59620170411EDTDMMYYK-2,22.50,YEI ESF FUNDING-MISCELLANEOUS SUPPLIES,"AUTOMOTIVE PARTS, ACCESSORIES STORES",GPC
WALSALL COUNCIL,HTTP://OPENDATACOMMUNITIES.ORG/ID/METROPOLITAN-DISTRICT-COUNCIL/WALSALL,30/06/2017,CHILDRENS SERVICES,WWW.INSECTLORE-EUROPE.CO,07/04/2017,H59620170411EFKFXATSV-1,16.94,PHASE 1 RESOURCES-GENERAL MATERIALS,DIRECT MARKETING CATALOG MERCHANTS,GPC
WALSALL COUNCIL,HTTP://OPENDATACOMMUNITIES.ORG/ID/METROPOLITAN-DISTRICT-COUNCIL/WALSALL,30/06/2017,ECONOMY & ENVIRONMENT,CRYSTAL RADIO SYSTEMS,07/04/2017,H59620170411EMBRMFUMJ-1,158.40,FOREST ARTS CENTRE-FURNITURE & EQUIPMENT,ELECTRONIC SALES,GPC
WALSALL COUNCIL,HTTP://OPENDATACOMMUNITIES.ORG/ID/METROPOLITAN-DISTRICT-COUNCIL/WALSALL,30/06/2017,CHILDRENS SERVICES,IKEA ONLINE,07/04/2017,H59620170411FCMJSSWLI-1,66.50,PHASE 1 RESOURCES-GENERAL MATERIALS,MISCELLANEOUS HOUSE FURNISHING SPECIALTY SHOPS,GPC
WALSALL COUNCIL,HTTP://OPENDATACOMMUNITIES.ORG/ID/METROPOLITAN-DISTRICT-COUNCIL/WALSALL,30/06/2017,CHILDRENS SERVICES,WWW.BARRBEACON.WALSALL,07/04/2017,H59620170411FKIZBNUBU-1,20.00,REDRUTH ROAD-RESIDENTS PERSONAL EXPENSES-AL,"SCHOOLS, ELEMENTARY AND SECONDARY",GPC
WALSALL COUNCIL,HTTP://OPENDATACOMMUNITIES.ORG/ID/METROPOLITAN-DISTRICT-COUNCIL/WALSALL,30/06/2017,CHANGE & GOVERNANCE,CRAZY HOUSE FURNITURE,07/04/2017,H59620170411FPWUYMHJM-1,555.00,WALSALL CRISIS SUPPORT SCHEME-FURNITURE & EQUIPMENT,"EQUIPMENT, FURNITURE, AND HOME FURNISHINGS STORES ",GPC
WALSALL COUNCIL,HTTP://OPENDATACOMMUNITIES.ORG/ID/METROPOLITAN-DISTRICT-COUNCIL/WALSALL,30/06/2017,ECONOMY & ENVIRONMENT,AMAZON UK MARKETPLACE,07/04/2017,H59620170411GCUQYAMPH-1,17.73,BLOXWICH LEISURE CENTRE-MISCELLANEOUS SUPPLIES,MISCELLANEOUS AND SPECIALTY RETAIL STORES,GPC
WALSALL COUNCIL,HTTP://OPENDATACOMMUNITIES.ORG/ID/METROPOLITAN-DISTRICT-COUNCIL/WALSALL,30/06/2017,CHANGE & GOVERNANCE,TRAVEL WEST MIDLAN,07/04/2017,H59620170411GMMJWEGOW-1,13.20,WELFARE RIGHTS-OTHER-TRAVEL ALLOWANCES,BUS LINES,GPC
WALSALL COUNCIL,HTTP://OPENDATACOMMUNITIES.ORG/ID/METROPOLITAN-DISTRICT-COUNCIL/WALSALL,30/06/2017,ECONOMY & ENVIRONMENT,DVLA VEHICLE TAX,07/04/2017,H59620170411GXXFHDNEE-1,242.50,FLEET-LICENCES-TRANSPORT RUN COSTS,GOVERNMENT SERVICES,GPC
WALSALL COUNCIL,HTTP://OPENDATACOMMUNITIES.ORG/ID/METROPOLITAN-DISTRICT-COUNCIL/WALSALL,30/06/2017,CHILDRENS SERVICES,W M MORRISON PLC,07/04/2017,H59620170411HBJKNAAYF-1,25.00,"43A HILTON ROAD, WILLENHALL-FOOD AND BEVERAGES-PROVISIONS",GROCERY STORES AND SUPERMARKETS,GPC
WALSALL COUNCIL,HTTP://OPENDATACOMMUNITIES.ORG/ID/METROPOLITAN-DISTRICT-COUNCIL/WALSALL,30/06/2017,CHILDRENS SERVICES,W M MORRISON PLC,07/04/2017,H59620170411HBJKNAAYF-2,59.25,"43A HILTON ROAD, WILLENHALL-FOOD AND BEVERAGES-PROVISIONS",GROCERY STORES AND SUPERMARKETS,GPC
WALSALL COUNCIL,HTTP://OPENDATACOMMUNITIES.ORG/ID/METROPOLITAN-DISTRICT-COUNCIL/WALSALL,30/06/2017,ECONOMY & ENVIRONMENT,MNA LTD CARDCHARGE,07/04/2017,H59620170411HDUBJODMW-1,84.24,DEVELOPMENT MANAGEMENT-PERIODICALS/MAGAZINES/NEWSPAPE,NEWS DEALERS AND NEWSSTANDS,GPC
WALSALL COUNCIL,HTTP://OPENDATACOMMUNITIES.ORG/ID/METROPOLITAN-DISTRICT-COUNCIL/WALSALL,30/06/2017,CHILDRENS SERVICES,SPORTS PLUS SCHEME LTD,07/04/2017,H59620170411HPXEUGSQN-1,95.00,CENTRAL & EAST LOCALITY - SCHO-MISC FEES AND EXPENSES,RECREATIONAL AND SPORTING CAMPS,GPC
WALSALL COUNCIL,HTTP://OPENDATACOMMUNITIES.ORG/ID/METROPOLITAN-DISTRICT-COUNCIL/WALSALL,30/06/2017,ECONOMY & ENVIRONMENT,BM STEEL,07/04/2017,H59620170411HTBUGGHMT-1,26.40,FLEET-SURVEYS & PROF SERVICES-PAYMEN,"ARCHITECTURAL, ENGINEERING, AND SURVEYING SERVICES",GPC
WALSALL COUNCIL,HTTP://OPENDATACOMMUNITIES.ORG/ID/METROPOLITAN-DISTRICT-COUNCIL/WALSALL,30/06/2017,CHANGE & GOVERNANCE,J9 ACCOMODATION,07/04/2017,H59620170411IIRCMYNUP-1,95.00,YOUNG PERSONS HOMELESS SERVICE-RENTS-OTHER,REAL ESTATE MANAGERS - RENTALS,GPC
WALSALL COUNCIL,HTTP://OPENDATACOMMUNITIES.ORG/ID/METROPOLITAN-DISTRICT-COUNCIL/WALSALL,30/06/2017,CHANGE & GOVERNANCE,CRAZY HOUSE FURNITURE,07/04/2017,H59620170411ITBJEGKSA-1,140.00,WALSALL CRISIS SUPPORT SCHEME-FURNITURE & EQUIPMENT,"EQUIPMENT, FURNITURE, AND HOME FURNISHINGS STORES ",GPC
WALSALL COUNCIL,HTTP://OPENDATACOMMUNITIES.ORG/ID/METROPOLITAN-DISTRICT-COUNCIL/WALSALL,30/06/2017,ECONOMY & ENVIRONMENT,IIRSM,07/04/2017,H59620170411JHHJVQDIV-1,132.00,COMPLIANCE MANAGEMENT-EXTERNAL TRAINING,"ORGANIZATIONS, CHARITABLE AND SOCIAL SERVICE",GPC
WALSALL COUNCIL,HTTP://OPENDATACOMMUNITIES.ORG/ID/METROPOLITAN-DISTRICT-COUNCIL/WALSALL,30/06/2017,CHILDRENS SERVICES,ASDA STORES,07/04/2017,H59620170411JSIOCSHDN-1,2.80,PARENTING TEAM-FOOD AND BEVERAGES-PROVISIONS,GROCERY STORES AND SUPERMARKETS,GPC
WALSALL COUNCIL,HTTP://OPENDATACOMMUNITIES.ORG/ID/METROPOLITAN-DISTRICT-COUNCIL/WALSALL,30/06/2017,CHILDRENS SERVICES,ASDA STORES,07/04/2017,H59620170411JSIOCSHDN-2,9.30,PARENTING TEAM-FOOD AND BEVERAGES-PROVISIONS,GROCERY STORES AND SUPERMARKETS,GPC
WALSALL COUNCIL,HTTP://OPENDATACOMMUNITIES.ORG/ID/METROPOLITAN-DISTRICT-COUNCIL/WALSALL,30/06/2017,CHILDRENS SERVICES,THE ALBION FOUNDATION,07/04/2017,H59620170411KHRYXLSRH-1,48.00,CENTRAL & EAST LOCALITY - SCHO-SWIMMING/GAMES-SERVICES,"ORGANIZATIONS, CHARITABLE AND SOCIAL SERVICE",GPC
WALSALL COUNCIL,HTTP://OPENDATACOMMUNITIES.ORG/ID/METROPOLITAN-DISTRICT-COUNCIL/WALSALL,30/06/2017,CHILDRENS SERVICES,TESCO STORES 6161,07/04/2017,H59620170411KJBXHXADF-1,32.30,LOCALITY FAMILY SUPPORT-WEST-FOOD AND BEVERAGES-PROVISIONS,GROCERY STORES AND SUPERMARKETS,GPC
WALSALL COUNCIL,HTTP://OPENDATACOMMUNITIES.ORG/ID/METROPOLITAN-DISTRICT-COUNCIL/WALSALL,30/06/2017,CHILDRENS SERVICES,TESCO STORES 6161,07/04/2017,H59620170411KJBXHXADF-2,17.35,LOCALITY FAMILY SUPPORT-WEST-MISCELLANEOUS SUPPLIES,GROCERY STORES AND SUPERMARKETS,GPC
WALSALL COUNCIL,HTTP://OPENDATACOMMUNITIES.ORG/ID/METROPOLITAN-DISTRICT-COUNCIL/WALSALL,30/06/2017,ECONOMY & ENVIRONMENT,WWW.UK.EDENSPRINGS.COM,07/04/2017,H59620170411KOFPKDSNR-1,30.37,LIBRARY OPERATIONS CENTRAL-STATIONERY & GENERAL SUPPLIES-,MISCELLANEOUS FOOD STORES & CONVENIENCE STORES,GPC
WALSALL COUNCIL,HTTP://OPENDATACOMMUNITIES.ORG/ID/METROPOLITAN-DISTRICT-COUNCIL/WALSALL,30/06/2017,CHANGE & GOVERNANCE,BRITANNIA WOLVERHA,07/04/2017,H59620170411LBUEXZKWI-1,75.00,BED & BREAKFAST PAYMENTS-HOTEL ACCOMMODATION-EMPLOYEES,"HOTELS, MOTELS, RESORTS",GPC
WALSALL COUNCIL,HTTP://OPENDATACOMMUNITIES.ORG/ID/METROPOLITAN-DISTRICT-COUNCIL/WALSALL,30/06/2017,ECONOMY & ENVIRONMENT,B & Q 1276,07/04/2017,H59620170411LEQSLSEBG-1,10.58,INFRASTRUCTURE MAINTENANCE-GENERAL MATERIALS,LUMBER & BUILDING MATERIALS STORES,GPC
WALSALL COUNCIL,HTTP://OPENDATACOMMUNITIES.ORG/ID/METROPOLITAN-DISTRICT-COUNCIL/WALSALL,30/06/2017,CHILDRENS SERVICES,LCS CONTAINER SERVICES,07/04/2017,H59620170411MHUOIMEKJ-1,90.00,PELSALL EDC-LEASING/HIRE/RENTAL-EQUIPMENT,"PUBLIC WAREHOUSING, FARM, & HOUSEHOLD GOODS",GPC
WALSALL COUNCIL,HTTP://OPENDATACOMMUNITIES.ORG/ID/METROPOLITAN-DISTRICT-COUNCIL/WALSALL,30/06/2017,CHANGE & GOVERNANCE,TRAVEL WEST MIDLAN,07/04/2017,H59620170411MKOVCHCVL-1,19.00,YOUNG PERSONS HOMELESS SERVICE-MISCELLANEOUS SUPPLIES,BUS LINES,GPC
WALSALL COUNCIL,HTTP://OPENDATACOMMUNITIES.ORG/ID/METROPOLITAN-DISTRICT-COUNCIL/WALSALL,30/06/2017,CHILDRENS SERVICES,AMAZON UK RETAIL AMAZON.C,07/04/2017,H59620170411NBQFTXMSS-1,279.99,VIRTUAL SCHOOL - CENTRAL PUPIL-MISCELLANEOUS SUPPLIES,MISCELLANEOUS AND SPECIALTY RETAIL STORES,GPC
WALSALL COUNCIL,HTTP://OPENDATACOMMUNITIES.ORG/ID/METROPOLITAN-DISTRICT-COUNCIL/WALSALL,30/06/2017,ECONOMY & ENVIRONMENT,DVLA VEHICLE TAX,07/04/2017,H59620170411NLUQDMUES-1,142.50,FLEET-LICENCES-TRANSPORT RUN COSTS,GOVERNMENT SERVICES,GPC
WALSALL COUNCIL,HTTP://OPENDATACOMMUNITIES.ORG/ID/METROPOLITAN-DISTRICT-COUNCIL/WALSALL,30/06/2017,CHILDRENS SERVICES,W M MORRISONS.COM,07/04/2017,H59620170411NWICXYPGN-1,21.06,BLUEBELLS-FOOD AND BEVERAGES-PROVISIONS,GROCERY STORES AND SUPERMARKETS,GPC
WALSALL COUNCIL,HTTP://OPENDATACOMMUNITIES.ORG/ID/METROPOLITAN-DISTRICT-COUNCIL/WALSALL,30/06/2017,CHILDRENS SERVICES,W M MORRISONS.COM,07/04/2017,H59620170411NWICXYPGN-2,91.61,BLUEBELLS-FOOD AND BEVERAGES-PROVISIONS,GROCERY STORES AND SUPERMARKETS,GPC
WALSALL COUNCIL,HTTP://OPENDATACOMMUNITIES.ORG/ID/METROPOLITAN-DISTRICT-COUNCIL/WALSALL,30/06/2017,CHILDRENS SERVICES,M6 TOLL,07/04/2017,H59620170411PHNVQDWUB-1,4.00,DT-GENERAL MATERIALS,BRIDGE/ROAD FEES & TOLLS,GPC
WALSALL COUNCIL,HTTP://OPENDATACOMMUNITIES.ORG/ID/METROPOLITAN-DISTRICT-COUNCIL/WALSALL,30/06/2017,CHANGE & GOVERNANCE,SPAR,07/04/2017,H59620170411PTQYZUBGJ-1,10.50,TENANCY SERVICE-FOOD AND BEVERAGES-PROVISIONS,GROCERY STORES AND SUPERMARKETS,GPC
WALSALL COUNCIL,HTTP://OPENDATACOMMUNITIES.ORG/ID/METROPOLITAN-DISTRICT-COUNCIL/WALSALL,30/06/2017,ECONOMY & ENVIRONMENT,WALSALL WOOD,07/04/2017,H59620170411QIRSOAJWN-1,6.49,DARLASTON LEISURE CENTRE-GENERAL MATERIALS,LUMBER & BUILDING MATERIALS STORES,GPC
WALSALL COUNCIL,HTTP://OPENDATACOMMUNITIES.ORG/ID/METROPOLITAN-DISTRICT-COUNCIL/WALSALL,30/06/2017,ECONOMY & ENVIRONMENT,WWW.VIKING-DIRECT.CO.U,07/04/2017,H59620170411QKJSJXWTL-1,95.99,BLOXWICH LEISURE CENTRE-NEW-FURNITURE & EQUIPMENT,"STATIONERY, OFFICE SUPPLIES AND WRITING PAPER",GPC
WALSALL COUNCIL,HTTP://OPENDATACOMMUNITIES.ORG/ID/METROPOLITAN-DISTRICT-COUNCIL/WALSALL,30/06/2017,ECONOMY & ENVIRONMENT,DVLA VEHICLE TAX,07/04/2017,H59620170411QKPMSNYFG-1,242.50,FLEET-LICENCES-TRANSPORT RUN COSTS,GOVERNMENT SERVICES,GPC
WALSALL COUNCIL,HTTP://OPENDATACOMMUNITIES.ORG/ID/METROPOLITAN-DISTRICT-COUNCIL/WALSALL,30/06/2017,CHANGE & GOVERNANCE,WM MORRISONS,07/04/2017,H59620170411QTAGRLYTX-1,20.00,WELFARE RIGHTS-GENERAL PROVISIONS-PROVISIONS,GROCERY STORES AND SUPERMARKETS,GPC
WALSALL COUNCIL,HTTP://OPENDATACOMMUNITIES.ORG/ID/METROPOLITAN-DISTRICT-COUNCIL/WALSALL,30/06/2017,CHILDRENS SERVICES,AMAZON UK RETAIL AMAZON.C,07/04/2017,H59620170411TVRRSFHDV-1,279.99,VIRTUAL SCHOOL - CENTRAL PUPIL-MISCELLANEOUS SUPPLIES,MISCELLANEOUS AND SPECIALTY RETAIL STORES,GPC
WALSALL COUNCIL,HTTP://OPENDATACOMMUNITIES.ORG/ID/METROPOLITAN-DISTRICT-COUNCIL/WALSALL,30/06/2017,CHANGE & GOVERNANCE,CRAZY HOUSE FURNITURE,07/04/2017,H59620170411UXTKIQHLP-1,570.00,WALSALL CRISIS SUPPORT SCHEME-FURNITURE & EQUIPMENT,"EQUIPMENT, FURNITURE, AND HOME FURNISHINGS STORES ",GPC
WALSALL COUNCIL,HTTP://OPENDATACOMMUNITIES.ORG/ID/METROPOLITAN-DISTRICT-COUNCIL/WALSALL,30/06/2017,CHANGE & GOVERNANCE,NOBISCO LTD,07/04/2017,H59620170411VWZFOFFJD-1,195.95,CA BLUE COAT C OF E PERFORMING-PAYMENT TO CONTRACTOR EXTERNAL,"CLEANING AND MAINTENANCE, JANITORIAL SERVICES",GPC
WALSALL COUNCIL,HTTP://OPENDATACOMMUNITIES.ORG/ID/METROPOLITAN-DISTRICT-COUNCIL/WALSALL,30/06/2017,CHILDRENS SERVICES,AMAZON UK MARKETPLACE,07/04/2017,H59620170411WLEDYCIFI-1,21.49,ICT LEARNING RESOURCES-NEW-FURNITURE & EQUIPMENT,MISCELLANEOUS AND SPECIALTY RETAIL STORES,GPC
WALSALL COUNCIL,HTTP://OPENDATACOMMUNITIES.ORG/ID/METROPOLITAN-DISTRICT-COUNCIL/WALSALL,30/06/2017,CHANGE & GOVERNANCE,B & Q 1276,07/04/2017,H59620170411WLKTHFCTT-1,79.34,ACCOMMODATION SERVICES MANAGEM-GENERAL MATERIALS,LUMBER & BUILDING MATERIALS STORES,GPC
WALSALL COUNCIL,HTTP://OPENDATACOMMUNITIES.ORG/ID/METROPOLITAN-DISTRICT-COUNCIL/WALSALL,30/06/2017,CHANGE & GOVERNANCE,ARGOS WALSALL CROW,07/04/2017,H59620170411WMLUJZUKV-1,23.19,WALSALL CRISIS SUPPORT SCHEME-CRISIS SUPPORT PAYMENTS,DISCOUNT STORES,GPC
WALSALL COUNCIL,HTTP://OPENDATACOMMUNITIES.ORG/ID/METROPOLITAN-DISTRICT-COUNCIL/WALSALL,30/06/2017,ECONOMY & ENVIRONMENT,W M MORRISONS,07/04/2017,H59620170411WUCFFYQDC-1,32.78,WALSALL OUTDOOR ADVENTURE CENT-FOOD AND BEVERAGES-PROVISIONS,GROCERY STORES AND SUPERMARKETS,GPC
WALSALL COUNCIL,HTTP://OPENDATACOMMUNITIES.ORG/ID/METROPOLITAN-DISTRICT-COUNCIL/WALSALL,30/06/2017,ECONOMY & ENVIRONMENT,W M MORRISONS,07/04/2017,H59620170411WUCFFYQDC-2,8.54,WALSALL OUTDOOR ADVENTURE CENT-FOOD AND BEVERAGES-PROVISIONS,GROCERY STORES AND SUPERMARKETS,GPC
WALSALL COUNCIL,HTTP://OPENDATACOMMUNITIES.ORG/ID/METROPOLITAN-DISTRICT-COUNCIL/WALSALL,30/06/2017,CHANGE & GOVERNANCE,HTTP://WEBEX.COM,07/04/2017,H59620170411XBJUATUMT-1,155.34,DATA CENTRES-RECHARGE FOR MAINTENANCE/APPLI,OTHER BUSINESS SERVICES,GPC
WALSALL COUNCIL,HTTP://OPENDATACOMMUNITIES.ORG/ID/METROPOLITAN-DISTRICT-COUNCIL/WALSALL,30/06/2017,ECONOMY & ENVIRONMENT,DVLA DRIVER ONLINE,07/04/2017,H59620170411XEHJSNHBV-1,17.00,YEI (IMPACT) PROGRAMME-MISCELLANEOUS SUPPLIES,GOVERNMENT SERVICES,GPC
WALSALL COUNCIL,HTTP://OPENDATACOMMUNITIES.ORG/ID/METROPOLITAN-DISTRICT-COUNCIL/WALSALL,30/06/2017,ECONOMY & ENVIRONMENT,DVLA DRIVER ONLINE,07/04/2017,H59620170411XEHJSNHBV-2,17.00,YEI ESF FUNDING-MISCELLANEOUS SUPPLIES,GOVERNMENT SERVICES,GPC
WALSALL COUNCIL,HTTP://OPENDATACOMMUNITIES.ORG/ID/METROPOLITAN-DISTRICT-COUNCIL/WALSALL,30/06/2017,ECONOMY & ENVIRONMENT,WWW.NOBISCO.CO.UK,07/04/2017,H59620170411XVGTDPYNM-1,76.72,LIBRARY OPERATIONS CENTRAL-STATIONERY & GENERAL SUPPLIES-,"CLEANING AND MAINTENANCE, JANITORIAL SERVICES",GPC
WALSALL COUNCIL,HTTP://OPENDATACOMMUNITIES.ORG/ID/METROPOLITAN-DISTRICT-COUNCIL/WALSALL,30/06/2017,CHILDRENS SERVICES,SPORTS PLUS SCHEME LTD,07/04/2017,H59620170411XYLGCYGFR-1,95.00,CENTRAL & EAST LOCALITY - SCHO-MISC FEES AND EXPENSES,RECREATIONAL AND SPORTING CAMPS,GPC
WALSALL COUNCIL,HTTP://OPENDATACOMMUNITIES.ORG/ID/METROPOLITAN-DISTRICT-COUNCIL/WALSALL,30/06/2017,CHANGE & GOVERNANCE,CRAZY HOUSE FURNITURE,07/04/2017,H59620170411YOTKQLSCK-1,570.00,WALSALL CRISIS SUPPORT SCHEME-FURNITURE & EQUIPMENT,"EQUIPMENT, FURNITURE, AND HOME FURNISHINGS STORES ",GPC
WALSALL COUNCIL,HTTP://OPENDATACOMMUNITIES.ORG/ID/METROPOLITAN-DISTRICT-COUNCIL/WALSALL,30/06/2017,CHILDRENS SERVICES,POST OFFICE COUNTER,07/04/2017,H59620170411YXYNRBGWX-1,9.46,ELMWOOD SCHOOL-POSTAGES AND COURIER SERVICES,POSTAL SERVICES - GOVERNMENT ONLY,GPC
WALSALL COUNCIL,HTTP://OPENDATACOMMUNITIES.ORG/ID/METROPOLITAN-DISTRICT-COUNCIL/WALSALL,30/06/2017,CHANGE & GOVERNANCE,CRAZY HOUSE FURNITURE,07/04/2017,H59620170411YZNKKJTHX-1,280.00,WALSALL CRISIS SUPPORT SCHEME-FURNITURE & EQUIPMENT,"EQUIPMENT, FURNITURE, AND HOME FURNISHINGS STORES ",GPC
WALSALL COUNCIL,HTTP://OPENDATACOMMUNITIES.ORG/ID/METROPOLITAN-DISTRICT-COUNCIL/WALSALL,30/06/2017,CHANGE & GOVERNANCE,WWW.SCC.COM,07/04/2017,H59620170412EKYETEYBY-1,300.42,RECHARGEABLE EQUIPMENT-COMPUTER EQUIPMENT AND SUPPLIE,"COMPUTERS, COMPUTER PERIPHERAL EQUIPMENT, SOFTWARE",GPC
WALSALL COUNCIL,HTTP://OPENDATACOMMUNITIES.ORG/ID/METROPOLITAN-DISTRICT-COUNCIL/WALSALL,30/06/2017,CHILDRENS SERVICES,ONLINE LABELS LTD,07/04/2017,H59620170412IXHQOJJQY-1,25.08,ADMINISTRATIVE SUPPLIES-GENERAL MATERIALS,"STATIONERY, OFFICE SUPPLIES AND WRITING PAPER",GPC
WALSALL COUNCIL,HTTP://OPENDATACOMMUNITIES.ORG/ID/METROPOLITAN-DISTRICT-COUNCIL/WALSALL,30/06/2017,ECONOMY & ENVIRONMENT,CIEH,07/04/2017,H59620170412NCEWWQWXZ-1,48.30,COMPLIANCE MANAGEMENT-EXTERNAL TRAINING,"ORGANIZATIONS, MEMBERSHIP",GPC
WALSALL COUNCIL,HTTP://OPENDATACOMMUNITIES.ORG/ID/METROPOLITAN-DISTRICT-COUNCIL/WALSALL,30/06/2017,CHANGE & GOVERNANCE,WWW.SCC.COM,07/04/2017,H59620170412SJXFJIJRX-1,163.80,RECHARGEABLE EQUIPMENT-COMPUTER EQUIPMENT AND SUPPLIE,"COMPUTERS, COMPUTER PERIPHERAL EQUIPMENT, SOFTWARE",GPC
WALSALL COUNCIL,HTTP://OPENDATACOMMUNITIES.ORG/ID/METROPOLITAN-DISTRICT-COUNCIL/WALSALL,30/06/2017,CHANGE & GOVERNANCE,RYANAIR 22400000FUQPQ,07/04/2017,H59620170412STEKAAIXN-1,165.22,WELFARE RIGHTS-OTHER-TRAVEL ALLOWANCES,RYANAIR,GPC
WALSALL COUNCIL,HTTP://OPENDATACOMMUNITIES.ORG/ID/METROPOLITAN-DISTRICT-COUNCIL/WALSALL,30/06/2017,CHANGE & GOVERNANCE,WWW.SCC.COM,07/04/2017,H59620170427CCUQGCNJB-1,16.68,RECHARGEABLE EQUIPMENT-COMPUTER EQUIPMENT AND SUPPLIE,"COMPUTERS, COMPUTER PERIPHERAL EQUIPMENT, SOFTWARE",GPC
WALSALL COUNCIL,HTTP://OPENDATACOMMUNITIES.ORG/ID/METROPOLITAN-DISTRICT-COUNCIL/WALSALL,30/06/2017,CHANGE & GOVERNANCE,WWW.SCC.COM,07/04/2017,H59620170516WNYKSHUNB-1,159.24,RECHARGEABLE EQUIPMENT-COMPUTER EQUIPMENT AND SUPPLIE,"COMPUTERS, COMPUTER PERIPHERAL EQUIPMENT, SOFTWARE",GPC
WALSALL COUNCIL,HTTP://OPENDATACOMMUNITIES.ORG/ID/METROPOLITAN-DISTRICT-COUNCIL/WALSALL,30/06/2017,CHANGE & GOVERNANCE,WWW.SCC.COM,07/04/2017,H59620170519HGSDQTXVF-1,69.80,RECHARGEABLE EQUIPMENT-COMPUTER EQUIPMENT AND SUPPLIE,"COMPUTERS, COMPUTER PERIPHERAL EQUIPMENT, SOFTWARE",GPC
WALSALL COUNCIL,HTTP://OPENDATACOMMUNITIES.ORG/ID/METROPOLITAN-DISTRICT-COUNCIL/WALSALL,30/06/2017,CHILDRENS SERVICES,ARGOS RETAIL GROUP,08/04/2017,H59620170411AFKINMKLW-1,149.99,SPINDLETREE-NEW-FURNITURE & EQUIPMENT,DISCOUNT STORES,GPC
WALSALL COUNCIL,HTTP://OPENDATACOMMUNITIES.ORG/ID/METROPOLITAN-DISTRICT-COUNCIL/WALSALL,30/06/2017,CHANGE & GOVERNANCE,WWW.JUST EAT.CO.UK,08/04/2017,H59620170411FLOXTBUJI-1,31.28,ACCOMMODATION SERVICES MANAGEM-SUBSISTENCE OFFICERS-EXPENSES,"EATING PLACES, RESTAURANTS",GPC
WALSALL COUNCIL,HTTP://OPENDATACOMMUNITIES.ORG/ID/METROPOLITAN-DISTRICT-COUNCIL/WALSALL,30/06/2017,CHILDRENS SERVICES,AMAZON UK RETAIL AMAZON.C,08/04/2017,H59620170411JNZYBHROE-1,279.99,VIRTUAL SCHOOL - CENTRAL PUPIL-GENERAL MATERIALS,MISCELLANEOUS AND SPECIALTY RETAIL STORES,GPC
WALSALL COUNCIL,HTTP://OPENDATACOMMUNITIES.ORG/ID/METROPOLITAN-DISTRICT-COUNCIL/WALSALL,30/06/2017,CHANGE & GOVERNANCE,COBDEN HOTEL LIMITED,08/04/2017,H59620170411KKIDXCFHQ-1,112.95,BED & BREAKFAST PAYMENTS-HOTEL ACCOMMODATION-EMPLOYEES,"HOTELS, MOTELS, RESORTS",GPC
WALSALL COUNCIL,HTTP://OPENDATACOMMUNITIES.ORG/ID/METROPOLITAN-DISTRICT-COUNCIL/WALSALL,30/06/2017,CHILDRENS SERVICES,KFC WALSALL,08/04/2017,H59620170411KQBZPWHRJ-1,33.42,SPINDLETREE-RESIDENTS PERSONAL EXPENSES-AL,QUICK PAYMENT SERVICE-FAST-FOOD RESTAURANTS,GPC
WALSALL COUNCIL,HTTP://OPENDATACOMMUNITIES.ORG/ID/METROPOLITAN-DISTRICT-COUNCIL/WALSALL,30/06/2017,SOCIAL CARE & INCLUSION,WLY*COMPLETESAVE.CO.UK,08/04/2017,H59620170411LJCHSFRIQ-1,15.00,SHARED LIVES-MISCELLANEOUS SUPPLIES,DIRECT MARKETING CONTINUITY SUBSCRIPTION MERCHANTS,GPC
WALSALL COUNCIL,HTTP://OPENDATACOMMUNITIES.ORG/ID/METROPOLITAN-DISTRICT-COUNCIL/WALSALL,30/06/2017,ECONOMY & ENVIRONMENT,B & Q 1193,08/04/2017,H59620170411MIXQANPHP-1,-8.00,FOREST ARTS CENTRE-STATIONERY & GENERAL SUPPLIES-,LUMBER & BUILDING MATERIALS STORES,GPC
WALSALL COUNCIL,HTTP://OPENDATACOMMUNITIES.ORG/ID/METROPOLITAN-DISTRICT-COUNCIL/WALSALL,30/06/2017,CHILDRENS SERVICES,ARGOS RETAIL GROUP,08/04/2017,H59620170411NVSKLLBCW-1,-149.99,SPINDLETREE-NEW-FURNITURE & EQUIPMENT,DISCOUNT STORES,GPC
WALSALL COUNCIL,HTTP://OPENDATACOMMUNITIES.ORG/ID/METROPOLITAN-DISTRICT-COUNCIL/WALSALL,30/06/2017,ECONOMY & ENVIRONMENT,B & Q 1193,08/04/2017,H59620170411RGINIPKMW-1,8.00,FOREST ARTS CENTRE-STATIONERY & GENERAL SUPPLIES-,LUMBER & BUILDING MATERIALS STORES,GPC
WALSALL COUNCIL,HTTP://OPENDATACOMMUNITIES.ORG/ID/METROPOLITAN-DISTRICT-COUNCIL/WALSALL,30/06/2017,ECONOMY & ENVIRONMENT,B & Q 1193,08/04/2017,H59620170411TPYVNHGXL-1,8.00,FOREST ARTS CENTRE-STATIONERY & GENERAL SUPPLIES-,LUMBER & BUILDING MATERIALS STORES,GPC
WALSALL COUNCIL,HTTP://OPENDATACOMMUNITIES.ORG/ID/METROPOLITAN-DISTRICT-COUNCIL/WALSALL,30/06/2017,ECONOMY & ENVIRONMENT,AMAZON UK MARKETPLACE,09/04/2017,H59620170411FDPNNBZFW-1,9.98,BLOXWICH LEISURE CENTRE-MISCELLANEOUS SUPPLIES,MISCELLANEOUS AND SPECIALTY RETAIL STORES,GPC
WALSALL COUNCIL,HTTP://OPENDATACOMMUNITIES.ORG/ID/METROPOLITAN-DISTRICT-COUNCIL/WALSALL,30/06/2017,CHILDRENS SERVICES,AMAZON UK MARKETPLACE,09/04/2017,H59620170411LWNVGINBR-1,39.99,ADMINISTRATIVE SUPPLIES-MEDICAL REQUISITES-MATERIALS,MISCELLANEOUS AND SPECIALTY RETAIL STORES,GPC
WALSALL COUNCIL,HTTP://OPENDATACOMMUNITIES.ORG/ID/METROPOLITAN-DISTRICT-COUNCIL/WALSALL,30/06/2017,CHILDRENS SERVICES,AMAZON UK MARKETPLACE,09/04/2017,H59620170411LWNVGINBR-2,13.90,PHASE 1 RESOURCES-GENERAL MATERIALS,MISCELLANEOUS AND SPECIALTY RETAIL STORES,GPC
WALSALL COUNCIL,HTTP://OPENDATACOMMUNITIES.ORG/ID/METROPOLITAN-DISTRICT-COUNCIL/WALSALL,30/06/2017,CHILDRENS SERVICES,LIDL UK,09/04/2017,H59620170411PYDPCTYVX-1,7.98,SPINDLETREE-EQUIP NEW-CLEANING,GROCERY STORES AND SUPERMARKETS,GPC
WALSALL COUNCIL,HTTP://OPENDATACOMMUNITIES.ORG/ID/METROPOLITAN-DISTRICT-COUNCIL/WALSALL,30/06/2017,CHILDRENS SERVICES,LIDL UK,09/04/2017,H59620170411TUAHQYRNN-1,50.06,SPINDLETREE-FOOD AND BEVERAGES-PROVISIONS,GROCERY STORES AND SUPERMARKETS,GPC
WALSALL COUNCIL,HTTP://OPENDATACOMMUNITIES.ORG/ID/METROPOLITAN-DISTRICT-COUNCIL/WALSALL,30/06/2017,CHILDRENS SERVICES,LIDL UK,09/04/2017,H59620170411TUAHQYRNN-2,5.43,SPINDLETREE-FOOD AND BEVERAGES-PROVISIONS,GROCERY STORES AND SUPERMARKETS,GPC
WALSALL COUNCIL,HTTP://OPENDATACOMMUNITIES.ORG/ID/METROPOLITAN-DISTRICT-COUNCIL/WALSALL,30/06/2017,CHILDRENS SERVICES,AMAZON UK MARKETPLACE,09/04/2017,H59620170411VMLRENSVV-1,22.96,PHASE 1 RESOURCES-GENERAL MATERIALS,BOOK STORES,GPC
WALSALL COUNCIL,HTTP://OPENDATACOMMUNITIES.ORG/ID/METROPOLITAN-DISTRICT-COUNCIL/WALSALL,30/06/2017,CHILDRENS SERVICES,HOLIDAY INNS,09/04/2017,H59620170412KJEPQNOQG-1,100.00,LOOKED AFTER CHILDRENS SOCIAL -SECTION 34 (CONTACT),HOLIDAY INNS,GPC
WALSALL COUNCIL,HTTP://OPENDATACOMMUNITIES.ORG/ID/METROPOLITAN-DISTRICT-COUNCIL/WALSALL,30/06/2017,CHANGE & GOVERNANCE,BLAKEMORE FOODSERVICE,10/04/2017,H59620170412ABGKYWAZE-1,659.94,TOWN HALL RESTAURANT BISTRO-DRY FOODS-PROVISIONS,CATERERS,GPC
WALSALL COUNCIL,HTTP://OPENDATACOMMUNITIES.ORG/ID/METROPOLITAN-DISTRICT-COUNCIL/WALSALL,30/06/2017,CHANGE & GOVERNANCE,BLAKEMORE FOODSERVICE,10/04/2017,H59620170412ABGKYWAZE-2,119.94,TOWN HALL RESTAURANT BISTRO-DRY FOODS-PROVISIONS,CATERERS,GPC
WALSALL COUNCIL,HTTP://OPENDATACOMMUNITIES.ORG/ID/METROPOLITAN-DISTRICT-COUNCIL/WALSALL,30/06/2017,CHANGE & GOVERNANCE,BORSHCH LIMITED,10/04/2017,H59620170412BKIOMCXGW-1,520.00,WALSALL CRISIS SUPPORT SCHEME-CRISIS SUPPORT PAYMENTS,ELECTRONIC SALES,GPC
WALSALL COUNCIL,HTTP://OPENDATACOMMUNITIES.ORG/ID/METROPOLITAN-DISTRICT-COUNCIL/WALSALL,30/06/2017,CHANGE & GOVERNANCE,J & S GENERAL STOR,10/04/2017,H59620170412BPDPFEBTS-1,10.50,TENANCY SERVICE-FOOD AND BEVERAGES-PROVISIONS,MISCELLANEOUS FOOD STORES & CONVENIENCE STORES,GPC
WALSALL COUNCIL,HTTP://OPENDATACOMMUNITIES.ORG/ID/METROPOLITAN-DISTRICT-COUNCIL/WALSALL,30/06/2017,CHANGE & GOVERNANCE,A J COLES FLOWERS,10/04/2017,H59620170412BSQQMCFUY-1,375.00,MAYOR'S CIVIC AWARDS-FLORAL DECORATIONS-SERVICES-FE,FLORISTS,GPC
WALSALL COUNCIL,HTTP://OPENDATACOMMUNITIES.ORG/ID/METROPOLITAN-DISTRICT-COUNCIL/WALSALL,30/06/2017,CHANGE & GOVERNANCE,BLAKEMORE FOODSERVICE,10/04/2017,H59620170412CBLWQQFQJ-1,183.02,CA CROFT COMMUNITY PRIMARY SCH-FROZEN FOODS-PROVISIONS,CATERERS,GPC
WALSALL COUNCIL,HTTP://OPENDATACOMMUNITIES.ORG/ID/METROPOLITAN-DISTRICT-COUNCIL/WALSALL,30/06/2017,ECONOMY & ENVIRONMENT,SUPPLIES TEAM,10/04/2017,H59620170412CCKMJUJEW-1,7.75,CENTRALISED STATIONARY-STATIONERY & GENERAL SUPPLIES-,"OFFICE, SCHOOL SUPPLY, AND STATIONERY STORES",GPC
WALSALL COUNCIL,HTTP://OPENDATACOMMUNITIES.ORG/ID/METROPOLITAN-DISTRICT-COUNCIL/WALSALL,30/06/2017,CHANGE & GOVERNANCE,BLAKEMORE FOODSERVICE,10/04/2017,H59620170412CMUSKIOOD-1,447.43,CA MEADOW VIEW JMI PRIMARY SCH-DRY FOODS-PROVISIONS,CATERERS,GPC
WALSALL COUNCIL,HTTP://OPENDATACOMMUNITIES.ORG/ID/METROPOLITAN-DISTRICT-COUNCIL/WALSALL,30/06/2017,CHANGE & GOVERNANCE,BLAKEMORE FOODSERVICE,10/04/2017,H59620170412CUSIWZFFR-1,321.07,CA BROWNHILLS WEST PRIMARY SCH-DRY FOODS-PROVISIONS,CATERERS,GPC
WALSALL COUNCIL,HTTP://OPENDATACOMMUNITIES.ORG/ID/METROPOLITAN-DISTRICT-COUNCIL/WALSALL,30/06/2017,CHANGE & GOVERNANCE,BLAKEMORE FOODSERVICE,10/04/2017,H59620170412CUSIWZFFR-2,173.21,CA BROWNHILLS WEST PRIMARY SCH-DRY FOODS-PROVISIONS,CATERERS,GPC
WALSALL COUNCIL,HTTP://OPENDATACOMMUNITIES.ORG/ID/METROPOLITAN-DISTRICT-COUNCIL/WALSALL,30/06/2017,CHANGE & GOVERNANCE,BLAKEMORE FOODSERVICE,10/04/2017,H59620170412CXSWFIVGM-1,291.31,CA BIRCHILLS CE PRIMARY COMMUN-FROZEN FOODS-PROVISIONS,CATERERS,GPC
WALSALL COUNCIL,HTTP://OPENDATACOMMUNITIES.ORG/ID/METROPOLITAN-DISTRICT-COUNCIL/WALSALL,30/06/2017,CHANGE & GOVERNANCE,BLAKEMORE FOODSERVICE,10/04/2017,H59620170412DMPULQILS-1,216.06,CA OAKWOOD SPECIAL SCHOOL-DRY FOODS-PROVISIONS,CATERERS,GPC
WALSALL COUNCIL,HTTP://OPENDATACOMMUNITIES.ORG/ID/METROPOLITAN-DISTRICT-COUNCIL/WALSALL,30/06/2017,CHILDRENS SERVICES,W M MORRISONS.COM,10/04/2017,H59620170412DPPQKJXJG-1,10.26,57 LICHFIELD ROAD-FOOD AND BEVERAGES-PROVISIONS,GROCERY STORES AND SUPERMARKETS,GPC
WALSALL COUNCIL,HTTP://OPENDATACOMMUNITIES.ORG/ID/METROPOLITAN-DISTRICT-COUNCIL/WALSALL,30/06/2017,CHILDRENS SERVICES,W M MORRISONS.COM,10/04/2017,H59620170412DPPQKJXJG-2,84.60,57 LICHFIELD ROAD-FOOD AND BEVERAGES-PROVISIONS,GROCERY STORES AND SUPERMARKETS,GPC
WALSALL COUNCIL,HTTP://OPENDATACOMMUNITIES.ORG/ID/METROPOLITAN-DISTRICT-COUNCIL/WALSALL,30/06/2017,CHILDRENS SERVICES,REGISTRATION SERVICES,10/04/2017,H59620170412DZIAESEYE-1,10.00,LOOKED AFTER CHILDRENS SOCIAL -MISC FEES AND EXPENSES,OTHER RECREATION SERVICES,GPC
WALSALL COUNCIL,HTTP://OPENDATACOMMUNITIES.ORG/ID/METROPOLITAN-DISTRICT-COUNCIL/WALSALL,30/06/2017,ECONOMY & ENVIRONMENT,TESCO PFS 3892,10/04/2017,H59620170412DZXDFWXYQ-1,11.45,COUNTRYSIDE MANAGEMENT - OTHER-GENERAL MATERIALS,SERVICE STATIONS,GPC
WALSALL COUNCIL,HTTP://OPENDATACOMMUNITIES.ORG/ID/METROPOLITAN-DISTRICT-COUNCIL/WALSALL,30/06/2017,ECONOMY & ENVIRONMENT,SUPPLIES TEAM,10/04/2017,H59620170412EIDKKDZTB-1,31.01,RESOURCE MANAGEMENT-GENERAL EXPENSES-OFFICE EXP,"OFFICE, SCHOOL SUPPLY, AND STATIONERY STORES",GPC
WALSALL COUNCIL,HTTP://OPENDATACOMMUNITIES.ORG/ID/METROPOLITAN-DISTRICT-COUNCIL/WALSALL,30/06/2017,CHANGE & GOVERNANCE,BLAKEMORE FOODSERVICE,10/04/2017,H59620170412EZDOTHPHT-1,206.09,CA CROFT COMMUNITY PRIMARY SCH-DRY FOODS-PROVISIONS,CATERERS,GPC
WALSALL COUNCIL,HTTP://OPENDATACOMMUNITIES.ORG/ID/METROPOLITAN-DISTRICT-COUNCIL/WALSALL,30/06/2017,CHANGE & GOVERNANCE,TRAINLINE,10/04/2017,H59620170412FGHMBSTUJ-1,72.93,LITIGATION-EXTERNAL TRAINING,PASSENGER RAILWAYS,GPC
WALSALL COUNCIL,HTTP://OPENDATACOMMUNITIES.ORG/ID/METROPOLITAN-DISTRICT-COUNCIL/WALSALL,30/06/2017,CHANGE & GOVERNANCE,BLAKEMORE FOODSERVICE,10/04/2017,H59620170412FMMZTYKBP-1,17.10,CA JANE LANE SPECIAL SCHOOL-CATERING,CATERERS,GPC
WALSALL COUNCIL,HTTP://OPENDATACOMMUNITIES.ORG/ID/METROPOLITAN-DISTRICT-COUNCIL/WALSALL,30/06/2017,CHANGE & GOVERNANCE,BLAKEMORE FOODSERVICE,10/04/2017,H59620170412FOALYQQPW-1,21.63,CA LEIGHSWOOD PRIMARY SCHOOL-FROZEN FOODS-PROVISIONS,CATERERS,GPC
WALSALL COUNCIL,HTTP://OPENDATACOMMUNITIES.ORG/ID/METROPOLITAN-DISTRICT-COUNCIL/WALSALL,30/06/2017,ECONOMY & ENVIRONMENT,SUPPLIES TEAM,10/04/2017,H59620170412FRPBQQHEC-1,39.98,RESOURCE MANAGEMENT-GENERAL EXPENSES-OFFICE EXP,"OFFICE, SCHOOL SUPPLY, AND STATIONERY STORES",GPC
WALSALL COUNCIL,HTTP://OPENDATACOMMUNITIES.ORG/ID/METROPOLITAN-DISTRICT-COUNCIL/WALSALL,30/06/2017,CHANGE & GOVERNANCE,BLAKEMORE FOODSERVICE,10/04/2017,H59620170412FUEMWOZDE-1,111.35,CA ST MICHAELS C.E. PRIMARY SC-DRY FOODS-PROVISIONS,CATERERS,GPC
WALSALL COUNCIL,HTTP://OPENDATACOMMUNITIES.ORG/ID/METROPOLITAN-DISTRICT-COUNCIL/WALSALL,30/06/2017,CHANGE & GOVERNANCE,BLAKEMORE FOODSERVICE,10/04/2017,H59620170412FUEMWOZDE-2,110.08,CA ST MICHAELS C.E. PRIMARY SC-DRY FOODS-PROVISIONS,CATERERS,GPC
WALSALL COUNCIL,HTTP://OPENDATACOMMUNITIES.ORG/ID/METROPOLITAN-DISTRICT-COUNCIL/WALSALL,30/06/2017,CHANGE & GOVERNANCE,BLAKEMORE FOODSERVICE,10/04/2017,H59620170412GSVFWLJWB-1,-5.19,CA BUSILL JONES PRIMARY SCHOOL-FROZEN FOODS-PROVISIONS,CATERERS,GPC
WALSALL COUNCIL,HTTP://OPENDATACOMMUNITIES.ORG/ID/METROPOLITAN-DISTRICT-COUNCIL/WALSALL,30/06/2017,CHANGE & GOVERNANCE,MILLER MEDICAL SUPPLIES,10/04/2017,H59620170412HOXFNGATC-1,74.30,FINANCE ADMIN-MEDICAL REQUISITES-MATERIALS,"CHIROPODISTS, PODIATRISTS",GPC
WALSALL COUNCIL,HTTP://OPENDATACOMMUNITIES.ORG/ID/METROPOLITAN-DISTRICT-COUNCIL/WALSALL,30/06/2017,ECONOMY & ENVIRONMENT,WALSALL WOOD,10/04/2017,H59620170412HWYZFMUHB-1,7.39,INFRASTRUCTURE MAINTENANCE-GENERAL MATERIALS,LUMBER & BUILDING MATERIALS STORES,GPC
WALSALL COUNCIL,HTTP://OPENDATACOMMUNITIES.ORG/ID/METROPOLITAN-DISTRICT-COUNCIL/WALSALL,30/06/2017,ECONOMY & ENVIRONMENT,WALSALL WOOD,10/04/2017,H59620170412IDBIBRKXQ-1,116.91,DEPOT-GENERAL MATERIALS,LUMBER & BUILDING MATERIALS STORES,GPC
WALSALL COUNCIL,HTTP://OPENDATACOMMUNITIES.ORG/ID/METROPOLITAN-DISTRICT-COUNCIL/WALSALL,30/06/2017,CHILDRENS SERVICES,W M MORRISONS.COM,10/04/2017,H59620170412IHZGKLKRA-1,3.36,BIRCHILLS CHILDCARE SERVICES-FOOD AND BEVERAGES-PROVISIONS,GROCERY STORES AND SUPERMARKETS,GPC
WALSALL COUNCIL,HTTP://OPENDATACOMMUNITIES.ORG/ID/METROPOLITAN-DISTRICT-COUNCIL/WALSALL,30/06/2017,CHILDRENS SERVICES,W M MORRISONS.COM,10/04/2017,H59620170412IHZGKLKRA-2,99.29,BIRCHILLS CHILDCARE SERVICES-FOOD AND BEVERAGES-PROVISIONS,GROCERY STORES AND SUPERMARKETS,GPC
WALSALL COUNCIL,HTTP://OPENDATACOMMUNITIES.ORG/ID/METROPOLITAN-DISTRICT-COUNCIL/WALSALL,30/06/2017,CHANGE & GOVERNANCE,BLAKEMORE FOODSERVICE,10/04/2017,H59620170412IMPZUWDEJ-1,599.61,CA LINDENS PRIMARY SCHOOL-DRY FOODS-PROVISIONS,CATERERS,GPC
WALSALL COUNCIL,HTTP://OPENDATACOMMUNITIES.ORG/ID/METROPOLITAN-DISTRICT-COUNCIL/WALSALL,30/06/2017,CHANGE & GOVERNANCE,BLAKEMORE FOODSERVICE,10/04/2017,H59620170412IMPZUWDEJ-2,247.44,CA LINDENS PRIMARY SCHOOL-DRY FOODS-PROVISIONS,CATERERS,GPC
WALSALL COUNCIL,HTTP://OPENDATACOMMUNITIES.ORG/ID/METROPOLITAN-DISTRICT-COUNCIL/WALSALL,30/06/2017,CHANGE & GOVERNANCE,BLAKEMORE FOODSERVICE,10/04/2017,H59620170412KNWJCVGRO-1,359.51,CA ST JOHNS C.E. PRIMARY SCHOO-FROZEN FOODS-PROVISIONS,CATERERS,GPC
WALSALL COUNCIL,HTTP://OPENDATACOMMUNITIES.ORG/ID/METROPOLITAN-DISTRICT-COUNCIL/WALSALL,30/06/2017,CHANGE & GOVERNANCE,BLAKEMORE FOODSERVICE,10/04/2017,H59620170412KSVQQCPKX-1,-27.72,CA ST MICHAELS C.E. PRIMARY SC-DRY FOODS-PROVISIONS,CATERERS,GPC
WALSALL COUNCIL,HTTP://OPENDATACOMMUNITIES.ORG/ID/METROPOLITAN-DISTRICT-COUNCIL/WALSALL,30/06/2017,CHANGE & GOVERNANCE,ARTHUR BRETT CATER,10/04/2017,H59620170412LCGCYTNBG-1,83.09,TOWN HALL RESTAURANT BISTRO-FRUIT & VEGETABLES OTHER-PROVI,MISCELLANEOUS FOOD STORES & CONVENIENCE STORES,GPC
WALSALL COUNCIL,HTTP://OPENDATACOMMUNITIES.ORG/ID/METROPOLITAN-DISTRICT-COUNCIL/WALSALL,30/06/2017,CHANGE & GOVERNANCE,BLAKEMORE FOODSERVICE,10/04/2017,H59620170412LKKWFGWYL-1,73.48,CA OLD HALL SPECIAL SCHOOL-FROZEN FOODS-PROVISIONS,CATERERS,GPC
WALSALL COUNCIL,HTTP://OPENDATACOMMUNITIES.ORG/ID/METROPOLITAN-DISTRICT-COUNCIL/WALSALL,30/06/2017,CHANGE & GOVERNANCE,BRITANNIA WOLVERHA,10/04/2017,H59620170412MDNROBLOR-1,691.00,BED & BREAKFAST PAYMENTS-HOTEL ACCOMMODATION-EMPLOYEES,"HOTELS, MOTELS, RESORTS",GPC
WALSALL COUNCIL,HTTP://OPENDATACOMMUNITIES.ORG/ID/METROPOLITAN-DISTRICT-COUNCIL/WALSALL,30/06/2017,CHILDRENS SERVICES,REGISTRATION SERVICES,10/04/2017,H59620170412MGIBIYSJT-1,54.00,LOOKED AFTER CHILDRENS SOCIAL -MISC FEES AND EXPENSES,OTHER RECREATION SERVICES,GPC
WALSALL COUNCIL,HTTP://OPENDATACOMMUNITIES.ORG/ID/METROPOLITAN-DISTRICT-COUNCIL/WALSALL,30/06/2017,CHILDRENS SERVICES,"BOOTS,WALSALL",10/04/2017,H59620170412MOPCUVEJX-1,39.99,BLUEBELLS-MISCELLANEOUS SUPPLIES,"DRUG STORES, PHARMACIES",GPC
WALSALL COUNCIL,HTTP://OPENDATACOMMUNITIES.ORG/ID/METROPOLITAN-DISTRICT-COUNCIL/WALSALL,30/06/2017,CHANGE & GOVERNANCE,BLAKEMORE FOODSERVICE,10/04/2017,H59620170412MVYQIWDGB-1,49.49,CA RUSHALL JMI SCHOOL-DRY FOODS-PROVISIONS,CATERERS,GPC
WALSALL COUNCIL,HTTP://OPENDATACOMMUNITIES.ORG/ID/METROPOLITAN-DISTRICT-COUNCIL/WALSALL,30/06/2017,CHANGE & GOVERNANCE,BLAKEMORE FOODSERVICE,10/04/2017,H59620170412MVYQIWDGB-2,257.05,CA RUSHALL JMI SCHOOL-DRY FOODS-PROVISIONS,CATERERS,GPC
WALSALL COUNCIL,HTTP://OPENDATACOMMUNITIES.ORG/ID/METROPOLITAN-DISTRICT-COUNCIL/WALSALL,30/06/2017,CHILDRENS SERVICES,TELECOMRECY,10/04/2017,H59620170412NIMOIFZLD-1,68.40,LOCALITY FAMILY SUPPORT-WEST-COSTS (NOT INTERNAL RECHARGES),TELECOMMUNICATION EQUIPMENT & SALES,GPC
WALSALL COUNCIL,HTTP://OPENDATACOMMUNITIES.ORG/ID/METROPOLITAN-DISTRICT-COUNCIL/WALSALL,30/06/2017,CHANGE & GOVERNANCE,BLAKEMORE FOODSERVICE,10/04/2017,H59620170412NLDKLQFWG-1,61.86,CA ST JOHNS C.E. PRIMARY SCHOO-DRY FOODS-PROVISIONS,CATERERS,GPC
WALSALL COUNCIL,HTTP://OPENDATACOMMUNITIES.ORG/ID/METROPOLITAN-DISTRICT-COUNCIL/WALSALL,30/06/2017,CHANGE & GOVERNANCE,BLAKEMORE FOODSERVICE,10/04/2017,H59620170412NLDKLQFWG-2,430.16,CA ST JOHNS C.E. PRIMARY SCHOO-DRY FOODS-PROVISIONS,CATERERS,GPC
WALSALL COUNCIL,HTTP://OPENDATACOMMUNITIES.ORG/ID/METROPOLITAN-DISTRICT-COUNCIL/WALSALL,30/06/2017,ECONOMY & ENVIRONMENT,WH SMITH,10/04/2017,H59620170412NPBNUQXGU-1,149.98,OAK PARK-NEW-FURNITURE & EQUIPMENT,NEWS DEALERS AND NEWSSTANDS,GPC
WALSALL COUNCIL,HTTP://OPENDATACOMMUNITIES.ORG/ID/METROPOLITAN-DISTRICT-COUNCIL/WALSALL,30/06/2017,CHILDRENS SERVICES,SUPPLIES TEAM,10/04/2017,H59620170412NYMJZSDGF-1,94.32,PELSALL EDC-STATIONERY & GENERAL SUPPLIES-,"OFFICE, SCHOOL SUPPLY, AND STATIONERY STORES",GPC
WALSALL COUNCIL,HTTP://OPENDATACOMMUNITIES.ORG/ID/METROPOLITAN-DISTRICT-COUNCIL/WALSALL,30/06/2017,ECONOMY & ENVIRONMENT,TESCO DIRECT,10/04/2017,H59620170412OBMUXBSEV-1,5.00,YEI (IMPACT) PROGRAMME-MISCELLANEOUS SUPPLIES,MISCELLANEOUS AND SPECIALTY RETAIL STORES,GPC
WALSALL COUNCIL,HTTP://OPENDATACOMMUNITIES.ORG/ID/METROPOLITAN-DISTRICT-COUNCIL/WALSALL,30/06/2017,ECONOMY & ENVIRONMENT,TESCO DIRECT,10/04/2017,H59620170412OBMUXBSEV-2,5.00,YEI ESF FUNDING-MISCELLANEOUS SUPPLIES,MISCELLANEOUS AND SPECIALTY RETAIL STORES,GPC
WALSALL COUNCIL,HTTP://OPENDATACOMMUNITIES.ORG/ID/METROPOLITAN-DISTRICT-COUNCIL/WALSALL,30/06/2017,CHANGE & GOVERNANCE,SAINSBURYS SMKT,10/04/2017,H59620170412ODECMCHPJ-1,36.00,ACCOMMODATION SERVICES MANAGEM-FOOD AND BEVERAGES-PROVISIONS,GROCERY STORES AND SUPERMARKETS,GPC
WALSALL COUNCIL,HTTP://OPENDATACOMMUNITIES.ORG/ID/METROPOLITAN-DISTRICT-COUNCIL/WALSALL,30/06/2017,CHILDRENS SERVICES,REGISTRATION SERVICES,10/04/2017,H59620170412OGPNFLJOJ-1,10.00,LOOKED AFTER CHILDRENS SOCIAL -MISC FEES AND EXPENSES,OTHER RECREATION SERVICES,GPC
WALSALL COUNCIL,HTTP://OPENDATACOMMUNITIES.ORG/ID/METROPOLITAN-DISTRICT-COUNCIL/WALSALL,30/06/2017,CHANGE & GOVERNANCE,BLAKEMORE FOODSERVICE,10/04/2017,H59620170412PHDCENOVJ-1,326.54,CA BUSILL JONES PRIMARY SCHOOL-FROZEN FOODS-PROVISIONS,CATERERS,GPC
WALSALL COUNCIL,HTTP://OPENDATACOMMUNITIES.ORG/ID/METROPOLITAN-DISTRICT-COUNCIL/WALSALL,30/06/2017,CHANGE & GOVERNANCE,BLAKEMORE FOODSERVICE,10/04/2017,H59620170412PHJSIJCJH-1,190.77,CA RADLEYS PRIMARY SCHOOL-DRY FOODS-PROVISIONS,CATERERS,GPC
WALSALL COUNCIL,HTTP://OPENDATACOMMUNITIES.ORG/ID/METROPOLITAN-DISTRICT-COUNCIL/WALSALL,30/06/2017,CHANGE & GOVERNANCE,BLAKEMORE FOODSERVICE,10/04/2017,H59620170412PHJSIJCJH-2,173.21,CA RADLEYS PRIMARY SCHOOL-DRY FOODS-PROVISIONS,CATERERS,GPC
WALSALL COUNCIL,HTTP://OPENDATACOMMUNITIES.ORG/ID/METROPOLITAN-DISTRICT-COUNCIL/WALSALL,30/06/2017,CHANGE & GOVERNANCE,BLAKEMORE FOODSERVICE,10/04/2017,H59620170412PHQZRCFXL-1,-4.42,CA BIRCHILLS CE PRIMARY COMMUN-DRY FOODS-PROVISIONS,CATERERS,GPC
WALSALL COUNCIL,HTTP://OPENDATACOMMUNITIES.ORG/ID/METROPOLITAN-DISTRICT-COUNCIL/WALSALL,30/06/2017,CHANGE & GOVERNANCE,BLAKEMORE FOODSERVICE,10/04/2017,H59620170412PPWSJVNJQ-1,-27.62,TOWN HALL RESTAURANT BISTRO-DRY FOODS-PROVISIONS,CATERERS,GPC
WALSALL COUNCIL,HTTP://OPENDATACOMMUNITIES.ORG/ID/METROPOLITAN-DISTRICT-COUNCIL/WALSALL,30/06/2017,CHILDRENS SERVICES,ARGOS WALSALL CROW,10/04/2017,H59620170412PZAFXHDNO-1,146.96,BLUEBELLS-MISCELLANEOUS SUPPLIES,DISCOUNT STORES,GPC
WALSALL COUNCIL,HTTP://OPENDATACOMMUNITIES.ORG/ID/METROPOLITAN-DISTRICT-COUNCIL/WALSALL,30/06/2017,CHANGE & GOVERNANCE,BLAKEMORE FOODSERVICE,10/04/2017,H59620170412QKSYVHKDV-1,123.72,CA LEIGHSWOOD PRIMARY SCHOOL-DRY FOODS-PROVISIONS,CATERERS,GPC
WALSALL COUNCIL,HTTP://OPENDATACOMMUNITIES.ORG/ID/METROPOLITAN-DISTRICT-COUNCIL/WALSALL,30/06/2017,CHANGE & GOVERNANCE,BLAKEMORE FOODSERVICE,10/04/2017,H59620170412QKSYVHKDV-2,190.88,CA LEIGHSWOOD PRIMARY SCHOOL-DRY FOODS-PROVISIONS,CATERERS,GPC
WALSALL COUNCIL,HTTP://OPENDATACOMMUNITIES.ORG/ID/METROPOLITAN-DISTRICT-COUNCIL/WALSALL,30/06/2017,CHILDRENS SERVICES,LIGHT CINEMAS LTD,10/04/2017,H59620170412QMEMYVRLP-1,25.00,SPINDLETREE-RESIDENTS PERSONAL EXPENSES-AL,"THEATRICAL PRODUCERS, TIC",GPC
WALSALL COUNCIL,HTTP://OPENDATACOMMUNITIES.ORG/ID/METROPOLITAN-DISTRICT-COUNCIL/WALSALL,30/06/2017,CHANGE & GOVERNANCE,SUPPLIES TEAM,10/04/2017,H59620170412RCPNUJPYO-1,-40.61,ELECTORAL SERVICES-STATIONERY & GENERAL SUPPLIES-,"OFFICE, SCHOOL SUPPLY, AND STATIONERY STORES",GPC
WALSALL COUNCIL,HTTP://OPENDATACOMMUNITIES.ORG/ID/METROPOLITAN-DISTRICT-COUNCIL/WALSALL,30/06/2017,SOCIAL CARE & INCLUSION,ASDA HOME SHOPPING,10/04/2017,H59620170412REFZSWQAX-1,20.76,FALLINGS HEATH-FOOD AND BEVERAGES-PROVISIONS,GROCERY STORES AND SUPERMARKETS,GPC
WALSALL COUNCIL,HTTP://OPENDATACOMMUNITIES.ORG/ID/METROPOLITAN-DISTRICT-COUNCIL/WALSALL,30/06/2017,SOCIAL CARE & INCLUSION,ASDA HOME SHOPPING,10/04/2017,H59620170412REFZSWQAX-2,118.89,FALLINGS HEATH-FOOD AND BEVERAGES-PROVISIONS,GROCERY STORES AND SUPERMARKETS,GPC
WALSALL COUNCIL,HTTP://OPENDATACOMMUNITIES.ORG/ID/METROPOLITAN-DISTRICT-COUNCIL/WALSALL,30/06/2017,CHANGE & GOVERNANCE,TRAINLINE,10/04/2017,H59620170412RMLTGHXPJ-1,27.49,WALSALL CRISIS SUPPORT SCHEME-OFFICER/STAFF-PUBLIC TRANSPORT,PASSENGER RAILWAYS,GPC
WALSALL COUNCIL,HTTP://OPENDATACOMMUNITIES.ORG/ID/METROPOLITAN-DISTRICT-COUNCIL/WALSALL,30/06/2017,ECONOMY & ENVIRONMENT,OFFICE OUTLET,10/04/2017,H59620170412RPYOAITPY-1,13.45,DARLASTON LEISURE CENTRE-STATIONERY & GENERAL SUPPLIES-,"OFFICE, SCHOOL SUPPLY, AND STATIONERY STORES",GPC
WALSALL COUNCIL,HTTP://OPENDATACOMMUNITIES.ORG/ID/METROPOLITAN-DISTRICT-COUNCIL/WALSALL,30/06/2017,SOCIAL CARE & INCLUSION,ASDA HOME SHOPPING,10/04/2017,H59620170412RVYGQEYUJ-1,-1.00,FALLINGS HEATH-FOOD AND BEVERAGES-PROVISIONS,GROCERY STORES AND SUPERMARKETS,GPC
WALSALL COUNCIL,HTTP://OPENDATACOMMUNITIES.ORG/ID/METROPOLITAN-DISTRICT-COUNCIL/WALSALL,30/06/2017,ECONOMY & ENVIRONMENT,TRAINLINE,10/04/2017,H59620170412SGCVGLUIF-1,193.60,ENGINEERING MANAGEMENT-OFFICER/STAFF-PUBLIC TRANSPORT,PASSENGER RAILWAYS,GPC
WALSALL COUNCIL,HTTP://OPENDATACOMMUNITIES.ORG/ID/METROPOLITAN-DISTRICT-COUNCIL/WALSALL,30/06/2017,ECONOMY & ENVIRONMENT,WWW.AQUARTEROF.COM,10/04/2017,H59620170412SKFIUTUOH-1,33.39,EXHIBITIONS - SPECIAL PROJECTS-MISC DAIRY PRODUCTS-PROVISIONS,"CANDY, NUT AND CONFECTIONERY STORES",GPC
WALSALL COUNCIL,HTTP://OPENDATACOMMUNITIES.ORG/ID/METROPOLITAN-DISTRICT-COUNCIL/WALSALL,30/06/2017,CHILDRENS SERVICES,SMYTHS TOYS UK LTD,10/04/2017,H59620170412SPBDJNJIN-1,72.99,BLUEBELLS-TOYS & GAMES-MATERIALS,"GAME, TOY, AND HOBBY SHOPS",GPC
WALSALL COUNCIL,HTTP://OPENDATACOMMUNITIES.ORG/ID/METROPOLITAN-DISTRICT-COUNCIL/WALSALL,30/06/2017,CHILDRENS SERVICES,GOEURO,10/04/2017,H59620170412UEYADBKIM-1,106.15,SAFEGUARDING & FAMILY SUPPORT-SUPPORT UNDER SECTION 23 OF TH,TRAVEL AGENCIES AND TOUR OPERATORS,GPC
WALSALL COUNCIL,HTTP://OPENDATACOMMUNITIES.ORG/ID/METROPOLITAN-DISTRICT-COUNCIL/WALSALL,30/06/2017,CHILDRENS SERVICES,SUPPLIES TEAM,10/04/2017,H59620170412UINDUOPGQ-1,108.01,SAFEGUARDING & FAMILY SUPPORT-STATIONERY & GENERAL SUPPLIES-,"OFFICE, SCHOOL SUPPLY, AND STATIONERY STORES",GPC
WALSALL COUNCIL,HTTP://OPENDATACOMMUNITIES.ORG/ID/METROPOLITAN-DISTRICT-COUNCIL/WALSALL,30/06/2017,CHANGE & GOVERNANCE,BLAKEMORE FOODSERVICE,10/04/2017,H59620170412UUKETMKKE-1,287.61,CA RADLEYS PRIMARY SCHOOL-FROZEN FOODS-PROVISIONS,CATERERS,GPC
WALSALL COUNCIL,HTTP://OPENDATACOMMUNITIES.ORG/ID/METROPOLITAN-DISTRICT-COUNCIL/WALSALL,30/06/2017,CHANGE & GOVERNANCE,BLAKEMORE FOODSERVICE,10/04/2017,H59620170412UUKETMKKE-2,32.02,CA RADLEYS PRIMARY SCHOOL-FROZEN FOODS-PROVISIONS,CATERERS,GPC
WALSALL COUNCIL,HTTP://OPENDATACOMMUNITIES.ORG/ID/METROPOLITAN-DISTRICT-COUNCIL/WALSALL,30/06/2017,CHILDRENS SERVICES,VIRGIN TRAINS,10/04/2017,H59620170412VDMCIXEYZ-1,5.50,WORKFORCE DEVELOPMENT-OFFICER/STAFF-PUBLIC TRANSPORT,PASSENGER RAILWAYS,GPC
WALSALL COUNCIL,HTTP://OPENDATACOMMUNITIES.ORG/ID/METROPOLITAN-DISTRICT-COUNCIL/WALSALL,30/06/2017,CHANGE & GOVERNANCE,BLAKEMORE FOODSERVICE,10/04/2017,H59620170412VFPZEEPXI-1,8.16,CA LEIGHSWOOD PRIMARY SCHOOL-DRY FOODS-PROVISIONS,CATERERS,GPC
WALSALL COUNCIL,HTTP://OPENDATACOMMUNITIES.ORG/ID/METROPOLITAN-DISTRICT-COUNCIL/WALSALL,30/06/2017,CHILDRENS SERVICES,IKEA LIMITED,10/04/2017,H59620170412VIRSTQTXQ-1,90.00,SPINDLETREE-RESIDENTS PERSONAL EXPENSES-AL,"EQUIPMENT, FURNITURE, AND HOME FURNISHINGS STORES ",GPC
WALSALL COUNCIL,HTTP://OPENDATACOMMUNITIES.ORG/ID/METROPOLITAN-DISTRICT-COUNCIL/WALSALL,30/06/2017,CHILDRENS SERVICES,WESTMINSTER FORUM,10/04/2017,H59620170412VJGHWBTKB-1,252.00,ACCESS & ACHIEVEMENT MANAGEMEN-CONSULTANTS FEES,"CONSULTING, MANAGEMENT, AND PR SERVICES",GPC
WALSALL COUNCIL,HTTP://OPENDATACOMMUNITIES.ORG/ID/METROPOLITAN-DISTRICT-COUNCIL/WALSALL,30/06/2017,ECONOMY & ENVIRONMENT,SUPPLIES TEAM,10/04/2017,H59620170412WIICVLHQO-1,177.52,LIBRARY OPERATIONS CENTRAL-STATIONERY & GENERAL SUPPLIES-,"OFFICE, SCHOOL SUPPLY, AND STATIONERY STORES",GPC
WALSALL COUNCIL,HTTP://OPENDATACOMMUNITIES.ORG/ID/METROPOLITAN-DISTRICT-COUNCIL/WALSALL,30/06/2017,CHANGE & GOVERNANCE,123-REG.CO.UK,10/04/2017,H59620170412WKLLTEOXU-1,23.98,NETWORKS-RECHARGE FOR MAINTENANCE/APPLI,COMPUTER NETWORK/INFORMATION SERVICES,GPC
WALSALL COUNCIL,HTTP://OPENDATACOMMUNITIES.ORG/ID/METROPOLITAN-DISTRICT-COUNCIL/WALSALL,30/06/2017,CHANGE & GOVERNANCE,BLAKEMORE FOODSERVICE,10/04/2017,H59620170412WSGEGVNOR-1,279.03,CA FIBBERSLEY PARK PRIMARY SCH-FROZEN FOODS-PROVISIONS,CATERERS,GPC
WALSALL COUNCIL,HTTP://OPENDATACOMMUNITIES.ORG/ID/METROPOLITAN-DISTRICT-COUNCIL/WALSALL,30/06/2017,CHANGE & GOVERNANCE,BLAKEMORE FOODSERVICE,10/04/2017,H59620170412XIYMLIMIF-1,7.21,CA CROFT COMMUNITY PRIMARY SCH-FROZEN FOODS-PROVISIONS,CATERERS,GPC
WALSALL COUNCIL,HTTP://OPENDATACOMMUNITIES.ORG/ID/METROPOLITAN-DISTRICT-COUNCIL/WALSALL,30/06/2017,CHANGE & GOVERNANCE,BLAKEMORE FOODSERVICE,10/04/2017,H59620170412XLQNZHVGJ-1,127.41,CA JANE LANE SPECIAL SCHOOL-FROZEN FOODS-PROVISIONS,CATERERS,GPC
WALSALL COUNCIL,HTTP://OPENDATACOMMUNITIES.ORG/ID/METROPOLITAN-DISTRICT-COUNCIL/WALSALL,30/06/2017,CHANGE & GOVERNANCE,BORSHCH LIMITED,10/04/2017,H59620170412XMGPCYCHL-1,290.00,WALSALL CRISIS SUPPORT SCHEME-FURNITURE & EQUIPMENT,ELECTRONIC SALES,GPC
WALSALL COUNCIL,HTTP://OPENDATACOMMUNITIES.ORG/ID/METROPOLITAN-DISTRICT-COUNCIL/WALSALL,30/06/2017,CHANGE & GOVERNANCE,BLAKEMORE FOODSERVICE,10/04/2017,H59620170412XPVQBCRTK-1,30.88,CA BARCROFT D/C-FROZEN FOODS-PROVISIONS,CATERERS,GPC
WALSALL COUNCIL,HTTP://OPENDATACOMMUNITIES.ORG/ID/METROPOLITAN-DISTRICT-COUNCIL/WALSALL,30/06/2017,CHANGE & GOVERNANCE,BLAKEMORE FOODSERVICE,10/04/2017,H59620170412XRFFPYUDS-1,51.08,CA BARCROFT D/C-FROZEN FOODS-PROVISIONS,CATERERS,GPC
WALSALL COUNCIL,HTTP://OPENDATACOMMUNITIES.ORG/ID/METROPOLITAN-DISTRICT-COUNCIL/WALSALL,30/06/2017,CHANGE & GOVERNANCE,BLAKEMORE FOODSERVICE,10/04/2017,H59620170412XTAGHDNKT-1,133.50,CA WATLING STREET PRIMARY SCHO-DRY FOODS-PROVISIONS,CATERERS,GPC
WALSALL COUNCIL,HTTP://OPENDATACOMMUNITIES.ORG/ID/METROPOLITAN-DISTRICT-COUNCIL/WALSALL,30/06/2017,CHANGE & GOVERNANCE,BLAKEMORE FOODSERVICE,10/04/2017,H59620170412XVMXPJGNZ-1,135.37,CA LEIGHSWOOD PRIMARY SCHOOL-FROZEN FOODS-PROVISIONS,CATERERS,GPC
WALSALL COUNCIL,HTTP://OPENDATACOMMUNITIES.ORG/ID/METROPOLITAN-DISTRICT-COUNCIL/WALSALL,30/06/2017,CHANGE & GOVERNANCE,BLAKEMORE FOODSERVICE,10/04/2017,H59620170412YEPBWKEKZ-1,50.13,CA MOORCROFT WOOD-FROZEN FOODS-PROVISIONS,CATERERS,GPC
WALSALL COUNCIL,HTTP://OPENDATACOMMUNITIES.ORG/ID/METROPOLITAN-DISTRICT-COUNCIL/WALSALL,30/06/2017,CHILDRENS SERVICES,TRAINLINE,10/04/2017,H59620170412YKWKPQBML-1,61.20,SAFEGUARDING & FAMILY SUPPORT-OTHER-TRAVEL ALLOWANCES,PASSENGER RAILWAYS,GPC
WALSALL COUNCIL,HTTP://OPENDATACOMMUNITIES.ORG/ID/METROPOLITAN-DISTRICT-COUNCIL/WALSALL,30/06/2017,CHANGE & GOVERNANCE,BLAKEMORE FOODSERVICE,10/04/2017,H59620170412YPYQVVBOT-1,8.56,CA TOWN HALL RESTAURANT - CATE-DRY FOODS-PROVISIONS,CATERERS,GPC
WALSALL COUNCIL,HTTP://OPENDATACOMMUNITIES.ORG/ID/METROPOLITAN-DISTRICT-COUNCIL/WALSALL,30/06/2017,CHANGE & GOVERNANCE,BLAKEMORE FOODSERVICE,10/04/2017,H59620170412YPYQVVBOT-2,80.40,CA TOWN HALL RESTAURANT - CATE-DRY FOODS-PROVISIONS,CATERERS,GPC
WALSALL COUNCIL,HTTP://OPENDATACOMMUNITIES.ORG/ID/METROPOLITAN-DISTRICT-COUNCIL/WALSALL,30/06/2017,CHILDRENS SERVICES,WM MORRISON FOOD.COM,10/04/2017,H59620170412ZNKBHQGSY-1,17.04,REDRUTH ROAD-FOOD AND BEVERAGES-PROVISIONS,GROCERY STORES AND SUPERMARKETS,GPC
WALSALL COUNCIL,HTTP://OPENDATACOMMUNITIES.ORG/ID/METROPOLITAN-DISTRICT-COUNCIL/WALSALL,30/06/2017,CHILDRENS SERVICES,WM MORRISON FOOD.COM,10/04/2017,H59620170412ZNKBHQGSY-2,90.52,REDRUTH ROAD-FOOD AND BEVERAGES-PROVISIONS,GROCERY STORES AND SUPERMARKETS,GPC
WALSALL COUNCIL,HTTP://OPENDATACOMMUNITIES.ORG/ID/METROPOLITAN-DISTRICT-COUNCIL/WALSALL,30/06/2017,CHANGE & GOVERNANCE,BLAKEMORE FOODSERVICE,10/04/2017,H59620170412ZPDWCHSBO-1,199.65,CA COOPER JORDAN CE PRIMARY SC-DRY FOODS-PROVISIONS,CATERERS,GPC
WALSALL COUNCIL,HTTP://OPENDATACOMMUNITIES.ORG/ID/METROPOLITAN-DISTRICT-COUNCIL/WALSALL,30/06/2017,CHANGE & GOVERNANCE,BLAKEMORE FOODSERVICE,10/04/2017,H59620170412ZPDWCHSBO-2,123.72,CA COOPER JORDAN CE PRIMARY SC-DRY FOODS-PROVISIONS,CATERERS,GPC
WALSALL COUNCIL,HTTP://OPENDATACOMMUNITIES.ORG/ID/METROPOLITAN-DISTRICT-COUNCIL/WALSALL,30/06/2017,CHANGE & GOVERNANCE,BORSHCH LIMITED,10/04/2017,H59620170412ZXNJEEIGZ-1,365.00,WALSALL CRISIS SUPPORT SCHEME-FURNITURE & EQUIPMENT,ELECTRONIC SALES,GPC
WALSALL COUNCIL,HTTP://OPENDATACOMMUNITIES.ORG/ID/METROPOLITAN-DISTRICT-COUNCIL/WALSALL,30/06/2017,CHANGE & GOVERNANCE,BLAKEMORE FOODSERVICE,10/04/2017,H59620170412ZXVJEZKHC-1,238.92,CA BEACON PRIMARY SCHOOL-FROZEN FOODS-PROVISIONS,CATERERS,GPC
WALSALL COUNCIL,HTTP://OPENDATACOMMUNITIES.ORG/ID/METROPOLITAN-DISTRICT-COUNCIL/WALSALL,30/06/2017,CHILDRENS SERVICES,PRIMARK 690,10/04/2017,H59620170413BYMNNHVHS-1,4.00,57 LICHFIELD ROAD-RESIDENTS PERSONAL EXPENSES-AL,CLOTHING STORES,GPC
WALSALL COUNCIL,HTTP://OPENDATACOMMUNITIES.ORG/ID/METROPOLITAN-DISTRICT-COUNCIL/WALSALL,30/06/2017,CHANGE & GOVERNANCE,WELSH BROS FOODS LTD,10/04/2017,H59620170413HPNDHCQVT-1,92.11,TOWN HALL RESTAURANT BISTRO-MEAT-PROVISIONS,FREEZER AND LOCKER MEAT PROVISIONERS,GPC
WALSALL COUNCIL,HTTP://OPENDATACOMMUNITIES.ORG/ID/METROPOLITAN-DISTRICT-COUNCIL/WALSALL,30/06/2017,CHANGE & GOVERNANCE,BRITANNIA,10/04/2017,H59620170413MSPHJJSPX-1,343.50,BED & BREAKFAST PAYMENTS-HOTEL ACCOMMODATION-EMPLOYEES,"HOTELS, MOTELS, RESORTS",GPC
WALSALL COUNCIL,HTTP://OPENDATACOMMUNITIES.ORG/ID/METROPOLITAN-DISTRICT-COUNCIL/WALSALL,30/06/2017,CHANGE & GOVERNANCE,WELSH BROS FOODS LTD,10/04/2017,H59620170413OGPIPUVPD-1,79.71,CA TOWN HALL RESTAURANT - CATE-MEAT-PROVISIONS,FREEZER AND LOCKER MEAT PROVISIONERS,GPC
WALSALL COUNCIL,HTTP://OPENDATACOMMUNITIES.ORG/ID/METROPOLITAN-DISTRICT-COUNCIL/WALSALL,30/06/2017,CHANGE & GOVERNANCE,BRITANNIA,10/04/2017,H59620170413ZJPTBLJIR-1,343.50,BED & BREAKFAST PAYMENTS-HOTEL ACCOMMODATION-EMPLOYEES,"HOTELS, MOTELS, RESORTS",GPC
WALSALL COUNCIL,HTTP://OPENDATACOMMUNITIES.ORG/ID/METROPOLITAN-DISTRICT-COUNCIL/WALSALL,30/06/2017,CHANGE & GOVERNANCE,WWW.SCC.COM,10/04/2017,H59620170414NEXKVKGFZ-1,374.58,RECHARGEABLE EQUIPMENT-COMPUTER EQUIPMENT AND SUPPLIE,"COMPUTERS, COMPUTER PERIPHERAL EQUIPMENT, SOFTWARE",GPC
WALSALL COUNCIL,HTTP://OPENDATACOMMUNITIES.ORG/ID/METROPOLITAN-DISTRICT-COUNCIL/WALSALL,30/06/2017,CHANGE & GOVERNANCE,WWW.SCC.COM,10/04/2017,H59620170414URJHRXNVN-1,136.97,RECHARGEABLE EQUIPMENT-COMPUTER EQUIPMENT AND SUPPLIE,"COMPUTERS, COMPUTER PERIPHERAL EQUIPMENT, SOFTWARE",GPC
WALSALL COUNCIL,HTTP://OPENDATACOMMUNITIES.ORG/ID/METROPOLITAN-DISTRICT-COUNCIL/WALSALL,30/06/2017,CHANGE & GOVERNANCE,WWW.SCC.COM,10/04/2017,H59620170414YBEBTHWWJ-1,908.28,RECHARGEABLE EQUIPMENT-COMPUTER EQUIPMENT AND SUPPLIE,"COMPUTERS, COMPUTER PERIPHERAL EQUIPMENT, SOFTWARE",GPC
WALSALL COUNCIL,HTTP://OPENDATACOMMUNITIES.ORG/ID/METROPOLITAN-DISTRICT-COUNCIL/WALSALL,30/06/2017,CHANGE & GOVERNANCE,WWW.SCC.COM,10/04/2017,H59620170419JVQJRWGOG-1,"1,420.32",RECHARGEABLE EQUIPMENT-COMPUTER EQUIPMENT AND SUPPLIE,"COMPUTERS, COMPUTER PERIPHERAL EQUIPMENT, SOFTWARE",GPC
WALSALL COUNCIL,HTTP://OPENDATACOMMUNITIES.ORG/ID/METROPOLITAN-DISTRICT-COUNCIL/WALSALL,30/06/2017,CHANGE & GOVERNANCE,WWW.SCC.COM,10/04/2017,H59620170421ONONLJTVG-1,33.66,RECHARGEABLE EQUIPMENT-COMPUTER EQUIPMENT AND SUPPLIE,"COMPUTERS, COMPUTER PERIPHERAL EQUIPMENT, SOFTWARE",GPC
WALSALL COUNCIL,HTTP://OPENDATACOMMUNITIES.ORG/ID/METROPOLITAN-DISTRICT-COUNCIL/WALSALL,30/06/2017,ECONOMY & ENVIRONMENT,TRAVEL WEST MIDLAN,11/04/2017,H59620170413AGJPVDBKC-1,54.50,YEI (IMPACT) PROGRAMME-MISCELLANEOUS SUPPLIES,BUS LINES,GPC
WALSALL COUNCIL,HTTP://OPENDATACOMMUNITIES.ORG/ID/METROPOLITAN-DISTRICT-COUNCIL/WALSALL,30/06/2017,ECONOMY & ENVIRONMENT,TRAVEL WEST MIDLAN,11/04/2017,H59620170413AGJPVDBKC-2,54.50,YEI ESF FUNDING-MISCELLANEOUS SUPPLIES,BUS LINES,GPC
WALSALL COUNCIL,HTTP://OPENDATACOMMUNITIES.ORG/ID/METROPOLITAN-DISTRICT-COUNCIL/WALSALL,30/06/2017,ECONOMY & ENVIRONMENT,SUPPLIES TEAM,11/04/2017,H59620170413BDRXOKNPD-1,1.44,LIBRARY OPERATIONS CENTRAL-STATIONERY & GENERAL SUPPLIES-,"OFFICE, SCHOOL SUPPLY, AND STATIONERY STORES",GPC
WALSALL COUNCIL,HTTP://OPENDATACOMMUNITIES.ORG/ID/METROPOLITAN-DISTRICT-COUNCIL/WALSALL,30/06/2017,CHANGE & GOVERNANCE,CRAZY HOUSE FURNITURE,11/04/2017,H59620170413BMAKRGEKS-1,95.00,WALSALL CRISIS SUPPORT SCHEME-CRISIS SUPPORT PAYMENTS,"EQUIPMENT, FURNITURE, AND HOME FURNISHINGS STORES ",GPC
WALSALL COUNCIL,HTTP://OPENDATACOMMUNITIES.ORG/ID/METROPOLITAN-DISTRICT-COUNCIL/WALSALL,30/06/2017,CHANGE & GOVERNANCE,CRAZY HOUSE FURNITURE,11/04/2017,H59620170413BTOEQQLQE-1,95.00,WALSALL CRISIS SUPPORT SCHEME-FURNITURE & EQUIPMENT,"EQUIPMENT, FURNITURE, AND HOME FURNISHINGS STORES ",GPC
WALSALL COUNCIL,HTTP://OPENDATACOMMUNITIES.ORG/ID/METROPOLITAN-DISTRICT-COUNCIL/WALSALL,30/06/2017,CHILDRENS SERVICES,WILKO RETAIL LIMIT,11/04/2017,H59620170413BVCMDKPAF-1,-100.39,SPINDLETREE-RESIDENTS PERSONAL EXPENSES-AL,HOUSEHOLD APPLIANCE STORES,GPC
WALSALL COUNCIL,HTTP://OPENDATACOMMUNITIES.ORG/ID/METROPOLITAN-DISTRICT-COUNCIL/WALSALL,30/06/2017,ECONOMY & ENVIRONMENT,MARKS&SPENCER PLC SACA,11/04/2017,H59620170413CEFUWPVGQ-1,18.89,NAG - TEMPORARY EXHIBITIONS-MISC DAIRY PRODUCTS-PROVISIONS,GROCERY STORES AND SUPERMARKETS,GPC
WALSALL COUNCIL,HTTP://OPENDATACOMMUNITIES.ORG/ID/METROPOLITAN-DISTRICT-COUNCIL/WALSALL,30/06/2017,ECONOMY & ENVIRONMENT,SUPPLIES TEAM,11/04/2017,H59620170413CTQYTFMZV-1,13.52,CENTRALISED STATIONARY-STATIONERY & GENERAL SUPPLIES-,"OFFICE, SCHOOL SUPPLY, AND STATIONERY STORES",GPC
WALSALL COUNCIL,HTTP://OPENDATACOMMUNITIES.ORG/ID/METROPOLITAN-DISTRICT-COUNCIL/WALSALL,30/06/2017,CHILDRENS SERVICES,WWW.LIGHTCINEMAS.C,11/04/2017,H59620170413FOBQJPVWV-1,50.00,SPINDLETREE-RESIDENTS PERSONAL EXPENSES-AL,"THEATRICAL PRODUCERS, TIC",GPC
WALSALL COUNCIL,HTTP://OPENDATACOMMUNITIES.ORG/ID/METROPOLITAN-DISTRICT-COUNCIL/WALSALL,30/06/2017,ECONOMY & ENVIRONMENT,TRAVEL WEST MIDLAN,11/04/2017,H59620170413GBEYLUZUC-1,110.00,YEI (IMPACT) PROGRAMME-MISCELLANEOUS SUPPLIES,BUS LINES,GPC
WALSALL COUNCIL,HTTP://OPENDATACOMMUNITIES.ORG/ID/METROPOLITAN-DISTRICT-COUNCIL/WALSALL,30/06/2017,ECONOMY & ENVIRONMENT,TRAVEL WEST MIDLAN,11/04/2017,H59620170413GBEYLUZUC-2,110.00,YEI ESF FUNDING-MISCELLANEOUS SUPPLIES,BUS LINES,GPC
WALSALL COUNCIL,HTTP://OPENDATACOMMUNITIES.ORG/ID/METROPOLITAN-DISTRICT-COUNCIL/WALSALL,30/06/2017,CHILDRENS SERVICES,SMYTHS TOYS UK LTD,11/04/2017,H59620170413GKFVYVCSU-1,27.97,BIRCHILLS CHILDCARE SERVICES-TOYS & GAMES-MATERIALS,"GAME, TOY, AND HOBBY SHOPS",GPC
WALSALL COUNCIL,HTTP://OPENDATACOMMUNITIES.ORG/ID/METROPOLITAN-DISTRICT-COUNCIL/WALSALL,30/06/2017,CHILDRENS SERVICES,REGISTRATION SERVICES,11/04/2017,H59620170413GPGVGQMXD-1,34.00,LOOKED AFTER CHILDRENS SOCIAL -MISC FEES AND EXPENSES,OTHER RECREATION SERVICES,GPC
WALSALL COUNCIL,HTTP://OPENDATACOMMUNITIES.ORG/ID/METROPOLITAN-DISTRICT-COUNCIL/WALSALL,30/06/2017,CHILDRENS SERVICES,ASDA STORES,11/04/2017,H59620170413GRETINFOR-1,14.60,LOCALITY FAMILY SUPPORT-WEST-FOOD AND BEVERAGES-PROVISIONS,GROCERY STORES AND SUPERMARKETS,GPC
WALSALL COUNCIL,HTTP://OPENDATACOMMUNITIES.ORG/ID/METROPOLITAN-DISTRICT-COUNCIL/WALSALL,30/06/2017,ECONOMY & ENVIRONMENT,WWW.AQUARTEROF.COM,11/04/2017,H59620170413GSYHCFSTK-1,-5.89,EXHIBITIONS - SPECIAL PROJECTS-MISC DAIRY PRODUCTS-PROVISIONS,"CANDY, NUT AND CONFECTIONERY STORES",GPC
WALSALL COUNCIL,HTTP://OPENDATACOMMUNITIES.ORG/ID/METROPOLITAN-DISTRICT-COUNCIL/WALSALL,30/06/2017,ECONOMY & ENVIRONMENT,WWW.BAX-SHOP.CO.UK,11/04/2017,H59620170413HJUASTTGU-1,72.95,TECHNICAL/ART HANDLING-GENERAL MATERIALS,ELECTRONIC SALES,GPC
WALSALL COUNCIL,HTTP://OPENDATACOMMUNITIES.ORG/ID/METROPOLITAN-DISTRICT-COUNCIL/WALSALL,30/06/2017,CHILDRENS SERVICES,GRO HM PASSPORT OFFICE,11/04/2017,H59620170413HSKCDEDGU-1,9.25,LOOKED AFTER CHILDRENS SOCIAL -MISC FEES AND EXPENSES,GOVERNMENT SERVICES,GPC
WALSALL COUNCIL,HTTP://OPENDATACOMMUNITIES.ORG/ID/METROPOLITAN-DISTRICT-COUNCIL/WALSALL,30/06/2017,CHILDRENS SERVICES,AMAZON UK MARKETPLACE,11/04/2017,H59620170413HSVSURPSO-1,17.70,PARENTING TEAM-MISCELLANEOUS SUPPLIES,MISCELLANEOUS AND SPECIALTY RETAIL STORES,GPC
WALSALL COUNCIL,HTTP://OPENDATACOMMUNITIES.ORG/ID/METROPOLITAN-DISTRICT-COUNCIL/WALSALL,30/06/2017,ECONOMY & ENVIRONMENT,TRAINLINE,11/04/2017,H59620170413HZIHKUTGJ-1,57.73,NEW ART GALLERY - ADMIN-OFFICER/STAFF-PUBLIC TRANSPORT,PASSENGER RAILWAYS,GPC
WALSALL COUNCIL,HTTP://OPENDATACOMMUNITIES.ORG/ID/METROPOLITAN-DISTRICT-COUNCIL/WALSALL,30/06/2017,ECONOMY & ENVIRONMENT,TESCO DIRECT,11/04/2017,H59620170413IXXWSAADS-1,40.00,YEI (IMPACT) PROGRAMME-MISCELLANEOUS SUPPLIES,MISCELLANEOUS AND SPECIALTY RETAIL STORES,GPC
WALSALL COUNCIL,HTTP://OPENDATACOMMUNITIES.ORG/ID/METROPOLITAN-DISTRICT-COUNCIL/WALSALL,30/06/2017,ECONOMY & ENVIRONMENT,TESCO DIRECT,11/04/2017,H59620170413IXXWSAADS-2,40.00,YEI ESF FUNDING-MISCELLANEOUS SUPPLIES,MISCELLANEOUS AND SPECIALTY RETAIL STORES,GPC
WALSALL COUNCIL,HTTP://OPENDATACOMMUNITIES.ORG/ID/METROPOLITAN-DISTRICT-COUNCIL/WALSALL,30/06/2017,CHANGE & GOVERNANCE,TESCO STORES 6161,11/04/2017,H59620170413IYXHPARMT-1,50.00,WALSALL CRISIS SUPPORT SCHEME-FOOD AND BEVERAGES-PROVISIONS,GROCERY STORES AND SUPERMARKETS,GPC
WALSALL COUNCIL,HTTP://OPENDATACOMMUNITIES.ORG/ID/METROPOLITAN-DISTRICT-COUNCIL/WALSALL,30/06/2017,CHILDRENS SERVICES,TESCO STORES 6161,11/04/2017,H59620170413JOIISWUIF-1,42.09,SPINDLETREE-FOOD AND BEVERAGES-PROVISIONS,GROCERY STORES AND SUPERMARKETS,GPC
WALSALL COUNCIL,HTTP://OPENDATACOMMUNITIES.ORG/ID/METROPOLITAN-DISTRICT-COUNCIL/WALSALL,30/06/2017,ECONOMY & ENVIRONMENT,SUPPLIES TEAM,11/04/2017,H59620170413JPENTYUHN-1,56.59,NEW ART GALLERY - ADMIN-STATIONERY & GENERAL SUPPLIES-,"OFFICE, SCHOOL SUPPLY, AND STATIONERY STORES",GPC
WALSALL COUNCIL,HTTP://OPENDATACOMMUNITIES.ORG/ID/METROPOLITAN-DISTRICT-COUNCIL/WALSALL,30/06/2017,CHANGE & GOVERNANCE,CRAZY HOUSE FURNITURE,11/04/2017,H59620170413JUNRWWVFO-1,165.00,WALSALL CRISIS SUPPORT SCHEME-CRISIS SUPPORT PAYMENTS,"EQUIPMENT, FURNITURE, AND HOME FURNISHINGS STORES ",GPC
WALSALL COUNCIL,HTTP://OPENDATACOMMUNITIES.ORG/ID/METROPOLITAN-DISTRICT-COUNCIL/WALSALL,30/06/2017,CHILDRENS SERVICES,WWW.GROUPON.CO.UK,11/04/2017,H59620170413KBFMDVMRW-1,80.00,SPINDLETREE-RESIDENTS PERSONAL EXPENSES-AL,"SHOPPING CLUBS, SERVICES",GPC
WALSALL COUNCIL,HTTP://OPENDATACOMMUNITIES.ORG/ID/METROPOLITAN-DISTRICT-COUNCIL/WALSALL,30/06/2017,CHILDRENS SERVICES,WWW.GROUPON.CO.UK,11/04/2017,H59620170413KHYYFXDFI-1,21.00,SPINDLETREE-RESIDENTS PERSONAL EXPENSES-AL,"SHOPPING CLUBS, SERVICES",GPC
WALSALL COUNCIL,HTTP://OPENDATACOMMUNITIES.ORG/ID/METROPOLITAN-DISTRICT-COUNCIL/WALSALL,30/06/2017,ECONOMY & ENVIRONMENT,POUNDLAND LTD 1427,11/04/2017,H59620170413LGDNSKZDU-1,7.00,LEATHER MUSEUM-GENERAL MATERIALS,DISCOUNT STORES,GPC
WALSALL COUNCIL,HTTP://OPENDATACOMMUNITIES.ORG/ID/METROPOLITAN-DISTRICT-COUNCIL/WALSALL,30/06/2017,CHILDRENS SERVICES,ASDA SUPERSTORE,11/04/2017,H59620170413LMCDRVQXB-1,32.17,SPINDLETREE-FOOD AND BEVERAGES-PROVISIONS,GROCERY STORES AND SUPERMARKETS,GPC
WALSALL COUNCIL,HTTP://OPENDATACOMMUNITIES.ORG/ID/METROPOLITAN-DISTRICT-COUNCIL/WALSALL,30/06/2017,CHILDRENS SERVICES,ASDA SUPERSTORE,11/04/2017,H59620170413LMCDRVQXB-2,9.60,SPINDLETREE-FOOD AND BEVERAGES-PROVISIONS,GROCERY STORES AND SUPERMARKETS,GPC
WALSALL COUNCIL,HTTP://OPENDATACOMMUNITIES.ORG/ID/METROPOLITAN-DISTRICT-COUNCIL/WALSALL,30/06/2017,ECONOMY & ENVIRONMENT,BOOTS.COM,11/04/2017,H59620170413LVENZRHPD-1,21.84,EXHIBITIONS - SPECIAL PROJECTS-GENERAL MATERIALS,"DRUG STORES, PHARMACIES",GPC
WALSALL COUNCIL,HTTP://OPENDATACOMMUNITIES.ORG/ID/METROPOLITAN-DISTRICT-COUNCIL/WALSALL,30/06/2017,ECONOMY & ENVIRONMENT,TRAINLINE,11/04/2017,H59620170413LXRPSWHRS-1,57.68,EXHIBITIONS - SPECIAL PROJECTS-OTHER/VOLUNTEERS-PUBLIC TRANSP,PASSENGER RAILWAYS,GPC
WALSALL COUNCIL,HTTP://OPENDATACOMMUNITIES.ORG/ID/METROPOLITAN-DISTRICT-COUNCIL/WALSALL,30/06/2017,CHILDRENS SERVICES,HOME BARGAINS,11/04/2017,H59620170413MBEEWWOOO-1,16.05,BLAKENALL CHILDCARE SERVICES-EVENTS,HARDWARE STORES,GPC
WALSALL COUNCIL,HTTP://OPENDATACOMMUNITIES.ORG/ID/METROPOLITAN-DISTRICT-COUNCIL/WALSALL,30/06/2017,CHILDRENS SERVICES,HOME BARGAINS,11/04/2017,H59620170413MBEEWWOOO-2,3.21,BLAKENALL CHILDCARE SERVICES-EVENTS,HARDWARE STORES,GPC
WALSALL COUNCIL,HTTP://OPENDATACOMMUNITIES.ORG/ID/METROPOLITAN-DISTRICT-COUNCIL/WALSALL,30/06/2017,ECONOMY & ENVIRONMENT,LATHAMS LTD,11/04/2017,H59620170413MBVBUPMXW-1,301.20,NAG - TEMPORARY EXHIBITIONS-GENERAL MATERIALS,OTHER BUSINESS SERVICES,GPC
WALSALL COUNCIL,HTTP://OPENDATACOMMUNITIES.ORG/ID/METROPOLITAN-DISTRICT-COUNCIL/WALSALL,30/06/2017,CHILDRENS SERVICES,AMAZON UK MARKETPLACE,11/04/2017,H59620170413NDLEQNNEG-1,43.72,PARENTING TEAM-MISCELLANEOUS SUPPLIES,MISCELLANEOUS AND SPECIALTY RETAIL STORES,GPC
WALSALL COUNCIL,HTTP://OPENDATACOMMUNITIES.ORG/ID/METROPOLITAN-DISTRICT-COUNCIL/WALSALL,30/06/2017,CHANGE & GOVERNANCE,CRAZY HOUSE FURNITURE,11/04/2017,H59620170413NRPRFEXWP-1,60.00,WALSALL CRISIS SUPPORT SCHEME-FURNITURE & EQUIPMENT,"EQUIPMENT, FURNITURE, AND HOME FURNISHINGS STORES ",GPC
WALSALL COUNCIL,HTTP://OPENDATACOMMUNITIES.ORG/ID/METROPOLITAN-DISTRICT-COUNCIL/WALSALL,30/06/2017,CHANGE & GOVERNANCE,CRAZY HOUSE FURNITURE,11/04/2017,H59620170413NVRWBHSNP-1,100.00,WALSALL CRISIS SUPPORT SCHEME-FURNITURE & EQUIPMENT,"EQUIPMENT, FURNITURE, AND HOME FURNISHINGS STORES ",GPC
WALSALL COUNCIL,HTTP://OPENDATACOMMUNITIES.ORG/ID/METROPOLITAN-DISTRICT-COUNCIL/WALSALL,30/06/2017,ECONOMY & ENVIRONMENT,AMAZON UK RETAIL,11/04/2017,H59620170413NXXUBBJSK-1,23.67,EXHIBITIONS - SPECIAL PROJECTS-LIBRARY BOOKS,OTHER DIRECT MARKETING-OTHER DIRECT MARKETERS,GPC
WALSALL COUNCIL,HTTP://OPENDATACOMMUNITIES.ORG/ID/METROPOLITAN-DISTRICT-COUNCIL/WALSALL,30/06/2017,ECONOMY & ENVIRONMENT,EXCALIBUR HYGIENE LTD,11/04/2017,H59620170413OFMVFHXHJ-1,41.94,FLEET-GENERAL MATERIALS,"CLEANING AND MAINTENANCE, JANITORIAL SERVICES",GPC
WALSALL COUNCIL,HTTP://OPENDATACOMMUNITIES.ORG/ID/METROPOLITAN-DISTRICT-COUNCIL/WALSALL,30/06/2017,ECONOMY & ENVIRONMENT,SUPPLIES TEAM,11/04/2017,H59620170413OVLPEYJNF-1,1.52,CENTRALISED STATIONARY-STATIONERY & GENERAL SUPPLIES-,"OFFICE, SCHOOL SUPPLY, AND STATIONERY STORES",GPC
WALSALL COUNCIL,HTTP://OPENDATACOMMUNITIES.ORG/ID/METROPOLITAN-DISTRICT-COUNCIL/WALSALL,30/06/2017,CHILDRENS SERVICES,SMYTHS TOYS UK LTD,11/04/2017,H59620170413PAMLDMLLA-1,17.94,BIRCHILLS CHILDCARE SERVICES-TOYS & GAMES-MATERIALS,"GAME, TOY, AND HOBBY SHOPS",GPC
WALSALL COUNCIL,HTTP://OPENDATACOMMUNITIES.ORG/ID/METROPOLITAN-DISTRICT-COUNCIL/WALSALL,30/06/2017,CHANGE & GOVERNANCE,MCDONALDS,11/04/2017,H59620170413PFUPBGHOE-1,28.08,ACCOMMODATION SERVICES MANAGEM-SUBSISTENCE OFFICERS-EXPENSES,"EATING PLACES, RESTAURANTS",GPC
WALSALL COUNCIL,HTTP://OPENDATACOMMUNITIES.ORG/ID/METROPOLITAN-DISTRICT-COUNCIL/WALSALL,30/06/2017,CHANGE & GOVERNANCE,MCDONALDS,11/04/2017,H59620170413PFUPBGHOE-2,6.03,ACCOMMODATION SERVICES MANAGEM-SUBSISTENCE OFFICERS-EXPENSES,"EATING PLACES, RESTAURANTS",GPC
WALSALL COUNCIL,HTTP://OPENDATACOMMUNITIES.ORG/ID/METROPOLITAN-DISTRICT-COUNCIL/WALSALL,30/06/2017,CHANGE & GOVERNANCE,TRAINLINE,11/04/2017,H59620170413PUDKMRDWN-1,10.35,LEARNING & MANAGEMENT DEVELOPM-OFFICER/STAFF-PUBLIC TRANSPORT,PASSENGER RAILWAYS,GPC
WALSALL COUNCIL,HTTP://OPENDATACOMMUNITIES.ORG/ID/METROPOLITAN-DISTRICT-COUNCIL/WALSALL,30/06/2017,CHANGE & GOVERNANCE,CRAZY HOUSE FURNITURE,11/04/2017,H59620170413PULGTDDUG-1,125.00,WALSALL CRISIS SUPPORT SCHEME-CRISIS SUPPORT PAYMENTS,"EQUIPMENT, FURNITURE, AND HOME FURNISHINGS STORES ",GPC
WALSALL COUNCIL,HTTP://OPENDATACOMMUNITIES.ORG/ID/METROPOLITAN-DISTRICT-COUNCIL/WALSALL,30/06/2017,CHILDRENS SERVICES,WILKO RETAIL LIMIT,11/04/2017,H59620170413QECWETWTY-1,100.39,SPINDLETREE-RESIDENTS PERSONAL EXPENSES-AL,HOUSEHOLD APPLIANCE STORES,GPC
WALSALL COUNCIL,HTTP://OPENDATACOMMUNITIES.ORG/ID/METROPOLITAN-DISTRICT-COUNCIL/WALSALL,30/06/2017,CHILDRENS SERVICES,WATERWORLD 2000 LIMITED,11/04/2017,H59620170413QWNCEOYKL-1,37.68,57 LICHFIELD ROAD-RESIDENTS PERSONAL EXPENSES-AL,OTHER RECREATION SERVICES,GPC
WALSALL COUNCIL,HTTP://OPENDATACOMMUNITIES.ORG/ID/METROPOLITAN-DISTRICT-COUNCIL/WALSALL,30/06/2017,CHANGE & GOVERNANCE,SUPPLIES TEAM,11/04/2017,H59620170413QXKPTUAXZ-1,0.43,BUSINESS SUPPORT - POST ROOM-GENERAL EXPENSES-OFFICE EXP,"OFFICE, SCHOOL SUPPLY, AND STATIONERY STORES",GPC
WALSALL COUNCIL,HTTP://OPENDATACOMMUNITIES.ORG/ID/METROPOLITAN-DISTRICT-COUNCIL/WALSALL,30/06/2017,CHANGE & GOVERNANCE,CHICKEN JOES LTD,11/04/2017,H59620170413QZFOFZMOI-1,71.61,CA WATLING STREET PRIMARY SCHO-FROZEN FOODS-PROVISIONS,CATERERS,GPC
WALSALL COUNCIL,HTTP://OPENDATACOMMUNITIES.ORG/ID/METROPOLITAN-DISTRICT-COUNCIL/WALSALL,30/06/2017,CHANGE & GOVERNANCE,CRAZY HOUSE FURNITURE,11/04/2017,H59620170413RVROVMZVH-1,395.00,WALSALL CRISIS SUPPORT SCHEME-CRISIS SUPPORT PAYMENTS,"EQUIPMENT, FURNITURE, AND HOME FURNISHINGS STORES ",GPC
WALSALL COUNCIL,HTTP://OPENDATACOMMUNITIES.ORG/ID/METROPOLITAN-DISTRICT-COUNCIL/WALSALL,30/06/2017,CHANGE & GOVERNANCE,CHICKEN JOES LTD,11/04/2017,H59620170413RYPEZFBBN-1,54.93,CA BEACON PRIMARY SCHOOL-FROZEN FOODS-PROVISIONS,CATERERS,GPC
WALSALL COUNCIL,HTTP://OPENDATACOMMUNITIES.ORG/ID/METROPOLITAN-DISTRICT-COUNCIL/WALSALL,30/06/2017,CHANGE & GOVERNANCE,CRAZY HOUSE FURNITURE,11/04/2017,H59620170413THJUHRRXD-1,195.00,WALSALL CRISIS SUPPORT SCHEME-FURNITURE & EQUIPMENT,"EQUIPMENT, FURNITURE, AND HOME FURNISHINGS STORES ",GPC
WALSALL COUNCIL,HTTP://OPENDATACOMMUNITIES.ORG/ID/METROPOLITAN-DISTRICT-COUNCIL/WALSALL,30/06/2017,CHILDRENS SERVICES,W M MORRISONS.COM,11/04/2017,H59620170413TWNHHGFBT-1,57.42,BLUEBELLS-FOOD AND BEVERAGES-PROVISIONS,GROCERY STORES AND SUPERMARKETS,GPC
WALSALL COUNCIL,HTTP://OPENDATACOMMUNITIES.ORG/ID/METROPOLITAN-DISTRICT-COUNCIL/WALSALL,30/06/2017,CHILDRENS SERVICES,W M MORRISONS.COM,11/04/2017,H59620170413TWNHHGFBT-2,75.35,BLUEBELLS-FOOD AND BEVERAGES-PROVISIONS,GROCERY STORES AND SUPERMARKETS,GPC
WALSALL COUNCIL,HTTP://OPENDATACOMMUNITIES.ORG/ID/METROPOLITAN-DISTRICT-COUNCIL/WALSALL,30/06/2017,CHILDRENS SERVICES,AMAZON UK MARKETPLACE,11/04/2017,H59620170413WDPUFNLGP-1,40.45,PARENTING TEAM-MISCELLANEOUS SUPPLIES,MISCELLANEOUS AND SPECIALTY RETAIL STORES,GPC
WALSALL COUNCIL,HTTP://OPENDATACOMMUNITIES.ORG/ID/METROPOLITAN-DISTRICT-COUNCIL/WALSALL,30/06/2017,0,TRITON SHOWERS,11/04/2017,H59620170413WLQLNNWTT-1,110.95,CFR 802 SAFE WATER SUPPLIES-SITE WORKS MAIN CONTRACTORS,HARDWARE EQUIPMENT AND SUPPLIES,GPC
WALSALL COUNCIL,HTTP://OPENDATACOMMUNITIES.ORG/ID/METROPOLITAN-DISTRICT-COUNCIL/WALSALL,30/06/2017,CHILDRENS SERVICES,SUPPLIES TEAM,11/04/2017,H59620170413WNHIZBSZP-1,71.04,SEN ASSESSMENT-STATIONERY & GENERAL SUPPLIES-,"OFFICE, SCHOOL SUPPLY, AND STATIONERY STORES",GPC
WALSALL COUNCIL,HTTP://OPENDATACOMMUNITIES.ORG/ID/METROPOLITAN-DISTRICT-COUNCIL/WALSALL,30/06/2017,CHILDRENS SERVICES,ASDA STORES,11/04/2017,H59620170413XWKVKLPXU-1,19.97,LOCALITY FAMILY SUPPORT-WEST-FOOD AND BEVERAGES-PROVISIONS,GROCERY STORES AND SUPERMARKETS,GPC
WALSALL COUNCIL,HTTP://OPENDATACOMMUNITIES.ORG/ID/METROPOLITAN-DISTRICT-COUNCIL/WALSALL,30/06/2017,CHILDRENS SERVICES,ASDA STORES,11/04/2017,H59620170413XWKVKLPXU-2,3.00,LOCALITY FAMILY SUPPORT-WEST-FOOD AND BEVERAGES-PROVISIONS,GROCERY STORES AND SUPERMARKETS,GPC
WALSALL COUNCIL,HTTP://OPENDATACOMMUNITIES.ORG/ID/METROPOLITAN-DISTRICT-COUNCIL/WALSALL,30/06/2017,CHILDRENS SERVICES,WILKO RETAIL LIMIT,11/04/2017,H59620170413YHMMQHHLJ-1,100.39,SPINDLETREE-RESIDENTS PERSONAL EXPENSES-AL,HOUSEHOLD APPLIANCE STORES,GPC
WALSALL COUNCIL,HTTP://OPENDATACOMMUNITIES.ORG/ID/METROPOLITAN-DISTRICT-COUNCIL/WALSALL,30/06/2017,CHILDRENS SERVICES,ASDA SUPERSTORE,11/04/2017,H59620170413YKYDQLFBY-1,5.73,REDRUTH ROAD-FOOD AND BEVERAGES-PROVISIONS,GROCERY STORES AND SUPERMARKETS,GPC
WALSALL COUNCIL,HTTP://OPENDATACOMMUNITIES.ORG/ID/METROPOLITAN-DISTRICT-COUNCIL/WALSALL,30/06/2017,CHILDRENS SERVICES,ASDA SUPERSTORE,11/04/2017,H59620170413YKYDQLFBY-2,39.29,REDRUTH ROAD-FOOD AND BEVERAGES-PROVISIONS,GROCERY STORES AND SUPERMARKETS,GPC
WALSALL COUNCIL,HTTP://OPENDATACOMMUNITIES.ORG/ID/METROPOLITAN-DISTRICT-COUNCIL/WALSALL,30/06/2017,CHILDRENS SERVICES,FARMFOODS- ERDINGT,11/04/2017,H59620170414IQLWRKQHM-1,23.25,SPINDLETREE-FOOD AND BEVERAGES-PROVISIONS,GROCERY STORES AND SUPERMARKETS,GPC
WALSALL COUNCIL,HTTP://OPENDATACOMMUNITIES.ORG/ID/METROPOLITAN-DISTRICT-COUNCIL/WALSALL,30/06/2017,ECONOMY & ENVIRONMENT,AMAZON UK RETAIL AMAZON.C,11/04/2017,H59620170414IYJMMYEWC-1,18.47,EXHIBITIONS - SPECIAL PROJECTS-LIBRARY BOOKS,MISCELLANEOUS AND SPECIALTY RETAIL STORES,GPC
WALSALL COUNCIL,HTTP://OPENDATACOMMUNITIES.ORG/ID/METROPOLITAN-DISTRICT-COUNCIL/WALSALL,30/06/2017,CHANGE & GOVERNANCE,WWW.SCC.COM,11/04/2017,H59620170414KMUEFEHYF-1,930.60,RECHARGEABLE EQUIPMENT-COMPUTER EQUIPMENT AND SUPPLIE,"COMPUTERS, COMPUTER PERIPHERAL EQUIPMENT, SOFTWARE",GPC
WALSALL COUNCIL,HTTP://OPENDATACOMMUNITIES.ORG/ID/METROPOLITAN-DISTRICT-COUNCIL/WALSALL,30/06/2017,ECONOMY & ENVIRONMENT,WP-PAKATAK LTD,11/04/2017,H59620170414RNPYPXCOK-1,177.49,RESOURCE MANAGEMENT-OTHER EXPENSES-EXPENSES,ART DEALERS AND GALLERIES,GPC
WALSALL COUNCIL,HTTP://OPENDATACOMMUNITIES.ORG/ID/METROPOLITAN-DISTRICT-COUNCIL/WALSALL,30/06/2017,CHANGE & GOVERNANCE,WWW.SCC.COM,11/04/2017,H59620170419CVKHARLQB-1,43.98,RECHARGEABLE EQUIPMENT-COMPUTER EQUIPMENT AND SUPPLIE,"COMPUTERS, COMPUTER PERIPHERAL EQUIPMENT, SOFTWARE",GPC
WALSALL COUNCIL,HTTP://OPENDATACOMMUNITIES.ORG/ID/METROPOLITAN-DISTRICT-COUNCIL/WALSALL,30/06/2017,CHANGE & GOVERNANCE,WWW.SCC.COM,11/04/2017,H59620170419TZZCENCRN-1,476.69,RECHARGEABLE EQUIPMENT-COMPUTER EQUIPMENT AND SUPPLIE,"COMPUTERS, COMPUTER PERIPHERAL EQUIPMENT, SOFTWARE",GPC
WALSALL COUNCIL,HTTP://OPENDATACOMMUNITIES.ORG/ID/METROPOLITAN-DISTRICT-COUNCIL/WALSALL,30/06/2017,CHILDRENS SERVICES,WM MORRISONS,12/04/2017,H59620170414BACHWJYCN-1,4.50,57 LICHFIELD ROAD-FOOD AND BEVERAGES-PROVISIONS,GROCERY STORES AND SUPERMARKETS,GPC
WALSALL COUNCIL,HTTP://OPENDATACOMMUNITIES.ORG/ID/METROPOLITAN-DISTRICT-COUNCIL/WALSALL,30/06/2017,CHILDRENS SERVICES,WM MORRISONS,12/04/2017,H59620170414BACHWJYCN-2,20.11,57 LICHFIELD ROAD-FOOD AND BEVERAGES-PROVISIONS,GROCERY STORES AND SUPERMARKETS,GPC
WALSALL COUNCIL,HTTP://OPENDATACOMMUNITIES.ORG/ID/METROPOLITAN-DISTRICT-COUNCIL/WALSALL,30/06/2017,ECONOMY & ENVIRONMENT,WWW.REALLYUSEFULSTORAG,12/04/2017,H59620170414BDQYWRRSB-1,87.57,NVQ ASSESSOR-GENERAL MATERIALS,OTHER INDUSTRIAL SUPPLIES,GPC
WALSALL COUNCIL,HTTP://OPENDATACOMMUNITIES.ORG/ID/METROPOLITAN-DISTRICT-COUNCIL/WALSALL,30/06/2017,ECONOMY & ENVIRONMENT,TESCO DIRECT,12/04/2017,H59620170414BLVEBDJSP-1,15.50,YEI (IMPACT) PROGRAMME-MISCELLANEOUS SUPPLIES,MISCELLANEOUS AND SPECIALTY RETAIL STORES,GPC
WALSALL COUNCIL,HTTP://OPENDATACOMMUNITIES.ORG/ID/METROPOLITAN-DISTRICT-COUNCIL/WALSALL,30/06/2017,ECONOMY & ENVIRONMENT,TESCO DIRECT,12/04/2017,H59620170414BLVEBDJSP-2,15.50,YEI ESF FUNDING-MISCELLANEOUS SUPPLIES,MISCELLANEOUS AND SPECIALTY RETAIL STORES,GPC
WALSALL COUNCIL,HTTP://OPENDATACOMMUNITIES.ORG/ID/METROPOLITAN-DISTRICT-COUNCIL/WALSALL,30/06/2017,CHANGE & GOVERNANCE,JOHAL DAIRIES LTD,12/04/2017,H59620170414BNLTUBTAV-1,39.15,CA ST GILES C.E. PRIMARY SCHOO-MISC DAIRY PRODUCTS-PROVISIONS,OTHER NONDURABLE GOODS,GPC
WALSALL COUNCIL,HTTP://OPENDATACOMMUNITIES.ORG/ID/METROPOLITAN-DISTRICT-COUNCIL/WALSALL,30/06/2017,CHILDRENS SERVICES,W M MORRISONS.COM,12/04/2017,H59620170414BQACKZHFL-1,7.00,57 LICHFIELD ROAD-FOOD AND BEVERAGES-PROVISIONS,GROCERY STORES AND SUPERMARKETS,GPC
WALSALL COUNCIL,HTTP://OPENDATACOMMUNITIES.ORG/ID/METROPOLITAN-DISTRICT-COUNCIL/WALSALL,30/06/2017,CHILDRENS SERVICES,ASDA STORES,12/04/2017,H59620170414CIMDPCQGH-1,2.25,LOCALITY FAMILY SUPPORT-WEST-FOOD AND BEVERAGES-PROVISIONS,GROCERY STORES AND SUPERMARKETS,GPC
WALSALL COUNCIL,HTTP://OPENDATACOMMUNITIES.ORG/ID/METROPOLITAN-DISTRICT-COUNCIL/WALSALL,30/06/2017,CHILDRENS SERVICES,ASDA STORES,12/04/2017,H59620170414CIMDPCQGH-2,7.72,LOCALITY FAMILY SUPPORT-WEST-FOOD AND BEVERAGES-PROVISIONS,GROCERY STORES AND SUPERMARKETS,GPC
WALSALL COUNCIL,HTTP://OPENDATACOMMUNITIES.ORG/ID/METROPOLITAN-DISTRICT-COUNCIL/WALSALL,30/06/2017,CHANGE & GOVERNANCE,JOHAL DAIRIES LTD,12/04/2017,H59620170414CMBRVFLKF-1,16.80,CA BUSILL JONES PRIMARY SCHOOL-MISC DAIRY PRODUCTS-PROVISIONS,OTHER NONDURABLE GOODS,GPC
WALSALL COUNCIL,HTTP://OPENDATACOMMUNITIES.ORG/ID/METROPOLITAN-DISTRICT-COUNCIL/WALSALL,30/06/2017,CHILDRENS SERVICES,MATALAN,12/04/2017,H59620170414CQBNOOLMG-1,59.98,SPINDLETREE-RESIDENTS PERSONAL EXPENSES-AL,MENS AND WOMENS CLOTHING STORES,GPC
WALSALL COUNCIL,HTTP://OPENDATACOMMUNITIES.ORG/ID/METROPOLITAN-DISTRICT-COUNCIL/WALSALL,30/06/2017,CHANGE & GOVERNANCE,BLOXWICH HARDWARE,12/04/2017,H59620170414DCDTRXYKS-1,5.00,"WALSALL CRISIS SUPPORT SCHEME-CROCKERY,HARDWARE & DISPOSABLE",HARDWARE STORES,GPC
WALSALL COUNCIL,HTTP://OPENDATACOMMUNITIES.ORG/ID/METROPOLITAN-DISTRICT-COUNCIL/WALSALL,30/06/2017,CHANGE & GOVERNANCE,JOHAL DAIRIES LTD,12/04/2017,H59620170414DFNBBRSDO-1,6.56,CA POOL HAYES PRIMARY SCHOOL-MISC DAIRY PRODUCTS-PROVISIONS,OTHER NONDURABLE GOODS,GPC
WALSALL COUNCIL,HTTP://OPENDATACOMMUNITIES.ORG/ID/METROPOLITAN-DISTRICT-COUNCIL/WALSALL,30/06/2017,CHILDRENS SERVICES,TRAVEL WEST MIDLAN,12/04/2017,H59620170414EIUTWEAPX-1,88.00,LOOKED AFTER CHILDRENS SOCIAL -TRANSFER PAYMENTS - SOCIAL SER,BUS LINES,GPC
WALSALL COUNCIL,HTTP://OPENDATACOMMUNITIES.ORG/ID/METROPOLITAN-DISTRICT-COUNCIL/WALSALL,30/06/2017,CHILDRENS SERVICES,B&M RETAIL LTD,12/04/2017,H59620170414EIZSTWRMK-1,18.98,SPINDLETREE-RESIDENTS PERSONAL EXPENSES-AL,DISCOUNT STORES,GPC
WALSALL COUNCIL,HTTP://OPENDATACOMMUNITIES.ORG/ID/METROPOLITAN-DISTRICT-COUNCIL/WALSALL,30/06/2017,CHILDRENS SERVICES,ALDI,12/04/2017,H59620170414FNAXOFMDJ-1,58.40,SPINDLETREE-FOOD AND BEVERAGES-PROVISIONS,GROCERY STORES AND SUPERMARKETS,GPC
WALSALL COUNCIL,HTTP://OPENDATACOMMUNITIES.ORG/ID/METROPOLITAN-DISTRICT-COUNCIL/WALSALL,30/06/2017,CHILDRENS SERVICES,ALDI,12/04/2017,H59620170414FNAXOFMDJ-2,11.93,SPINDLETREE-FOOD AND BEVERAGES-PROVISIONS,GROCERY STORES AND SUPERMARKETS,GPC
WALSALL COUNCIL,HTTP://OPENDATACOMMUNITIES.ORG/ID/METROPOLITAN-DISTRICT-COUNCIL/WALSALL,30/06/2017,CHANGE & GOVERNANCE,JOHAL DAIRIES LTD,12/04/2017,H59620170414FOQNUVRDG-1,74.00,CA RADLEYS PRIMARY SCHOOL-MISC DAIRY PRODUCTS-PROVISIONS,OTHER NONDURABLE GOODS,GPC
WALSALL COUNCIL,HTTP://OPENDATACOMMUNITIES.ORG/ID/METROPOLITAN-DISTRICT-COUNCIL/WALSALL,30/06/2017,CHANGE & GOVERNANCE,JOHAL DAIRIES LTD,12/04/2017,H59620170414GCMPSXTVW-1,3.70,CA ELMWOOD SPECIAL SCHOOL-MISC DAIRY PRODUCTS-PROVISIONS,OTHER NONDURABLE GOODS,GPC
WALSALL COUNCIL,HTTP://OPENDATACOMMUNITIES.ORG/ID/METROPOLITAN-DISTRICT-COUNCIL/WALSALL,30/06/2017,CHANGE & GOVERNANCE,JOHAL DAIRIES LTD,12/04/2017,H59620170414GDPCAESUK-1,6.31,CA MEADOW VIEW JMI PRIMARY SCH-MISC DAIRY PRODUCTS-PROVISIONS,OTHER NONDURABLE GOODS,GPC
WALSALL COUNCIL,HTTP://OPENDATACOMMUNITIES.ORG/ID/METROPOLITAN-DISTRICT-COUNCIL/WALSALL,30/06/2017,CHANGE & GOVERNANCE,JOHAL DAIRIES LTD,12/04/2017,H59620170414GVDJWIZUG-1,6.30,CA LINDENS PRIMARY SCHOOL-MISC DAIRY PRODUCTS-PROVISIONS,OTHER NONDURABLE GOODS,GPC
WALSALL COUNCIL,HTTP://OPENDATACOMMUNITIES.ORG/ID/METROPOLITAN-DISTRICT-COUNCIL/WALSALL,30/06/2017,CHANGE & GOVERNANCE,JOHAL DAIRIES LTD,12/04/2017,H59620170414HHMEHNVDM-1,2.22,CA WALSALL WOOD PRIMARY SCHOOL-MISC DAIRY PRODUCTS-PROVISIONS,OTHER NONDURABLE GOODS,GPC
WALSALL COUNCIL,HTTP://OPENDATACOMMUNITIES.ORG/ID/METROPOLITAN-DISTRICT-COUNCIL/WALSALL,30/06/2017,CHILDRENS SERVICES,B&M RETAIL,12/04/2017,H59620170414HNXPNQMDW-1,2.99,REDRUTH ROAD-NEW-FURNITURE & EQUIPMENT,DISCOUNT STORES,GPC
